{"text_format":"1","workbook":"xlsx","n_sheets":13,"sheets":["WERCS Questionnaire","NI Sample Requirements","NI Field SOP","New Item Form","New Item Form ","DIF COST BY DC","PSE Validation Form","Volume & Qty of Children","Pckg Requirements","Maintenance Form","VALIDATION","VALIDATION CM","Options"],"not_rendered":{"charts":0,"images":6,"macros":1,"external_links":1,"defined_names":24,"comments":2,"pivot_tables":0},"unopened":[],"bounds":{"document_bytes":16777216,"sheet_cells":100000,"rows_first":2000,"rows_last":500,"rows_between":2000,"halvings":0,"cell_chars":16384,"cell_head_chars":4096},"cells_cut":0,"cells_raw":0,"read":"whole","date_system":"1900"}

{"sheet":"WERCS Questionnaire","index":0,"n_rows":95,"n_cols":12,"rows_kept":95,"cut":false,"hidden":false,"merged":[[1,1,1,7],[3,0,4,9],[7,0,10,12],[12,0,12,4],[36,2,36,11],[14,0,14,13],[18,0,18,4],[22,0,23,12],[34,2,34,11],[43,0,43,13],[49,0,49,10],[51,0,51,13],[53,0,54,13],[39,0,39,13],[41,6,41,8],[94,0,94,13],[45,0,45,5],[45,6,45,13],[25,0,29,13],[30,0,30,3],[76,0,76,13],[78,0,79,13],[81,0,85,13],[87,0,88,13],[90,0,90,13],[92,0,92,13],[56,0,58,13],[60,0,61,13],[63,0,67,13],[69,0,71,13],[73,0,74,13]]}
[]
[null,"WERCSmart ASSESSMENT FOR NEW ITEM FORM"]
[]
["By filling out this assessment you certify that all information is truthful, accurate, and that no material information has been omitted."]
[]
[]
["Is this item chemical containing (including aerosols or bag-on-valve)?   ",null,null,null,null,null,null,null,"YES",null,null,"NO"]
["(including, but not limited to over-the-counter pharmaceutical products, nutritional supplements, personal care products, household products (pesticides, cleaners, air fresheners, etc.), or select food items (vitamin water, energy bars, liquid water enhancers, cooking oil, aerosols/bag-on-valve items, etc.) Please see below for extended list.)"]
[]
[]
[]
[]
["Does this item contain or is it a battery?   ",null,null,null,null,null,null,null,"YES",null,null,"NO"]
[]
["Does this item contain or is it a light bulb/lamp (fluorescent/incandescent/neon/LED/halogen)? "]
[]
[null,null,null,null,null,null,null,null,"YES",null,null,"NO"]
[]
["Is this item an electronic with a circuit board?   ",null,null,null,null,null,null,null,"YES",null,null,"NO"]
[]
[]
[]
["It is mandatory that one of the three bolded areas below must be filled out before item can be entered:"]
[]
[]
["If you answered “yes” to one or more questions your item needs to be entered into WERCSmart. Please do that now through the regulatory compliance link on cvssuppliers.com, or click the link below to be redirected to the WERCSmart home page. Once you have completed entry a WERCS WPS identification number will be issued."]
[]
[]
[]
[]
["https://secure.supplierwercs.com/"]
[]
[" Provide that number here:"]
[]
[null,"WPS ID"]
[]
[null,"CVS ID"]
[]
[]
["If all answers are “no” then this product is not being entered into WERCSmart at this time."]
[]
[null,null,null,null,null,null,"Check box:  "]
[]
["Please see below for further details on product types that require entry into WERCSmart."]
[]
["Contact the CVS WERCSmart team with any questions.",null,null,null,null,null,"wercsinfo@cvscaremark.com"]
[]
[]
[]
["The Following product types require entry into WERCSmart."]
[]
["Arts & Crafts – Clay, Fabric Dye, Glue, Paint, Plaster "]
[]
["Automotive – Antifreeze, Brake Fluid, Car or Boat Wash, Car or Boat Wax, Degreaser, Fuel, Fuel Additive, Gasoline, Hydraulic Fluid, Polish, Refrigerant, Tire and Wheel Cleaner, Transmission Fluid, Windshield Washer Fluid "]
[]
[]
["Cleaning Supplies – Air Freshener, Bathroom and Tile Cleaner, Bleach, Carpet Cleaner, Degreaser, Deodorizer, Dishwasher Detergent, Disinfectant, Fabric Softener, Floor Polish and Wax, Glass Cleaner, Laundry Detergent, Polish, Oven Cleaner, Sanitizer, Stain Remover, Water Softener, Wood Cleaner"]
[]
[]
[]
["Grocery – Cooking Oil, Food Coloring, Energy Bars, Food Item Dispensed by Compressed Gas, Vitamin Drinks, Water or Food Flavor Enhancers"]
[]
[]
["Health & Beauty – Adhesives, Antiperspirant, Astringent, Cleansing Wipes, Blush, Body Lotion or Cream, Body Oil, Body Wash, Bronzer, Bubble Bath, Conditioner, Cosmetics, Dental Whitening Products, Deodorant, Eye Drops, Eyeliner, Floss, Foundation, Fragrance, Hair Colorant, Hair Styling Products, Hand Sanitizer, Lip Balm, Lip Gloss, Make-up Remover, Nail Polish, Nail Polish Remover, Shampoo, Shaving Cream or Gel, Soap, Sun Care, Sunscreen, Temporary Tattoos, Toothpaste"]
[]
[]
[]
[]
[]
["Home Improvement – Adhesives, Anti-Stain, Asphalt, Bonding Agent, Butane, Caulking, Cement, Deck Cleaner, Etching Chemical, Faux Finishing Coating, Fire Extinguishing Agent, Glue, Lubricant, Paint, Paint Strippers, Paint Thinners, Primers, Sealants, Shellacs, Stains, Tape, Varnish"]
[]
[]
[]
["Lawn & Garden – Algicide, Animal Deterrent, Charcoal, Fertilizer, Fungicide, Herbicide, Insecticide, Mulch, Pest Control, Pesticide, Plant Food, Pool Chemicals, Pest Repellant, Trap or Bate Station, Weed Killer"]
[]
[]
["Nutritional Supplements – Energy or Nutrition Bars, Beverages, or Powders, Nutritional Supplement, Vitamin"]
[]
["Pet Care – Aquarium Maintenance, Flea or Tick Repellant, Litter for Pets, Pet Shampoo, Pet Shampoo with Pest Control, Taste Deterrent, Training Aid Repellant"]
[]
[]
["Pharmacy – All Over-the-Counter Pharmaceutical Products, Analgesic, Antacid, Antibiotic, Antifungal, Condom, Contraception, First Aid Kits or Supplies, Glucose Test Strips, Herbal or Dietary Supplement, In-Vitro Diagnostic, Latex Gloves, Laxative, Medicinal Liquids (cough medicine, eye drop, ear drop, nasal spray, inhaler), Medicinal Lozenges, Pills, or Capsules, Nicotine Replacement, Patches (heated and/or medicated), Stool-Softener, Suppository, Thermometer"]
[]
[]
[]
[]
[]
["Sporting Goods – Ammunition, Animal Attractant, Freezer Pack, Gun Lubricant, Heating Packs, Lantern, Lighter Fluid, Paint Balls, Pepper Spray, Signal Flare, Water Sanitizer Kits"]
[]
[]
["Stationery – Chalk, Correction Fluid, Crayon, Glue, Inks, Marker, Pen, Writing Instrument"]
[]
["Toys – Bubble Solution, Caps, Engines for Model Rockets, Silly String, Water-filled Toy"]
[]
["Other – Anti-Static Product, Candle, Firelog, Fireworks, Glow Sticks, Photographic Chemical"]

{"sheet":"NI Sample Requirements","index":1,"n_rows":21,"n_cols":1,"rows_kept":21,"cut":false,"hidden":false,"merged":[[8,0,8,9],[9,0,9,9],[3,0,3,10],[4,0,4,10],[5,0,5,9],[6,0,6,9],[7,0,7,9]]}
["We are in need of two samples of live product sent to the photo studio to fulfill the requirements involving cvs.com, promo personalization and other major initiatives that cvs is pursuing."]
["This includes capturing products both in and out of package at multiple angles."]
["Please note:"]
["1-We accept live samples only, we do not accept artist proofs or digital \"vendor art\""]
["2-If your product is merchandised in a prepack or PDQ, please send a full prepack or PDQ."]
["3-If an item has multiple upc's associated to it, please send two of each upc."]
["4-if an item has multiple flavors/colors associated with it please send 2 of each flavor/color."]
["5-Please make sure that product is packaged for shipping so that is arrives undamaged and photographable."]
["6-If an item is of high priority please make an indication detailing that on the shipping package, and send an email to the attention of Abe.Wurster@CVSHealth.com detailing the timeline in which images are needed as well as a list of the SKU's that are being sent."]
["7- Please make sure that the sample does not say \"SAMPLE\" OR \"FPO\" anywhere on the packaging and that UPC is the correct one."]
[]
["Mail to:"]
["Abraham Wurster"]
["Project Manager, Photo Studio"]
["Stebbings Partners, CVS"]
["401-770-6342"]
["1026 Park East Drive, Mail Code 7010, Woonsocket, RI 02895"]
[]
["Any questions – please address to: "]
["Deanna M. Fortier | CVS Health | Circular Production, Senior Coordinator for Alcohol/DSD | 401.770.5270 | MC 7020 |"]
["1026 Park East Drive; Woonsocket, RI 02895 | Deanna.Fortier@CVSHealth.com "]

{"sheet":"NI Field SOP","index":2,"n_rows":120,"n_cols":5,"rows_kept":120,"cut":false,"hidden":false,"merged":[[63,0,63,3],[80,0,80,3],[100,0,100,3],[0,0,1,3],[2,0,2,3],[18,0,18,3],[52,0,52,3],[87,0,87,3],[32,0,32,3],[73,0,73,3]]}
["CVS NEW ITEM FORM GUIDELINES"]
[]
["Vendor Mandatory Fields"]
["Field Name","Responsibility",null,"Description"]
["CVS Item #","IC","Mandatory Field Y/N","Item Coordinator will enter in the Item # assigned by the system as a last step."]
["WPS ID **NEW**","Supplier","Y","Enter the WPS ID # that you received from the WERCs in this field. Contact the CVS WERCSmart team with any questions.  wercsinfo@cvscaremark.com"]
["CVS ID **NEW**","Supplier","IF APPLICABLE","Enter the CVS ID # that you received from the WERCs in this field. Contact the CVS WERCSmart team with any questions.  wercsinfo@cvscaremark.com"]
["UPC Code","Supplier","Y","Used to uniquely identify products. Should be 12 digits including the check digit."]
["EAN Code","Supplier",null,"Used to uniquely identify products. Should be 13 or 14 digits including the check digit."]
["Suppressed UPC","Supplier",null,"Enter five zeros (00000) in front of the suppressed UPC as it appears  on the product. The suppressed UPC can only be 8 digits.  "]
["NDC","Supplier",null,"The National Drug Code (NDC) serves as a universal product identifier for human drugs and biologics. The first segment is the labeler code that identifies any firm that manufactures,\nrepacks/distributes a drug product. The second segment is the product code. It\nidentifies the strength, dosage form and formulation. The third segment is the\npackage code. This segment identifies package size.","(?)"]
["UPC Type","Supplier",null,"Used to identify type of UPC\nThe following options are available:\n• Bonus\n• Regular"]
["Supplier Item Description","Supplier","Y","The description of the item provided by the supplier.  "]
["CVS Supplier #","Supplier","Y","Supplier's 5 digit PO number code"]
["Supplier Name","Supplier","Y","The supplier name (text) corresponding to the Supplier code."]
["Supplier Brand","Supplier","Y","The item’s brand as named by the supplier e.g.: Dove."]
["Cosmetics Color","Supplier",null,"This field is only for Cosmetics items to describe the color of the item being set up."]
[]
["Palletization Plan Section (Inner Pack and/or Case)"]
["Field Name","Responsibility","Mandatory Field Y/N","Description"]
["UPC Code","Supplier","Y","Used to uniquely identify products"]
["Quantity of Children","Supplier","Y","The number of units inside the next lower level. The hierarchy is:\n\nCASE\nINNER\nEACH\n\nIf you have a case and an each, the quantity of children of the case would be the number of eaches inside the case because eaches is the next lower level.\n\nIf you had a case, inner, and each the quantity of children of the case would be the number of inners inside the case and the quantity of children of the inner would be the number of eaches inside the inner.\n\n"]
["Layers per Pallet (Pallet HI)","Supplier","Y","Capture the number of Cases in a layer"]
["Cases per Layer (Pallet TI)","Supplier","Y","The number of cases on a single layer of a pallet for shipment."]
["Item Height ","Supplier","Y","Refers to height of the item in inches. Enter up to 2 digits (one decimal place). The height has a maximum of 9.9."]
["Item Width","Supplier","Y","Refers to width of the item in inches. Enter up to 2 digits (one decimal place). The width has a maximum of 9.9."]
["Item Depth","Supplier","Y","Refers to depth of the item in inches. Enter up to 2 digits (one decimal place). The depth has a maximum of 9.9."]
["Item UOM","Supplier","Y","Describes the quantity of how a unit is measured"]
["Supplier Item Gross Weight","Supplier","Y","Item weight as specified by supplier"]
["Weight UOM","Supplier","Y","Describes the quantity of how a unit is measured"]
[]
[]
["Each Identification"]
["Field Name","Responsibility","Mandatory Field Y/N","Description"]
["Consumer Size Quantity","Supplier","Y","The size on the product label that the customer reads"]
["Consumer Size UOM","Supplier","Y","The unit of measure of an item depicts the ways to quantify it."]
["Item Height","Supplier","Y","Refers to height of the item in inches. Enter up to 5 digits (three decimal places). The height has a maximum of 99.999."]
["Item Width","Supplier","Y","Refers to width of the item in inches. Enter up to 5 digits (three decimal places). The width has a maximum of 99.999."]
["Item Depth","Supplier","Y","Refers to depth of the item in inches. Enter up to 5 digits (three decimal places). The depth has a maximum of 99.999."]
["Item UOM","Supplier","Y","The unit of measure of an item depicts the ways to quantify it."]
["Supplier Item Gross Weight","Supplier","Y","Item weight as specified by supplier"]
["Weight UOM","Supplier","Y","The unit of measure of an item depicts the ways to quantify it."]
["FiT Choices","Supplier",null,"The Fit Choices field enables the user to select the fit alerts (e.g, Heart Healty, Sugar Free, Organic, Gluten Free)"]
["Dietary Restrictions","Supplier",null,"The Dietary Restriction field enables the user to select dietary alerts (e.g., allergens, diabetic, etc.)"]
["Facts Box","Supplier","IF APPLICABLE","Used for tax purposed. The “Nutrition Facts” panel is one that is more commonly placed on an item that could be considered a meal replacement. The “Supplemental Facts” panel is placed on an item that is only considered a supplement to one’s diet but not a meal replacement. Additionally, the “Drug Facts” panel is also distinct from the other two panels, with different tax rules applied.\n\nIn the rare instances where an item has more than one facts panel the following rules would apply:\n\n- If there’s a Drug Facts panel, select Drug Facts regardless of any other panels.\n- If there’s a Nutrition Facts panel and no Drug Facts panel, select Nutrition Facts.\n- If there’s only a Supplemental Facts panel, select Supplemental Facts.\n\nPlease see picture examples of each type of Facts Box.\n"]
["Item Multi Pack - Stick Count","Supplier","IF APPLICABLE","The number of units contained in the selling item.   (e.g. 6-pack of soda).  Six is the multi-pack quantity."]
["Hazmat Flag","Supplier","IF APPLICABLE","The Hazmat Flag indicates whether the item is hazardous material."]
["Date Code Type","Supplier","Y","How an item is date coded."]
["Shelf Life In Weeks","Supplier","Y","Used when the item does not have a readable date code on the product. Is formatted in weeks."]
["Date Code Format","Supplier","Y","The format of the date code. Ex. mm/dd/yyyy"]
["Date Code Description","Supplier","Y","The description of how the item is date coded. Ex. Month/day/year"]
[]
["Pricing Info Section"]
["Field Name","Responsibility","Mandatory Field Y/N","Description"]
["ML Cost","Supplier","Y","The Unit cost indicates the cost of the item. Unit cost would be specified by the supplier. "]
["HI Cost","Supplier",null,"Cost in Hawaii Only"]
["PR Cost","Supplier",null,"Cost in Puerto Rico Only"]
["MSRP Quantity","Supplier","Y","Enter the number of units for multi-price items, e.g. enter 3 for a 3/$1.00 multi price item"]
["MSRP $","Supplier","Y","Manufacturers Suggested Retail Price"]
["Preprice","Supplier","IF APPLICABLE","Y/N"]
["Preprice $","Supplier","IF APPLICABLE","PP Retail shown on product"]
["Fragrance Auction","Supplier ","IF APPLICABLE","Y/N"]
[]
["Category Specific Fields"]
["Field Name","Responsibility","Mandatory Field Y/N","Description"]
["Controlled Content","Supplier",null,"Defines whether an item has a controlled substance as one of its ingredients."]
["Controlled Content %","Supplier",null,"% of Controlled Content"]
["PSE Salt Gram Weight","Supplier",null,"The gram weight of the amount of PSE in the product"]
["Age Dosing","Supplier",null,"Defines the acceptable age range of the product."]
["Item Reconstituted Quantity","Supplier",null,"Reconstituted Items are the ones in which the item in its original form (the form in which it is sold) can be converted into a secondary form that is used by the consumer. E.g. Baby formula is sold as powder, but mixed with water to form liquid. Some states mandate that the reconstituted items have shelf labels in quantity/unit of measure of the secondary form (e.g. quarts for baby formula)."]
["Item Reconstituted UOM","Supplier",null,"Ability to capture reconstituted Unit of Measure for the reconstituted item from GDS or supplier portal."]
["FDA Drug Classification","Supplier",null,"Monograph drug -  Issued by a final rule, drug products that are generally recognized as safe and effective and not misbranded as part of FDA's ongoing review of OTC drug products and include requirements for categories of non-prescription drugs, such as what ingredients may be used and for what intended use.\n\nNo final monograph: Currently no monograph for the drug or drug is in Tentative Final Monograph status.\n\nHomeopathic Drug: Any drug labeled as being homeopathic which is listed in the Homeopathic Pharmacopeia of the United States (HPUS), an addendum to it, or its supplements.\n\nNDA  - is the vehicle through which drug sponsors formally propose that FDA approve a new pharmaceutical for sale and marketing in the U.S. FDA only approves an NDA after determining, for example, that the data are adequate to show the drug's safety and effectiveness for its proposed use and that its benefits outweigh the risks. The NDA system is also used for new ingredients entering the OTC marketplace for the first time. For example, the newer OTC products (previously available only by prescription) are first approved through the NDA system and their 'switch' to OTC status is approved via the NDA system\n\nANDA - An Abbreviated New Drug Application (ANDA) contains data which when submitted to FDA's Center for Drug Evaluation and Research, Office of Generic Drugs, provides for the review and ultimate approval of a generic drug product. Once approved, an applicant may manufacture and market the generic drug product to provide a safe, effective, low cost alternative. A generic drug product is one that is comparable to an innovator drug product in dosage form, strength, route of administration, quality, performance characteristics and intended use. Generic drug applications are termed \"abbreviated\" because they are generally not required to include preclinical (animal) and clinical (human) data to establish safety and effectiveness.  Instead, generic applicants must scientifically demonstrate that their product is bioequivalent (i.e., performs in the same manner as the innovator drug). "]
[]
["Beverage Items Only"]
["Field Name","Responsibility","Mandatory Field Y/N","Description"]
["Beverage Type Code","Supplier",null,"Identifies what type of beverage the item is (carbonated, alcohol, etc.)"]
["Container Type Code","Supplier",null,"The type of container the item is sold in (i.e.: glass, plastic, metal, box, etc)."]
["Fruit Juice Percentage","Supplier",null,"The Fruit Juice % that the Beverage item contains."]
["Alcohol Percentage","Supplier",null,"The Alcoholic Content % of the Beverage Item\nThis field size is >100.00\n\"Non Alcoholic\" Wines, Beers etc. should be assigned a value of  0.1% \nThis field is used to calculate Liquor Taxes."]
[]
["Bonus Items Only"]
["Field Name","Responsibility","Mandatory Field Y/N","Description"]
["Bonus Type","Supplier",null,"The type of bonus item that is being submitted.\nThe following options are available:\n• BOGO\n• Bonus – Free Product/Sampler\n• Bonus – Free Quantity\n• Bonus – Instant Redeemable Coupon\n"]
["Break Apart For Individual Sale","Supplier",null,"Identifies if Bonus multi-pack can be broken apart for individual sales"]
["Supplier Regular Item UPC","Supplier",null,"The regular item with which the bonus is linked."]
["Regular CVS Item Number","Supplier",null,"This is the CVS item number for the Regular item with which the bonus is linked."]
[]
["Gift Card Items Only"]
["Field Name","Responsibility","Mandatory Field Y/N","Description"]
["Prepaid Card Type","Supplier",null,"Indicates the type of gift card being set up (i.e. CVS gift card, Debit card, Credit Card, etc)."]
["Prepaid Gift Card Variable Amount","Supplier",null,"Indicates if the amount of the gift card is variable and if the cash register should prompt the cashier to enter the amount. "]
["CVS Commission %","Supplier",null,"Percentage of the retail price kept by CVS"]
["Prepaid Card Region Type","Supplier",null,"The region the card will be sold in."]
["Supplier Fee","Supplier",null,"Fee paid to the supplier by CVS"]
["Prepaid Gift Card Face Value","Supplier",null,"For the non-variable types of gift card, this value must be entered"]
["Prepaid Gift Card CVS Fee","Supplier",null,"CVS flat fee"]
["Effective Begin Date","Supplier",null,"The effective begin date of the card. Must be a Sunday."]
["Effective End Date","Supplier",null,"The effective end date of the card. Must be a Saturday."]
["Prepaid Wireless E911 Type","Supplier",null,"Dropdown: \nL = PPD Wireless Phone with Loaded Minutes\nP = PPD Wireless Phone no Loaded Minutes \nW = PPD Wireless Minutes Card\nN = Not PPD Wireless"]
[]
["Category Manager Fields"]
["Field Name","Responsibility","Mandatory Field Y/N","Description"]
["MHE","Category Manager","Y","The Merchandise Hierarchy Element (MHE), which is a numeric field up to 10 digits, consists of five levels. Currently the 1st through 3rd levels are used to represent Category, Subcategory and Segment. "]
["Item Type","Category Manager","Y","Used to classify the item based on the intent when it is introduced"]
["Type Description","Category Manager","Y","Used to identify the Season Name."]
["Planogram Name","Category Manager","Y","Indicates the base version name of the planogram to which the item belongs."]
["CVS Like Item Number","Category Manager","Y","Items whose historical sales are used as a base to forecast sales for new items"]
["Pre-Price","Auto",null,"Auto Filled from Supplier Field - No Entry Necessary informational for CM only. "]
["CM Brand Classification","Category Manager","Y","Description for the CVS brand number."]
["CM Suggested Retail Price","Category Manager","Y","To be used by the CM to indicate the suggested retail price of the item."]
["Threshold Pricing","Category Manager","IF APPLICABLE","Category Manager should specify if the item has Threshold Pricing. Example 2/$3.00 or 1/$1.99"]
["Flavor Code Option","Category Manager",null,"The information is used by Pricing to attach the item to the appropriate flavor group. "]
["Comments","Category Manager",null,"It is used to designate any additional information deemed necessary to carry out the flavor code process."]
["Flavor Link","Category Manager",null,"Indicate which flavor code # you want used if you know it."]
["Shelf Label","Category Manager","Y","Category Manager can decide what is listed on the shelf label."]
["Compare and Save Link #","Category Manager","Y","If item is going to have a compare and save link relationship, the item # that it should be linked with to needs to be added here.  If it will not be linked, you MUST enter N/A"]
["Payment Type","Category Manager","Y","Payment type that have been negociate between CM and Vendor"]
["Store Damage Return Code","Category Manager","Y","How damaged product will be handled.\nFlag Code #2 -- Returnable -- Merchandise is returnable to the Vendor through CLS                                                                                          Flag Code #3 -- Returnable Not Billable -- Merchandise is not returnable to the Vendor but returnable to CLS for liquidation                                                                                                                                                                                                                                        Flag Code #4 -- Non Returnable -- Merchandise is not returnable to the Vendor and to CLS for liquidation (all NFR items, DSD items, Displays, and Baby Formula) will fall under this return code. In addition there may be some exceptions.\nFlag Code #5 - Non Returnable-Billable -- Merchandise is not returnable to the vendor or to CLS for liquidation (DSD items - Food items, fireworks, lighters, hazardous and non -hazardous items that could not previously be transported back to our DCs)  CVS will bill back the vendor. \nField depends on the payment type that have been selected previously"]
["Shelf Pack","Category Manager","Y","This is the quantity that is allocated to ship to the stores from the DC."]
["PLU","Category Manager","GIFT CARDS ONLY","Price look up # needed to assign if applicable"]

{"sheet":"New Item Form","index":3,"n_rows":173,"n_cols":83,"rows_kept":173,"cut":false,"hidden":false,"merged":[[0,0,0,4],[1,0,1,4],[12,6,12,18],[75,46,75,47],[56,24,75,41],[75,0,75,3],[75,44,75,45],[75,10,75,11],[75,12,75,13],[75,14,75,15],[75,16,75,17],[75,18,75,19],[75,22,75,23],[75,4,75,5],[75,6,75,7],[75,8,75,9],[57,5,57,8],[57,15,57,18],[59,0,59,2],[59,3,59,6],[59,8,59,10],[59,11,59,16],[61,0,61,3],[61,4,61,5],[60,44,60,48],[14,6,14,18],[16,6,16,18],[30,5,30,18],[33,1,33,12],[34,0,34,3],[22,11,22,20],[20,6,20,20],[32,0,32,3],[34,4,34,5],[32,7,32,14],[32,15,32,18],[18,3,18,4],[18,12,18,13],[24,0,24,2],[18,6,18,11],[18,15,18,17],[18,18,18,19],[24,13,24,14],[24,15,24,16],[24,17,24,20],[27,0,28,21],[34,13,34,14],[34,18,34,20],[22,3,22,4],[24,3,24,6],[53,4,53,5],[53,13,53,16],[55,9,55,10],[55,15,55,16],[55,12,55,14],[55,5,55,8],[36,18,36,20],[32,4,32,5],[55,18,55,19],[38,4,38,5],[38,11,38,12],[38,14,38,16],[38,17,38,18],[47,13,47,16],[41,10,42,20],[52,32,52,34],[52,35,52,36],[51,31,51,33],[51,34,51,36],[50,24,50,30],[42,24,42,27],[52,28,52,29],[51,24,51,26],[50,31,50,32],[28,29,28,31],[28,24,28,28],[36,8,36,9],[40,32,40,33],[21,35,21,37],[21,38,21,39],[23,24,23,26],[23,27,23,37],[21,30,21,33],[24,28,24,32],[24,39,24,40],[24,24,24,27],[24,33,24,38],[21,24,21,29],[27,24,27,26],[38,24,38,26],[26,28,26,30],[29,24,29,29],[32,24,32,28],[33,24,33,28],[32,29,32,38],[33,29,33,38],[34,27,34,32],[38,27,38,34],[11,38,11,39],[13,34,13,36],[15,24,15,27],[15,28,15,29],[15,30,15,31],[15,32,15,34],[13,38,13,39],[17,34,17,36],[17,37,17,40],[17,24,17,26],[17,27,17,33],[15,35,15,37],[15,38,15,39],[11,24,11,29],[13,24,13,29],[11,30,11,32],[19,27,19,38],[23,38,23,39],[19,24,19,26],[26,32,26,36],[26,38,26,39],[27,27,27,28],[109,4,109,7],[109,14,109,17],[101,2,101,15],[103,5,103,10],[103,18,103,19],[105,2,105,3],[105,10,105,15],[95,4,95,19],[97,4,97,19],[99,3,99,4],[99,12,99,14],[93,4,93,11],[93,13,93,19],[63,3,63,8],[63,18,63,19],[67,0,67,3],[73,0,73,2],[71,0,71,2],[71,9,71,10],[67,4,67,13],[65,4,65,13],[63,0,63,2],[63,10,63,17],[88,4,88,20],[91,4,91,11],[91,13,91,19],[73,5,73,7],[73,8,73,9],[73,12,73,14],[73,16,73,17],[73,18,73,19],[173,6,173,7],[173,17,173,18],[158,15,158,17],[36,16,36,17],[36,14,36,15],[71,17,71,18],[171,4,171,7],[171,15,171,18],[156,4,156,8],[61,9,61,11],[61,12,61,13],[73,10,73,11],[45,14,45,15],[45,16,45,17],[45,18,45,20],[47,5,47,7],[50,5,50,9],[50,10,50,11],[50,13,50,17],[50,18,50,20],[42,4,42,5],[43,1,43,12],[45,8,45,9],[42,0,42,3],[3,0,3,48],[4,42,4,48],[5,42,5,45],[6,42,6,43],[6,44,6,48],[7,42,7,43],[9,42,9,43],[7,44,7,48],[9,44,9,48],[5,10,5,12],[4,0,4,3],[4,4,4,8],[5,24,5,32],[7,7,7,9],[4,19,4,24],[5,13,5,16],[7,0,7,3],[7,37,7,40],[4,13,4,18],[4,26,4,35],[9,27,9,38],[7,33,7,36],[6,0,6,11],[7,17,7,20],[10,6,10,18],[4,37,4,39],[8,0,8,20],[7,10,7,13],[7,15,7,16],[19,42,19,43],[15,44,15,48],[16,44,16,48],[18,44,18,48],[19,44,19,48],[10,42,10,43],[12,42,12,43],[13,42,13,43],[10,44,10,48],[12,44,12,48],[13,44,13,48],[15,42,15,43],[16,42,16,43],[18,42,18,43],[11,33,11,37],[13,30,13,32],[7,24,7,25],[7,26,7,31],[9,24,9,26],[25,44,25,48],[27,44,27,48],[28,44,28,48],[21,42,21,43],[22,42,22,43],[24,42,24,43],[21,44,21,48],[22,44,22,48],[24,44,24,48],[25,42,25,43],[27,42,27,43],[28,42,28,43],[36,44,36,48],[37,44,37,48],[39,44,39,48],[30,42,30,43],[31,42,31,43],[33,42,33,43],[34,42,34,43],[30,44,30,48],[31,44,31,48],[33,44,33,48],[34,44,34,48],[36,42,36,43],[37,42,37,43],[39,42,39,43],[51,44,51,48],[52,44,52,48],[54,44,54,48],[45,44,45,48],[46,44,46,48],[48,44,48,48],[49,44,49,48],[40,42,40,43],[42,42,42,43],[43,42,43,43],[40,44,40,48],[42,44,42,48],[43,44,43,48],[35,28,35,32],[61,44,61,48],[63,44,63,48],[64,44,64,48],[70,42,70,43],[72,42,72,43],[73,42,73,43],[70,44,70,48],[72,44,72,48],[73,44,73,48],[66,42,66,43],[67,42,67,43],[69,42,69,43],[66,44,66,48],[67,44,67,48],[69,44,69,48],[63,42,63,43],[64,42,64,43],[55,44,55,48],[57,44,57,48],[58,44,58,48],[51,42,51,43],[52,42,52,43],[54,42,54,43],[60,0,60,3],[53,31,53,39],[27,31,27,36],[27,37,27,38],[60,42,60,43],[61,42,61,43],[55,42,55,43],[57,42,57,43],[58,42,58,43],[45,42,45,43],[46,42,46,43],[48,42,48,43],[49,42,49,43],[48,38,48,39],[48,28,48,31],[47,31,47,33],[42,28,42,37],[43,32,43,35],[46,28,46,36],[49,24,49,29],[49,31,49,32],[51,27,51,29],[28,39,28,40],[29,30,29,36]]}
["Supplier fields",null,null,null,null,null,null,"Latest Update 2/2022"]
["Category Manage Fields"]
[null,"Item Coordinator Fields"]
["                   CVS DOMESTIC WAREHOUSE NEW ITEM INFORMATION FORM "]
["CVS Item Number",null,null,null,null,null,null,null,null,null,null,null,null,"Vendor % Complete:",null,null,null,null,null,{"$f":"(IF(OR(F8<>\"\",K8<>\"\",R8<>\"\"),1,0)+IF(OR(G11<>\"\",G13<>\"\",G15<>\"\"),1,0)+COUNTA(D19,M19,G21,D23,L23,D25,E33,D37,I37,O37,S37,E39,L39,E54,N54,D56,J56,P56,S56,F58,P58,L60,E62,M62,D64,D72,J72,R72,D74,I74,E35,N35,S19,P74))/36","v":0},null,null,null,null,null,null,"Category Manager % Complete:",null,null,null,null,null,null,null,null,null,null,{"$f":"((COUNTA(AA8,AE12,AM14,AB18,AB24,N6,AL18,AM16)+IF(AB20<>\"\",1,0))+IF(AC25<>\"Select Payment Type\",1,0)+IF(AE14<>\"\",1,0)+IF(AN25<>\"\",1,0)+IF(AE22<>\"\",1,0))/11","v":9.0909090909090912E-2},null,null,null,null,"Version 2.0.4",null,null,null,null,null,null,null,null,null,null,null,null,null,null,null,null,null,null,null,null,null,null,null,null,null,null,null,null,null,null,null,null,null,null,null,null,null,null,"CT"]
["Vendor Fields Mandatory",null,null,null,null,null,null,null,null,null,"MHE",null,null,null,null,null,null,null,null,null,null,null,null,null,"CATEGORY MANAGER FIELDS",null,null,null,null,null,null,null,null,null,null,null,null,null,null,null,null,null,"Additional UPC's",null,null,null,null,null,null,null,null,null,null,null,null,null,null,null,null,null,null,null,null,null,null,"Regular",null,null,null,null,null,null,null,null,"Credit Card",null,"Store Will Tag",null,null,null,null,"DS"]
["Vendor should fill out all bolded fields in the Vendor section.",null,null,null,null,null,null,null,null,null,null,null,null,null,null,null,null,null,null,null,null,null,null,null,null,null,null,null,null,null,null,null,null,null,null,null,null,null,null,null,null,null,"UPC",null,null,null,null,null,null,null,null,null,null,null,null,null,null,null,null,null,null,null,null,null,null,"Bonus",null,null,null,null,null,null,null,null,"CVS Gift Card",null,"DC Will Tag",null,null,null,null,"EA"]
["WERCSmart Assessment",null,null,null,"N",null,null,"WPS ID",null,null,null,null,null,null,null,"CVS ID",null,null,null,null,null,null,null,null,"Item Type",null,null,null,null,null,null,null,null,"Type Description",null,null,null,null,null,null,null,null,"Description",null,null,null,null,null,null,null,null,null,null,null,null,null,null,null,null,null,null,null,null,null,null,"LIP",null,null,null,null,null,null,null,null,"Debit Card",null,"Manufacturer Will Tag",null,null,null,null,"FT"]
["** Must be filled out with the WPS ID, CVS ID, or No",null,null,null,null,null,null,null,null,null,null,null,null,null,null,null,null,null,null,null,null,null,null,null,null,null,null,null,null,null,null,null,null,null,null,null,null,null,null,null,null,null,null,null,null,null,null,null,null,null,null,null,null,null,null,null,null,null,null,null,null,null,null,null,null,null,null,null,null,null,null,null,null,null,"Money Gift Card",null,null,null,null,null,null,"IN"]
["UPC INFORMATION",null,null,null,null,null,null,null,null,null,null,null,null,null,null,null,null,null,null,null,null,null,null,null,"Plano Name",null,null,"kjdsfkjlkhg",null,null,null,null,null,null,null,null,null,null,null,null,null,null,"UPC",null,null,null,null,null,null,null,null,null,null,null,null,null,null,null,null,null,null,null,null,null,null,null,null,null,null,null,null,null,null,null,"Prepaid Cell Phone",null,null,null,null,null,null,"KT"]
["UPC - 12",null,null,null,null,null,null,null,null,null,null,null,null,null,null,null,null,null,null,null,null,null,null,null,null,null,null,null,null,null,null,null,null,null,null,null,null,null,null,null,null,null,"Description",null,null,null,null,null,null,null,null,null,null,null,null,null,null,null,null,null,null,null,null,null,null,"BOGO",null,null,null,null,null,null,null,null,"Prepaid Phone Card",null,"B = Both CVS Stores and Acquisition Stores Carry The Item",null,null,null,null,"LT"]
[null,null,null,null,null,null,null,null,null,null,null,null,null,null,null,null,null,null,null,null,null,null,null,null,"CVS Like Item Number",null,null,null,null,null,null,null,null,"Pre-Priced Retail",null,null,null,null,null,null,null,null,null,null,null,null,null,null,null,null,null,null,null,null,null,null,null,null,null,null,null,null,null,null,null,"Bonus - Free product / Sampler",null,null,null,null,null,null,null,null,"Retail Gift Card",null,"H = Only Hawaii Stores Carry The Item",null,null,null,null,"MLT"]
["EAN.UCC 13 or 14",null,null,null,null,null,null,null,null,null,null,null,null,null,null,null,null,null,null,null,null,null,null,null,null,null,null,null,null,null,null,null,null,null,null,null,null,null,null,null,null,null,"UPC ",null,null,null,null,null,null,null,null,null,null,null,null,null,null,null,null,null,null,null,null,null,null,"Bonus - Free Quantity",null,null,null,null,null,null,null,null,null,null,null,null,null,null,null,"OZ"]
[null,null,null,null,null,null,null,null,null,null,null,null,null,null,null,null,null,null,null,null,null,null,null,null,"CM Brand Classification",null,null,null,null,null,null,null,null,null,"CM Retail",null,null,null,null,null,null,null,"Description",null,null,null,null,null,null,null,null,null,null,null,null,null,null,null,null,null,null,null,null,null,null,"Bonus - Instant Redeemable Coupon",null,null,null,null,null,null,null,null,null,null,null,null,null,null,null,"LB"]
["EAN.UCC -8",null,null,null,null,null,null,null,null,null,null,null,null,null,null,null,null,null,null,null,null,null,null,null,null,null,null,null,null,null,null,null,null,null,null,null,null,null,null,null,null,null,null,null,null,null,null,null,null,null,null,null,null,null,null,null,null,null,null,null,null,null,null,null,null,null,null,null,null,null,null,null,null,null,"Returnable",null,"> 4\"",null,null,null,null,"QT"]
[null,null,null,null,null,null,null,null,null,null,null,null,null,null,null,null,null,null,null,null,null,null,null,null,"Threshold Pricing",null,null,null,null,null,"for",null,null,null,null,"Shelf Pack",null,null,null,null,null,null,"UPC ",null,null,null,null,null,null,null,null,null,null,null,null,null,null,null,null,null,null,null,null,null,null,null,null,null,null,null,null,null,null,null,"Returnable - Not Billable",null,"4.1\" > 14.9\"",null,null,null,null,"YD"]
["NDC",null,null,null,null,null,null,null,null,null,null,null,null,null,null,null,null,null,null,null,null,null,null,null,null,null,null,null,null,null,null,null,null,null,null,null,null,null,null,null,null,null,"Description",null,null,null,null,null,null,null,null,null,null,null,null,null,null,null,null,null,null,null,null,null,null,"Yes",null,null,null,null,null,null,null,null,"Non - Returnable",null,"15\" < 35\""]
[null,null,null,null,null,null,null,null,null,null,null,null,null,null,null,null,null,null,null,null,null,null,null,null,"Flavor Code",null,null,null,null,null,null,null,null,null,"Location",null,null,null,null,null,null,null,null,null,null,null,null,null,null,null,null,null,null,null,null,null,null,null,null,null,null,null,null,null,null,"No",null,null,null,null,null,null,null,null,"Non-Returnable - Billable",null,"35\" >"]
["UPC Type",null,null,null,null,null,"CVS Generated UPC",null,null,null,null,null,null,null,null,"Store Brand",null,null,null,null,null,null,null,null,null,null,null,null,null,null,null,null,null,null,null,null,null,null,null,null,null,null,"UPC",null,null,null,null,null,null,null,null,null,null,null,null,null,null,null,null,null,null,null,null,null,null,null,null,null,null,null,null,null,null,null,"Pack"]
[null,null,null,null,null,null,null,null,null,null,null,null,null,null,null,null,null,null,null,null,null,null,null,null,"Flavor Link ",null,null,null,null,null,null,null,null,null,null,null,null,null,null,null,null,null,"Description",null,null,null,null,null,null,null,null,null,null,null,null,null,null,null,null,null,null,null,null,null,null,null,null,null,null,null,null,null,null,null,"Count"]
["Supplier Item Description",null,null,null,null,null,null,null,null,null,null,null,null,null,null,null,null,null,null,null,null,null,null,null,null,null,null,null,null,null,null,null,null,null,null,null,null,null,null,null,null,null,null,null,null,null,null,null,null,null,null,null,null,null,null,null,null,null,null,null,null,null,null,null,null,"Cycle pre-pack",null,null,null,null,null,null,null,null,"Assortment",null,"N"]
[null,null,null,null,null,null,null,null,null,null,null,null,null,null,null,null,null,null,null,null,null,null,null,null,"Compare and Save Link #",null,null,null,null,null,null,null,null,null,null,"Size Link",null,null,null,null,null,null,"UPC",null,null,null,null,null,null,null,null,null,null,null,null,null,null,null,null,null,null,null,null,null,null,"Intended for POG",null,null,null,null,null,null,null,null,"Box",null,"D",null,null,null,null,null,{"$f":"G11&I11&J11&K11&L11&M11&N11&O11&P11&Q11&R11&U11","v":""}]
["CVS Supplier #",null,null,null,null,null,null,"Supplier Name",null,null,null,null,null,null,null,null,null,null,null,null,null,null,null,null,null,null,null,null,null,null,null,null,null,null,null,null,null,null,null,null,null,null,"Description",null,null,null,null,null,null,null,null,null,null,null,null,null,null,null,null,null,null,null,null,null,null,"Not for Plano",null,null,null,null,null,null,null,null,"Cubic Feet",null,"P"]
[null,null,null,null,null,null,null,null,null,null,null,null,null,null,null,null,null,null,null,null,null,null,null,null,"Shelf Label",null,null,null,null,null,null,null,null,null,null,null,null,null,null,null,null,null,null,null,null,null,null,null,null,null,null,null,null,null,null,null,null,null,null,null,null,null,null,null,null,"Off-Shelf",null,null,null,null,null,null,null,null,"Display",null,"B"]
["Supplier Brand",null,null,null,null,null,null,"Cosmetics/Nail Color #",null,null,null,null,null,null,null,"Supplier #",null,null,null,null,null,null,null,null,"Vendor Payment Type",null,null,null,null,null,null,null,null,"Store Damage Return Code",null,null,null,null,null,null,null,null,"UPC ",null,null,null,null,null,null,null,null,null,null,null,null,null,null,null,null,null,null,null,null,null,null,"Promotional",null,null,null,null,null,null,null,null,"Dozen",null,"C",null,null,null,null,"IN"]
[null,null,null,null,null,null,null,null,null,null,null,null,null,null,null,null,null,null,null,null,null,null,null,null,"CATEGORY SPECIFIC FIELDS",null,null,null,null,null,null,null,null,null,null,null,null,null,null,null,null,null,"Description",null,null,null,null,null,null,null,null,null,null,null,null,null,null,null,null,null,null,null,null,null,null,"Seasonal",null,null,null,null,null,null,null,null,"Each"]
["PALLETIZATION PLAN",null,null,null,"CASE",null,null,null,null,null,null,null,null,null,null,null,null,null,null,null,null,null,null,null,"Controlled Content",null,null,null,null,null,null,null,"Controlled Content %",null,null,null,null,null,null,null,null,null,null,null,null,null,null,null,null,null,null,null,null,null,null,null,null,null,null,null,null,null,null,null,null,null,null,null,null,null,null,null,null,null,"Feet",null,"100 Sq. Feet"]
["The CASE UPC is required on the outside of each shipping carton. Refer to CVS Routing Guide/Supplier Compliance Instructions (Carton Labeling Requirements) cvssuppliers.com/requirements",null,null,null,null,null,null,null,null,null,null,null,null,null,null,null,null,null,null,null,null,null,null,null,"Age Dosing",null,null,null,null,null,null,"PSE Salt Gram Weight",null,null,null,null,null,null,null,null,null,null,"UPC ",null,null,null,null,null,null,null,null,null,null,null,null,null,null,null,null,null,null,null,null,null,null,null,null,null,null,null,null,null,null,null,"Gallon (US)",null,"100 - Hundred Count"]
[null,null,null,null,null,null,null,null,null,null,null,null,null,null,null,null,null,null,null,null,null,null,null,null,"Item Reconstituted Qty",null,null,null,null,null,null,null,null,"Item Reconstituted UOM",null,null,null,null,null,null,null,null,"Description",null,null,null,null,null,null,null,null,null,null,null,null,null,null,null,null,null,null,null,null,null,null,"Controlled Umbrella Brand",null,null,null,null,null,null,null,null,"Gram",null,"EACH"]
[null,null,null,null,null,null,null,null,null,null,null,null,null,null,null,null,null,null,null,null,null,null,null,null,"FDA Drug Classification",null,null,null,null,null,null,null,null,null,null,null,null,null,null,null,null,null,null,null,null,null,null,null,null,null,null,null,null,null,null,null,null,null,null,null,null,null,null,null,null,"Controlled Tribute Brand",null,null,null,null,null,null,null,null,"Hundred Count",null,"GL - Gallon",null,null,null,null,"OZ"]
[null,null,"Case UPC/EAN",null,null,null,null,null,null,null,null,null,null,null,null,null,null,null,null,null,null,null,null,null,null,null,null,null,null,null,null,null,null,null,null,null,null,null,null,null,null,null,"UPC ",null,null,null,null,null,null,null,null,null,null,null,null,null,null,null,null,null,null,null,null,null,null,"Limited Distribution Brand",null,null,null,null,null,null,null,null,"Inch",null,"LB - Pounds",null,null,null,null,"LB"]
[null,null,null,null,null,null,null,null,null,null,null,null,null,null,null,null,null,null,null,null,null,null,null,null,"BEVERAGE ITEMS ONLY",null,null,null,null,null,null,null,null,null,null,null,null,null,null,null,null,null,"Description",null,null,null,null,null,null,null,null,null,null,null,null,null,null,null,null,null,null,null,null,null,null,"National Brand",null,null,null,null,null,null,null,null,"Kilogram",null,"OZ - Ounces"]
["Quantity of Children",null,null,null,null,null,null,null,null,null,null,null,null,null,null,null,null,null,null,null,null,null,null,null,"Beverage Type Code",null,null,null,null,null,null,null,null,null,null,null,null,null,null,null,null,null,null,null,null,null,null,null,null,null,null,null,null,null,null,null,null,null,null,null,null,null,null,null,null,"Proprietary Licensed Brand",null,null,null,null,null,null,null,null,"Kit",null,"QT - Quart"]
[null,"Refer to tabs Qty of Children & Pckg Requirements",null,null,null,null,null,null,null,null,null,null,null,null,null,null,null,null,null,null,null,null,null,null,"Container Type Code",null,null,null,null,null,null,null,null,null,null,null,null,null,null,null,null,null,"UPC "]
["Layers per Pallet (HI)",null,null,null,null,null,null,"Cases per Layer (TI)",null,null,null,null,null,null,null,null,"Total TI/HI",null,{"$f":"E35*N35","v":0},null,null,null,null,null,"Alcohol %",null,null,null,null,null,null,null,null,null,null,null,null,null,null,null,null,null,"Description",null,null,null,null,null,null,null,null,null,null,null,null,null,null,null,null,null,null,null,null,null,null,"Proprietary Purchased Brand",null,null,null,null,null,null,null,null,"Pound",null,"YARD",null,null,null,null,"EA"]
[null,null,null,null,null,null,null,null,null,null,null,null,null,null,null,null,null,null,null,null,null,null,null,null,"% of Fruit Juice",null,null,null,null,null,null,null,null,null,null,null,null,null,null,null,null,null,null,null,null,null,null,null,null,null,null,null,null,null,null,null,null,null,null,null,null,null,null,null,null,"Store Brand",null,null,null,null,null,null,null,null,"Liter",null,"DOSA - Usage",null,null,null,null,"GLL"]
["Case Height",null,null,null,null,"Case Width",null,null,null,null,null,"Case Depth",null,null,null,null,"Case UOM",null,null,null,null,null,null,null,null,null,null,null,null,null,null,null,null,null,null,null,null,null,null,null,null,null,"UPC ",null,null,null,null,null,null,null,null,null,null,null,null,null,null,null,null,null,null,null,null,null,null,"Unbranded",null,null,null,null,null,null,null,null,"Milliliter",null,null,null,null,null,null,"HC"]
[null,null,null,null,null,null,null,null,null,null,null,null,null,null,null,null,null,null,null,null,null,null,null,null,"BONUS ITEMS ONLY",null,null,null,null,null,null,null,null,null,null,null,null,null,null,null,null,null,"Description",null,null,null,null,null,null,null,null,null,null,null,null,null,null,null,null,null,null,null,null,null,null,null,null,null,null,null,null,null,null,null,"Millimeter",null,null,null,null,null,null,"HS"]
["Supplier Case Weight",null,null,null,null,null,null,"Weight UOM",null,null,null,null,null,null,null,null,null,null,null,null,null,null,null,null,"Bonus Type",null,null,null,null,null,null,null,null,null,null,null,null,null,null,null,null,null,null,null,null,null,null,null,null,null,null,null,null,null,null,null,null,null,null,null,null,null,null,null,null,"Direct Supply Chain (DSD)",null,null,null,null,null,null,null,null,"Ounce",null,"Y",null,null,null,null,"LB"]
[null,null,null,null,null,null,null,null,null,null,null,null,null,null,null,null,null,null,null,null,null,null,null,null,null,null,null,null,null,null,null,null,null,null,null,null,null,null,null,null,null,null,"UPC ",null,null,null,null,null,null,null,null,null,null,null,null,null,null,null,null,null,null,null,null,null,null,"Indirect Channel (Warehoused Item)",null,null,null,null,null,null,null,null,"Piece",null,"N",null,null,null,null,"QT"]
["PALLETIZATION PLAN",null,null,null,"Inner",null,null,null,null,null,null,null,null,null,null,null,null,null,null,null,null,null,null,null,"Break Apart For Individual Sale",null,null,null,null,null,null,null,null,null,null,null,null,null,null,null,null,null,"Description",null,null,null,null,null,null,null,null,null,null,null,null,null,null,null,null,null,null,null,null,null,null,"Direct/Indirect Channel",null,null,null,null,null,null,null,null,"Pint",null,null,null,null,null,null,"YD"]
[null,null,null,null,null,null,null,null,null,null,"NOTE:  CVS requires prior authorization for any product with inner - contact: \ndcinbound@cvshealth.com",null,null,null,null,null,null,null,null,null,null,null,null,null,null,null,null,null,null,null,null,null,null,null,null,null,null,null,null,null,null,null,null,null,null,null,null,null,null,null,null,null,null,null,null,null,null,null,null,null,null,null,null,null,null,null,null,null,null,null,null,null,null,null,"Quart",null,null,null,null,null,null,"Z52"]
["Quantity of Children",null,null,null,null,null,null,null,null,null,null,null,null,null,null,null,null,null,null,null,null,null,null,null,"Regular Item UPC ",null,null,null,null,null,null,null,null,null,null,null,null,null,null,null,null,null,"UPC ",null,null,null,null,null,null,null,null,null,null,null,null,null,null,null,null,null,null,null,null,null,null,null,null,null,null,null,null,null,null,null,"Sheet",null,"Yes",null,null,null,null,"OZ"]
[null,"Refer to tabs: Volume & Qty of Children & Pckg Requirements",null,null,null,null,null,null,null,null,null,null,null,null,null,null,null,null,null,null,null,null,null,null,"Regular Item CVS Item Number",null,null,null,null,null,null,null,null,null,null,null,null,null,null,null,null,null,"Description",null,null,null,null,null,null,null,null,null,null,null,null,null,null,null,null,null,null,null,null,null,null,"Do Not Flavor",null,null,null,null,null,null,null,null,"Dose",null,"No"]
[null,null,null,null,null,null,null,null,null,null,null,null,null,null,null,null,null,null,null,null,null,null,null,null,null,null,null,null,null,null,null,null,null,null,null,null,null,null,null,null,null,null,null,null,null,null,null,null,null,null,null,null,null,null,null,null,null,null,null,null,null,null,null,null,null,"Flavor Pending New Items",null,null,null,null,null,null,null,null,"Yard"]
["Inner Height",null,null,null,null,"Inner Width",null,null,null,null,null,"Inner Depth",null,null,null,null,"Inner UOM",null,null,null,null,null,null,null,"GIFT CARD ITEMS ONLY",null,null,null,null,null,null,null,null,null,null,null,null,null,null,null,null,null,"UPC ",null,null,null,null,null,null,null,null,null,null,null,null,null,null,null,null,null,null,null,null,null,null,"Flavor To Primary of FC",null,null,null,null,null,null,null,null,"Usage (ex. Laundry)"]
[null,null,null,null,null,null,null,null,null,null,null,null,null,null,null,null,null,null,null,null,null,null,null,null,"Prepaid Card Type",null,null,null,null,null,null,null,null,null,null,null,null,null,null,null,null,null,"Description",null,null,null,null,null,null,null,null,null,null,null,null,null,null,null,null,null,null,null,null,null,null,"Flavor To Stand Alone Items",null,null,null,null,null,null,null,null,"Hundred Square Feet",null,"Yes"]
["Supplier Inner Gross Weight",null,null,null,null,null,null,null,null,"Weight UOM",null,null,null,null,null,null,null,null,null,null,null,null,null,null,"Prepaid Card Region Type",null,null,null,null,null,null,null,null,null,null,null,null,null,null,null,null,null,null,null,null,null,null,null,null,null,null,null,null,null,null,null,null,null,null,null,null,null,null,null,null,null,null,null,null,null,null,null,null,null,null,null,"No"]
[null,null,null,null,null,null,null,null,null,null,null,null,null,null,null,null,null,null,null,null,null,null,null,null,"Effective Start Date",null,null,null,null,null,null,null,null,"Effective End Date",null,null,null,null,null,null,null,null,"UPC ",null,null,null,null,null,null,null,null,null,null,null,null,null,null,null,null,null,null,null,null,null,null,null,null,null,null,null,null,null,null,null,null,null,null,null,null,null,null,"Standard"]
[null,null,null,null,null,null,null,null,null,null,null,null,null,null,null,null,null,null,null,null,null,null,null,null,"Prepaid Gift Card Variable",null,null,null,null,null,null,null,null,"OR",null,null,null,null,null,null,null,null,"Description",null,null,null,null,null,null,null,null,null,null,null,null,null,null,null,null,null,null,null,null,null,null,"PSE",null,null,null,null,null,null,null,null,"Refrigerated",null,null,null,null,null,null,"Bonus"]
["Inner Quantity",null,null,{"$f":"IF(E43<>\"\",E43,1)","v":1},null,"Case Quantity",null,null,null,null,{"$f":"E33","v":0},null,null,"Total PO Case Pack ",null,null,null,null,{"$f":"D51*K51","v":0},null,null,null,null,null,"Prepaid Gift Card Face Value$",null,null,null,null,null,null,null,null,null,null,null,null,null,null,null,null,null,null,null,null,null,null,null,null,null,null,null,null,null,null,null,null,null,null,null,null,null,null,null,null,"DXM",null,null,null,null,null,null,null,null,"Food Item Indicator",null,"All",null,null,null,null,"Beverage"]
[null,null,null,null,null,null,null,null,null,null,null,null,null,null,null,null,null,null,null,null,null,null,null,null,"Supplier Fee $",null,null,null,null,null,null,"Prepaid Gift Card CVS Fee $",null,null,null,null,null,null,null,"PLU",null,null,"UPC ",null,null,null,null,null,null,null,null,null,null,null,null,null,null,null,null,null,null,null,null,null,null,"NA",null,null,null,null,null,null,null,null,"Temperature Sensitive",null,"E=ML & PR Only",null,null,null,null,"Gift Card"]
["EACH IDENTIFICATION",null,null,null,null,null,null,null,null,null,null,null,null,null,null,null,null,null,null,null,null,null,null,null,"CVS Commission %",null,null,null,null,null,null,null,"Total Fee",null,null,{"$f":"AB52+AM52","v":0},null,null,null,null,null,null,"Description",null,null,null,null,null,null,null,null,null,null,null,null,null,null,null,null,null,null,null,null,null,null,null,null,null,null,null,null,null,null,null,"Chemical",null,"HI - Only",null,null,null,null,"PSE"]
["Consumer Size Quantity",null,null,null,null,null,null,"Consumer Size UOM",null,null,null,null,null,null,null,null,null,null,null,null,null,null,null,null,"Prepaid Wireless E911 Type",null,null,null,null,null,null,null,null,null,null,null,null,null,null,null,null,null,null,null,null,null,null,null,null,null,null,null,null,null,null,null,null,null,null,null,null,null,null,null,null,null,null,null,null,null,null,null,null,null,null,null,"I=HI & PR Only"]
[null,null,null,null,null,null,null,null,null,null,null,null,null,null,null,null,null,null,null,null,null,null,null,null,null,null,null,null,null,null,null,null,null,null,null,null,null,null,null,null,null,null,"UPC ",null,null,null,null,null,null,null,null,null,null,null,null,null,null,null,null,null,null,null,null,null,null,"FREE_FROM_GLUTEN",null,null,null,null,null,null,null,null,null,null,"M=Mainland Only",null,null,null,null,"1. Cycle Pre-Pack"]
["Item Height",null,null,null,null,"Item Width",null,null,null,null,null,null,"Item Depth",null,null,null,null,"UOM",null,null,null,null,null,null,null,null,null,null,null,null,null,null,null,null,null,null,null,null,null,null,null,null,"Description",null,null,null,null,null,null,null,null,null,null,null,null,null,null,null,null,null,null,null,null,null,null,"FREE_FROM_LACTOSE",null,null,null,null,null,null,null,null,"Pack or Inner Pack",null,"PR - Only",null,null,null,null,"2. Intended for POG"]
[null,null,null,null,null,null,null,null,null,null,null,null,null,null,null,null,null,null,null,null,null,null,null,null,"Place Photo In This Box",null,null,null,null,null,null,null,null,null,null,null,null,null,null,null,null,null,null,null,null,null,null,null,null,null,null,null,null,null,null,null,null,null,null,null,null,null,null,null,null,"REDUCED_LACTOSE",null,null,null,null,null,null,null,null,"Case ",null,"W=ML & HI Only",null,null,null,null,"3. Not for Plano"]
["Supplier Item Gross Weight",null,null,null,null,null,null,null,null,null,null,"Weight UOM",null,null,null,null,null,null,null,null,null,null,null,null,null,null,null,null,null,null,null,null,null,null,null,null,null,null,null,null,null,null,"UPC ",null,null,null,null,null,null,null,null,null,null,null,null,null,null,null,null,null,null,null,null,null,null,"FREE_FROM_MILK_PROTEIN",null,null,null,null,null,null,null,null,"Display Shipper ",null,null,null,null,null,null,"4. Off-Shelf"]
[null,null,null,null,null,null,null,null,null,null,null,null,null,null,null,null,null,null,null,null,null,null,null,null,null,null,null,null,null,null,null,null,null,null,null,null,null,null,null,null,null,null,"Description",null,null,null,null,null,null,null,null,null,null,null,null,null,null,null,null,null,null,null,null,null,null,"FREE_FROM_SOYA",null,null,null,null,null,null,null,null,"Pallet",null,null,null,null,null,null,"5. Promotional"]
["   Fit Choices",null,null,null,null,null,null,null,"Facts Box",null,null,null,null,null,null,null,null,null,null,null,null,null,null,null,null,null,null,null,null,null,null,null,null,null,null,null,null,null,null,null,null,null,null,null,null,null,null,null,null,null,null,null,null,null,null,null,null,null,null,null,null,null,null,null,null,"FREE_FROM_PEANUTS",null,null,null,null,null,null,null,null,null,null,null,null,null,null,null,"6. Seasonal"]
["Dietary Restrictions",null,null,null,"__________",null,null,null,null,null,null,null,null,null,null,null,null,null,null,null,null,null,null,null,null,null,null,null,null,null,null,null,null,null,null,null,null,null,null,null,null,null,"UPC ",null,null,null,null,null,null,null,null,null,null,null,null,null,null,null,null,null,null,null,null,null,null,"FREE_FROM_EGG"]
["Multi Pack Quantity",null,null,null,null,null,null,null,null,"Hazmat Flag",null,null,null,null,null,null,null,null,null,null,null,null,null,null,null,null,null,null,null,null,null,null,null,null,null,null,null,null,null,null,null,null,"Description",null,null,null,null,null,null,null,null,null,null,null,null,null,null,null,null,null,null,null,null,null,null,"FREE_FROM_SUGAR",null,null,null,null,null,null,null,null,"C = Candidate for the web"]
[null,null,null,null,null,null,null,null,null,null,null,null,null,null,null,null,null,null,null,null,null,null,null,null,null,null,null,null,null,null,null,null,null,null,null,null,null,null,null,null,null,null,null,null,null,null,null,null,null,null,null,null,null,null,null,null,null,null,null,null,null,null,null,null,null,"HEART HEALTHY",null,null,null,null,null,null,null,null,"N = Rejected for web ",null,null,null,null,null,null,"L = PPD Wireless Phone with Loaded Minutes"]
["Date Code Type",null,null,null,null,null,null,null,null,null,"Shelf Life in Weeks (non-readable)",null,null,null,null,null,null,null,null,null,null,null,null,null,null,null,null,null,null,null,null,null,null,null,null,null,null,null,null,null,null,null,"UPC ",null,null,null,null,null,null,null,null,null,null,null,null,null,null,null,null,null,null,null,null,null,null,"ORGANIC",null,null,null,null,null,null,null,null,"Y = Product is on the web"]
[null,null,null,null,null,null,null,null,null,null,null,null,null,null,null,null,null,null,null,null,null,null,null,null,null,null,null,null,null,null,null,null,null,null,null,null,null,null,null,null,null,null,"Description",null,null,null,null,null,null,null,null,null,null,null,null,null,null,null,null,null,null,null,null,null,null,"Each",null,null,null,null,null,null,null,null,null,null,null,null,null,null,null,"P = PPD Wireless Phone no Loaded Minutes"]
["Date Code Format",null,null,null,null,null,null,null,null,null,null,null,null,null,null,null,null,null,null,null,null,null,null,null,null,null,null,null,null,null,null,null,null,null,null,null,null,null,null,null,null,null,null,null,null,null,null,null,null,null,null,null,null,null,null,null,null,null,null,null,null,null,null,null,null,"Gallon",null,null,null,null,null,null,null,null,null,null,null,null,null,null,null,"W = PPD Wireless Minutes Card"]
[null,null,null,null,null,null,null,null,null,null,null,null,null,null,null,null,null,null,null,null,null,null,null,null,null,null,null,null,null,null,null,null,null,null,null,null,null,null,null,null,null,null,"UPC ",null,null,null,null,null,null,null,null,null,null,null,null,null,null,null,null,null,null,null,null,null,null,"Hundred Sq. Feet",null,null,null,null,null,null,null,null,"Base Unit or Each",null,null,null,null,null,null,"N = Not PPD Wireless"]
["Date Code Format Desc",null,null,null,null,null,null,null,null,null,null,null,null,null,null,null,null,null,null,null,null,null,null,null,null,null,null,null,null,null,null,null,null,null,null,null,null,null,null,null,null,null,"Description",null,null,null,null,null,null,null,null,null,null,null,null,null,null,null,null,null,null,null,null,null,null,"Hundred Count",null,null,null,null,null,null,null,null,"Case"]
[null,null,null,null,null,null,null,null,null,null,null,null,null,null,null,null,null,null,null,null,null,null,null,null,null,null,null,null,null,null,null,null,null,null,null,null,null,null,null,null,null,null,null,null,null,null,null,null,null,null,null,null,null,null,null,null,null,null,null,null,null,null,null,null,null,"Pack",null,null,null,null,null,null,null,null,"Pack or Inner Pack"]
["PRICING INFO",null,null,null,null,null,null,null,null,null,null,null,null,null,null,null,null,null,null,null,null,null,null,null,null,null,null,null,null,null,null,null,null,null,null,null,null,null,null,null,null,null,"UPC ",null,null,null,null,null,null,null,null,null,null,null,null,null,null,null,null,null,null,null,null,null,null,"Pound",null,null,null,null,null,null,null,null,"Display Shipper",null,null,null,null,null,null,"NDA"]
[null,null,null,null,null,null,null,null,null,null,null,null,null,null,null,null,null,null,null,null,null,null,null,null,null,null,null,null,null,null,null,null,null,null,null,null,null,null,null,null,null,null,"Description",null,null,null,null,null,null,null,null,null,null,null,null,null,null,null,null,null,null,null,null,null,null,null,null,null,null,null,null,null,null,null,null,null,null,null,null,null,null,"ANDA"]
["Mainland Cost ",null,null,null,null,"Hawaii Cost",null,null,null,null,null,null,null,"Puerto Rico Cost",null,null,null,null,null,null,null,null,null,null,null,null,null,null,null,null,null,null,null,null,null,null,null,null,null,null,null,null,null,null,null,null,null,null,null,null,null,null,null,null,null,null,null,null,null,null,null,null,null,null,null,"Quart",null,null,null,null,null,null,null,null,null,null,null,null,null,null,null,"Monograph"]
[null,null,null,null,null,null,null,null,null,null,null,null,null,null,null,null,null,null,null,null,null,null,null,null,null,null,null,null,null,null,null,null,null,null,null,null,null,null,null,null,null,null,"UPC ",null,null,null,null,null,null,null,null,null,null,null,null,null,null,null,null,null,null,null,null,null,null,"Usage (ex. Laundry)",null,null,null,null,null,null,null,null,null,null,null,null,null,null,null,"No Final Monograph"]
["MSRP Qty",null,null,null,null,"MSRP $",null,null,null,null,null,null,"Pre-Price",null,null,null,"Pre-Price $",null,null,null,null,null,null,null,null,null,null,null,null,null,null,null,null,null,null,null,null,null,null,null,null,null,"Description",null,null,null,null,null,null,null,null,null,null,null,null,null,null,null,null,null,null,null,null,null,null,"Yard",null,null,null,null,null,null,null,null,"CVS Pharmacy",null,null,null,null,null,null,"Homeopathic"]
[null,null,null,null,null,null,null,null,null,null,null,null,null,null,null,null,null,null,null,null,null,null,null,null,null,null,null,null,null,null,null,null,null,null,null,null,null,null,null,null,null,null,null,null,null,null,null,null,null,null,null,null,null,null,null,null,null,null,null,null,null,null,null,null,null,null,null,null,null,null,null,null,null,null,"CarePlus"]
["Fragrance Auction"]
[null,null,null,null,null,null,null,null,null,null,null,null,null,null,null,null,null,null,null,null,null,null,null,null,null,null,null,null,null,null,null,null,null,null,null,null,null,null,null,null,null,null,null,null,null,null,null,null,null,null,null,null,null,null,null,null,null,null,null,null,null,null,null,null,null,null,null,null,null,null,null,null,null,null,"CVS.com"]
[null,null,null,null,null,null,null,null,null,null,null,null,null,null,null,null,null,null,null,null,null,null,null,null,null,null,null,null,null,null,null,null,null,null,null,null,null,null,null,null,null,null,null,null,null,null,null,null,null,null,null,null,null,null,null,null,null,null,null,null,null,null,null,null,null,"None",null,null,null,null,null,null,null,null,null,null,null,null,null,null,null,"Size To Existing"]
[null,null,null,null,null,null,null,null,null,null,null,null,null,null,null,null,null,null,null,null,null,null,null,null,null,null,null,null,null,null,null,null,null,null,null,null,null,null,null,null,null,null,null,null,null,null,null,null,null,null,null,null,null,null,null,null,null,null,null,null,null,null,null,null,null,"Nutrition Facts",null,null,null,null,null,null,null,null,"ACOUSTO_MAGNETIC_EAS_TAG",null,null,null,null,null,null,"New Size Group"]
[null,null,null,null,null,null,null,null,null,null,null,null,null,null,null,null,null,null,null,null,null,null,null,null,null,null,null,null,null,null,null,null,null,null,null,null,null,null,null,null,null,null,null,null,null,null,null,null,null,null,null,null,null,null,null,null,null,null,null,null,null,null,null,null,null,"Supplemental Facts",null,null,null,null,null,null,null,null,"ELECTRO_MAGNETIC_EAS_TAG"]
[null,null,null,null,null,null,null,null,null,null,null,null,null,null,null,null,null,null,null,null,null,null,null,null,null,null,null,null,null,null,null,null,null,null,null,null,null,null,null,null,null,null,null,null,null,null,null,null,null,null,null,null,null,null,null,null,null,null,null,null,null,null,null,null,null,"Drug Facts",null,null,null,null,null,null,null,null,"INK_OR_DYE_EAS_TAG",null,null,null,null,null,null,"Link To Existing"]
[null,null,null,null,null,null,null,null,null,null,null,null,null,null,null,null,null,null,null,null,null,null,null,null,null,null,null,null,null,null,null,null,null,null,null,null,null,null,null,null,null,null,null,null,null,null,null,null,null,null,null,null,null,null,null,null,null,null,null,null,null,null,null,null,null,null,null,null,null,null,null,null,null,null,"MICROWAVE_EAS_TAG",null,null,null,null,null,null,"New Brand Relationship Group"]
[null,null,null,null,null,null,null,null,null,null,null,null,null,null,null,null,null,null,null,null,null,null,null,null,null,null,null,null,null,null,null,null,null,null,null,null,null,null,null,null,null,null,null,null,null,null,null,null,null,null,null,null,null,null,null,null,null,null,null,null,null,null,null,null,null,null,null,null,null,null,null,null,null,null,"RADIO_FREQUENCY_EAS_TAG"]
[null,null,null,null,null,null,null,null,null,null,null,null,null,null,null,null,null,null,null,null,null,null,null,null,null,null,null,null,null,null,null,null,null,null,null,null,null,null,null,null,null,null,null,null,null,null,null,null,null,null,null,null,null,null,null,null,null,null,null,null,null,null,null,null,null,"A = Wine - Fruit Varietals",null,null,null,null,null,null,null,null,null,null,null,null,null,null,null,"Select Payment Method","N/A"]
[null,null,null,null,null,null,null,null,null,null,null,null,null,null,null,null,null,null,null,null,null,null,null,null,null,null,null,null,null,null,null,null,null,null,null,null,null,null,null,null,null,null,null,null,null,null,null,null,null,null,null,null,null,null,null,null,null,null,null,null,null,null,null,null,null,"B = Ale/Beer/Malt",null,null,null,null,null,null,null,null,"Rotating out of stock (due to POG change)",null,null,null,null,null,null,"WRITE OFF","Returnable-Not Billable"]
[null,null,null,null,null,null,null,null,null,null,null,null,null,null,null,null,null,null,null,null,null,null,null,null,null,null,null,null,null,null,null,null,null,null,null,null,null,null,null,null,null,null,null,null,null,null,null,null,null,null,null,null,null,null,null,null,null,null,null,null,null,null,null,null,null,"C = Wine Cooler",null,null,null,null,null,null,null,null,"Stocking levels (out of stock)",null,null,null,null,null,null,"DEDUCT","Returnable"]
[null,null,null,null,null,null,null,null,null,null,null,null,null,null,null,null,null,null,null,null,null,null,null,null,null,null,null,null,null,null,null,null,null,null,null,null,null,null,null,null,null,null,null,null,null,null,null,null,null,null,null,null,null,null,null,null,null,null,null,null,null,null,null,null,null,"D = Wine Non Fortified",null,null,null,null,null,null,null,null,"Moving to private label",null,null,null,null,null,null,"ALLOWANCE"]
[null,null,null,null,null,null,null,null,null,null,null,null,null,null,null,null,null,null,null,null,null,null,"Description ",null,null,null,null,null,null,null,null,null,null,null,null,null,null,null,null,null,null,null,null,null,null,null,null,null,null,null,null,null,null,null,null,null,null,null,null,null,null,null,null,null,null,"E = Vegetable Juice",null,null,null,null,null,null,null,null,"Inventory movement (ship out of DC)",null,null,null,null,null,null,"CREDIT MEMO"]
[null,null,null,null,null,null,null,null,null,null,null,null,null,null,null,null,null,null,null,null,null,null,null,null,null,null,null,null,null,null,null,null,null,null,null,null,null,null,null,null,null,null,null,null,null,null,null,null,null,null,null,null,null,null,null,null,null,null,null,null,null,null,null,null,null,"F = 100% Fruit Juice",null,null,null,null,null,null,null,null,null,null,null,null,null,null,null,"CHECK"]
[null,null,null,null,null,null,null,null,null,null,null,null,null,null,null,null,null,null,null,null,null,null,null,null,null,null,null,null,null,null,null,null,null,null,null,null,null,null,null,null,null,null,null,null,null,null,null,null,null,null,null,null,null,null,null,null,null,null,null,null,null,null,null,null,null,"G = 10% - 99% Fruit Juice"]
[null,null,null,null,null,null,null,null,null,null,null,null,null,null,null,null,null,null,null,null,null,null,null,null,null,null,null,null,null,null,null,null,null,null,null,null,null,null,null,null,null,null,null,null,null,null,null,null,null,null,null,null,null,null,null,null,null,null,null,null,null,null,null,null,null,"H = Healthy Milkshakes",null,null,null,null,null,null,null,null,"0~4"]
[null,null,null,null,null,null,null,null,null,null,null,null,null,null,null,null,null,null,null,null,null,null,null,null,null,null,null,null,null,null,null,null,null,null,null,null,null,null,null,null,null,null,null,null,null,null,null,null,null,null,null,null,null,null,null,null,null,null,null,null,null,null,null,null,null,"K = Fortified Wine",null,null,null,null,null,null,null,null,"4~6"]
[null,null,null,null,null,null,null,null,null,null,null,null,null,null,null,null,null,null,null,null,null,null,null,null,null,null,null,null,null,null,null,null,null,null,null,null,null,null,null,null,null,null,null,null,null,null,null,null,null,null,null,null,null,null,null,null,null,null,null,null,null,null,null,null,null,"L = Spirits - Unmixed",null,null,null,null,null,null,null,null,"6~12"]
[null,null,null,null,null,null,null,null,null,null,null,null,null,null,null,null,null,null,null,null,null,null,null,null,null,null,null,null,null,null,null,null,null,null,null,null,null,null,null,null,null,null,null,null,null,null,null,null,null,null,null,null,null,null,null,null,null,null,null,null,null,null,null,null,null,"M = Milk Unflavored",null,null,null,null,null,null,null,null,"12~99"]
[null,null,null,null,null,null,null,null,null,null,null,null,null,null,null,null,null,null,null,null,null,null,null,null,null,null,null,null,null,null,null,null,null,null,null,null,null,null,null,null,null,null,null,null,null,null,null,null,null,null,null,null,null,null,null,null,null,null,null,null,null,null,null,null,null,"N = Milk Flavored",null,null,null,null,null,null,null,null,null,null,"C = Cardboard"]
[null,null,null,null,null,null,null,null,null,null,null,null,null,null,null,null,null,null,null,null,null,null,null,null,null,null,null,null,null,null,null,null,null,null,null,null,null,null,null,null,null,null,null,null,null,null,null,null,null,null,null,null,null,null,null,null,null,null,null,null,null,null,null,null,null,"R = Spirits Ready To Drink",null,null,null,null,null,null,null,null,null,null,"G = Glass"]
[null,null,null,null,null,null,null,null,null,null,null,null,null,null,null,null,null,null,null,null,null,null,null,null,null,null,null,null,null,null,null,null,null,null,null,null,null,null,null,null,null,null,null,null,null,null,null,null,null,null,null,null,null,null,null,null,null,null,null,null,null,null,null,null,null,"S = Soft Drink - Carbon",null,null,null,null,null,null,null,null,"Yantian $1.86",null,"H = High Density Plastic"]
[null,null,null,null,null,null,null,null,null,null,null,null,null,null,null,null,null,null,null,null,null,null,null,null,null,null,null,null,null,null,null,null,null,null,null,null,null,null,null,null,null,null,null,null,null,null,null,null,null,null,null,null,null,null,null,null,null,null,null,null,null,null,null,null,null,"T =  Soft Drink Non-Carbon",null,null,null,null,null,null,null,null,"Shekou $1.89",null,"M = Metal"]
[null,null,null,null,null,null,null,null,null,null,null,null,null,null,null,null,null,null,null,null,null,null,null,null,null,null,null,null,null,null,null,null,null,null,null,null,null,null,null,null,null,null,null,null,null,null,null,null,null,null,null,null,null,null,null,null,null,null,null,null,null,null,null,null,null,"U = Water Flavored, Not Sweetened",null,null,null,null,null,null,null,null,"Hong Kong $1.86",null,"P = Plastics"]
[null,null,null,null,null,null,null,null,null,null,null,null,null,null,null,null,null,null,null,null,null,null,null,null,null,null,null,null,null,null,null,null,null,null,null,null,null,null,null,null,null,null,null,null,null,null,null,null,null,null,null,null,null,null,null,null,null,null,null,null,null,null,null,null,null,"V = Water Carbonated",null,null,null,null,null,null,null,null,"Ningbo $1.86"]
[null,null,null,null,null,null,null,null,null,null,null,null,null,null,null,null,null,null,null,null,null,null,null,null,null,null,null,null,null,null,null,null,null,null,null,null,null,null,null,null,null,null,null,null,null,null,null,null,null,null,null,null,null,null,null,null,null,null,null,null,null,null,null,null,null,"W = Water Plain",null,null,null,null,null,null,null,null,"Shanghai $1.90"]
[null,null,null,null,null,null,null,null,null,null,null,null,null,null,null,null,null,null,null,null,null,null,null,null,null,null,null,null,null,null,null,null,null,null,null,null,null,null,null,null,null,null,null,null,null,null,null,null,null,null,null,null,null,null,null,null,null,null,null,null,null,null,null,null,null,"Y = Water Flavored, Sweetened",null,null,null,null,null,null,null,null,"Xiamen $1.91"]
[null,null,null,null,null,null,null,null,null,null,null,null,null,null,null,null,null,null,null,null,null,null,null,null,null,null,null,null,null,null,null,null,null,null,null,null,null,null,null,null,null,null,null,null,null,null,null,null,null,null,null,null,null,null,null,null,null,null,null,null,null,null,null,null,null,"Z = Garnishes/Mixers",null,null,null,null,null,null,null,null,"Qingdao $1.87",null,"None"]
[null,null,null,null,null,null,null,null,null,null,null,null,null,null,null,null,null,null,null,null,null,null,null,null,null,null,null,null,null,null,null,null,null,null,null,null,null,null,null,null,null,null,null,null,null,null,null,null,null,null,null,null,null,null,null,null,null,null,null,null,null,null,null,null,null,null,null,null,null,null,null,null,null,null,"Fuzhou $1.95",null,"Heart Healthy"]
[null,null,null,null,null,null,null,null,null,null,null,null,null,null,null,null,null,null,null,null,null,null,null,null,null,null,null,null,null,null,null,null,null,null,null,null,null,null,null,null,null,null,null,null,null,null,null,null,null,null,null,null,null,null,null,null,null,null,null,null,null,null,null,null,null,null,null,null,null,null,null,null,null,null,"Dalian $1.92",null,"Sugar Free"]
[null,null,null,null,null,null,null,null,null,null,null,null,null,null,null,null,null,null,null,null,null,null,null,null,null,null,null,null,null,null,null,null,null,null,null,null,null,null,null,null,null,null,null,null,null,null,null,null,null,null,null,null,null,null,null,null,null,null,null,null,null,null,null,null,null,null,null,null,null,null,null,null,null,null,"Xingang $1.91",null,"Gluten Free"]
[null,null,null,null,null,null,null,null,null,null,null,null,null,null,null,null,null,null,null,null,null,null,null,null,null,null,null,null,null,null,null,null,null,null,null,null,null,null,null,null,null,null,null,null,null,null,null,null,null,null,null,null,null,null,null,null,null,null,null,null,null,null,null,null,null,null,null,null,null,null,null,null,null,null,"Nanjing $2.02",null,"Organic"]
[null,null,null,null,null,null,null,null,null,null,null,null,null,null,null,null,null,null,null,null,null,null,null,null,null,null,null,null,null,null,null,null,null,null,null,null,null,null,null,null,null,null,null,null,null,null,null,null,null,null,null,null,null,null,null,null,null,null,null,null,null,null,null,null,null,null,null,null,null,null,null,null,null,null,"India $2.17",null,"Non-GMO"]
[null,null,null,null,null,null,null,null,null,null,null,null,null,null,null,null,null,null,null,null,null,null,null,null,null,null,null,null,null,null,null,null,null,null,null,null,null,null,null,null,null,null,null,null,null,null,null,null,null,null,null,null,null,null,null,null,null,null,null,null,null,null,null,null,null,null,null,null,null,null,null,null,null,null,"Indonesia $1.99",null,"Good Source of Protein"]
[null,null,null,null,null,null,null,null,null,null,null,null,null,null,null,null,null,null,null,null,null,null,null,null,null,null,null,null,null,null,null,null,null,null,null,null,null,null,null,null,null,null,null,null,null,null,null,null,null,null,null,null,null,null,null,null,null,null,null,null,null,null,null,null,null,"Assortment",null,null,null,null,null,null,null,null,"Korea $1.86"]
[null,null,null,null,null,null,null,null,null,null,null,null,null,null,null,null,null,null,null,null,null,null,null,null,null,null,null,null,null,null,null,null,null,null,null,null,null,null,null,null,null,null,null,null,null,null,null,null,null,null,null,null,null,null,null,null,null,null,null,null,null,null,null,null,null,"Box",null,null,null,null,null,null,null,null,"Malaysia $1.98"]
[null,null,null,null,null,null,null,null,null,null,null,null,null,null,null,null,null,null,null,null,null,null,null,null,null,null,null,null,null,null,null,null,null,null,null,null,null,null,null,null,null,null,null,null,null,null,null,null,null,null,null,null,null,null,null,null,null,null,null,null,null,null,null,null,null,"Case",null,null,null,null,null,null,null,null,"Pakistan $2.13"]
[null,null,null,null,null,null,null,null,null,null,null,null,null,null,null,null,null,null,null,null,null,null,null,null,null,null,null,null,null,null,null,null,null,null,null,null,null,null,null,null,null,null,null,null,null,null,null,null,null,null,null,null,null,null,null,null,null,null,null,null,null,null,null,null,null,"Count",null,null,null,null,null,null,null,null,"Taiwan $1.94"]
[null,null,null,null,null,null,null,null,null,null,null,null,null,null,null,null,null,null,null,null,null,null,null,null,null,null,null,null,null,null,null,null,null,null,null,null,null,null,null,null,null,null,null,null,null,null,null,null,null,null,null,null,null,null,null,null,null,null,null,null,null,null,null,null,null,"Display",null,null,null,null,null,null,null,null,"Thailand $1.98"]
[null,null,null,null,null,null,null,null,null,null,null,null,null,null,null,null,null,null,null,null,null,null,null,null,null,null,null,null,null,null,null,null,null,null,null,null,null,null,null,null,null,null,null,null,null,null,null,null,null,null,null,null,null,null,null,null,null,null,null,null,null,null,null,null,null,"Dose",null,null,null,null,null,null,null,null,"Vietnam $1.96"]
[null,null,null,null,null,null,null,null,null,null,null,null,null,null,null,null,null,null,null,null,null,null,null,null,null,null,null,null,null,null,null,null,null,null,null,null,null,null,null,null,null,null,null,null,null,null,null,null,null,null,null,null,null,null,null,null,null,null,null,null,null,null,null,null,null,"Dozen"]
[null,null,null,null,null,null,null,null,null,null,null,null,null,null,null,null,null,null,null,null,null,null,null,null,null,null,null,null,null,null,null,null,null,null,null,null,null,null,null,null,null,null,null,null,null,null,null,null,null,null,null,null,null,null,null,null,null,null,null,null,null,null,null,null,null,"Each",null,null,null,null,null,null,null,null,"Does Not expire"]
[null,null,null,null,null,null,null,null,null,null,null,null,null,null,null,null,null,null,null,null,null,null,null,null,null,null,null,null,null,null,null,null,null,null,null,null,null,null,null,null,null,null,null,null,null,null,null,null,null,null,null,null,null,null,null,null,null,null,null,null,null,null,null,null,null,"Feet",null,null,null,null,null,null,null,null,"Expiration Date Not Readable"]
[null,null,null,null,null,null,null,null,null,null,null,null,null,null,null,null,null,null,null,null,null,null,null,null,null,null,null,null,null,null,null,null,null,null,null,null,null,null,null,null,null,null,null,null,null,null,null,null,null,null,null,null,null,null,null,null,null,null,null,null,null,null,null,null,null,"Gallon",null,null,null,null,null,null,null,null,"Expiration Date Readable"]
[null,null,null,null,null,null,null,null,null,null,null,null,null,null,null,null,null,null,null,null,null,null,null,null,null,null,null,null,null,null,null,null,null,null,null,null,null,null,null,null,null,null,null,null,null,null,null,null,null,null,null,null,null,null,null,null,null,null,null,null,null,null,null,null,null,"Gram",null,null,null,null,null,null,null,null,"Production Date Not Readable"]
[null,null,null,null,null,null,null,null,null,null,null,null,null,null,null,null,null,null,null,null,null,null,null,null,null,null,null,null,null,null,null,null,null,null,null,null,null,null,null,null,null,null,null,null,null,null,null,null,null,null,null,null,null,null,null,null,null,null,null,null,null,null,null,null,null,"Inches",null,null,null,null,null,null,null,null,"Production Date Readable"]
[null,null,null,null,null,null,null,null,null,null,null,null,null,null,null,null,null,null,null,null,null,null,null,null,null,null,null,null,null,null,null,null,null,null,null,null,null,null,null,null,null,null,null,null,null,null,null,null,null,null,null,null,null,null,null,null,null,null,null,null,null,null,null,null,null,"Kit"]
[null,null,null,null,null,null,null,null,null,null,null,null,null,null,null,null,null,null,null,null,null,null,null,null,null,null,null,null,null,null,null,null,null,null,null,null,null,null,null,null,null,null,null,null,null,null,null,null,null,null,null,null,null,null,null,null,null,null,null,null,null,null,null,null,null,"Liter"]
[null,null,null,null,null,null,null,null,null,null,null,null,null,null,null,null,null,null,null,null,null,null,null,null,null,null,null,null,null,null,null,null,null,null,null,null,null,null,null,null,null,null,null,null,null,null,null,null,null,null,null,null,null,null,null,null,null,null,null,null,null,null,null,null,null,"Milliliter",null,null,null,null,null,null,null,null,"100 Sq. Feet"]
[null,null,null,null,null,null,null,null,null,null,null,null,null,null,null,null,null,null,null,null,null,null,null,null,null,null,null,null,null,null,null,null,null,null,null,null,null,null,null,null,null,null,null,null,null,null,null,null,null,null,null,null,null,null,null,null,null,null,null,null,null,null,null,null,null,"Millimeter",null,null,null,null,null,null,null,null,"100 Count"]
[null,null,null,null,null,null,null,null,null,null,null,null,null,null,null,null,null,null,null,null,null,null,null,null,null,null,null,null,null,null,null,null,null,null,null,null,null,null,null,null,null,null,null,null,null,null,null,null,null,null,null,null,null,null,null,null,null,null,null,null,null,null,null,null,null,"Ounces ",null,null,null,null,null,null,null,null,"Assortment"]
[null,null,null,null,null,null,null,null,null,null,null,null,null,null,null,null,null,null,null,null,null,null,null,null,null,null,null,null,null,null,null,null,null,null,null,null,null,null,null,null,null,null,null,null,null,null,null,null,null,null,null,null,null,null,null,null,null,null,null,null,null,null,null,null,null,"Pack",null,null,null,null,null,null,null,null,"Box"]
[null,null,null,null,null,null,null,null,null,null,null,null,null,null,null,null,null,null,null,null,null,null,null,null,null,null,null,null,null,null,null,null,null,null,null,null,null,null,null,null,null,null,null,null,null,null,null,null,null,null,null,null,null,null,null,null,null,null,null,null,null,null,null,null,null,"Piece",null,null,null,null,null,null,null,null,"Case"]
[null,null,null,null,null,null,null,null,null,null,null,null,null,null,null,null,null,null,null,null,null,null,null,null,null,null,null,null,null,null,null,null,null,null,null,null,null,null,null,null,null,null,null,null,null,null,null,null,null,null,null,null,null,null,null,null,null,null,null,null,null,null,null,null,null,"Pint",null,null,null,null,null,null,null,null,"Cubic Feet"]
[null,null,null,null,null,null,null,null,null,null,null,null,null,null,null,null,null,null,null,null,null,null,null,null,null,null,null,null,null,null,null,null,null,null,null,null,null,null,null,null,null,null,null,null,null,null,null,null,null,null,null,null,null,null,null,null,null,null,null,null,null,null,null,null,null,"Pound",null,null,null,null,null,null,null,null,"Count"]
[null,null,null,null,null,null,null,null,null,null,null,null,null,null,null,null,null,null,null,null,null,null,null,null,null,null,null,null,null,null,null,null,null,null,null,null,null,null,null,null,null,null,null,null,null,null,null,null,null,null,null,null,null,null,null,null,null,null,null,null,null,null,null,null,null,"Quart",null,null,null,null,null,null,null,null,"Display"]
[null,null,null,null,null,null,null,null,null,null,null,null,null,null,null,null,null,null,null,null,null,null,null,null,null,null,null,null,null,null,null,null,null,null,null,null,null,null,null,null,null,null,null,null,null,null,null,null,null,null,null,null,null,null,null,null,null,null,null,null,null,null,null,null,null,"Set ",null,null,null,null,null,null,null,null,"Dose"]
[null,null,null,null,null,null,null,null,null,null,null,null,null,null,null,null,null,null,null,null,null,null,null,null,null,null,null,null,null,null,null,null,null,null,null,null,null,null,null,null,null,null,null,null,null,null,null,null,null,null,null,null,null,null,null,null,null,null,null,null,null,null,null,null,null,"Yard",null,null,null,null,null,null,null,null,"Dozen "]
[null,null,null,null,null,null,null,null,null,null,null,null,null,null,null,null,null,null,null,null,null,null,null,null,null,null,null,null,null,null,null,null,null,null,null,null,null,null,null,null,null,null,null,null,null,null,null,null,null,null,null,null,null,null,null,null,null,null,null,null,null,null,null,null,null,null,null,null,null,null,null,null,null,null,"Each"]
[null,null,null,null,null,null,null,null,null,null,null,null,null,null,null,null,null,null,null,null,null,null,null,null,null,null,null,null,null,null,null,null,null,null,null,null,null,null,null,null,null,null,null,null,null,null,null,null,null,null,null,null,null,null,null,null,null,null,null,null,null,null,null,null,null,null,null,null,null,null,null,null,null,null,"Linear Foot"]
[null,null,null,null,null,null,null,null,null,null,null,null,null,null,null,null,null,null,null,null,null,null,null,null,null,null,null,null,null,null,null,null,null,null,null,null,null,null,null,null,null,null,null,null,null,null,null,null,null,null,null,null,null,null,null,null,null,null,null,null,null,null,null,null,null,"Local",null,null,null,null,null,null,null,null,"Feet"]
[null,null,null,null,null,null,null,null,null,null,null,null,null,null,null,null,null,null,null,null,null,null,null,null,null,null,null,null,null,null,null,null,null,null,null,null,null,null,null,null,null,null,null,null,null,null,null,null,null,null,null,null,null,null,null,null,null,null,null,null,null,null,null,null,null,"National",null,null,null,null,null,null,null,null,"Gallon"]
[null,null,null,null,null,null,null,null,null,null,null,null,null,null,null,null,null,null,null,null,null,null,null,null,null,null,null,null,null,null,null,null,null,null,null,null,null,null,null,null,null,null,null,null,null,null,null,null,null,null,null,null,null,null,null,null,null,null,null,null,null,null,null,null,null,null,null,null,null,null,null,null,null,null,"Gram"]
[null,null,null,null,null,null,null,null,null,null,null,null,null,null,null,null,null,null,null,null,null,null,null,null,null,null,null,null,null,null,null,null,null,null,null,null,null,null,null,null,null,null,null,null,null,null,null,null,null,null,null,null,null,null,null,null,null,null,null,null,null,null,null,null,null,null,null,null,null,null,null,null,null,null,"Inches"]
[null,null,null,null,null,null,null,null,null,null,null,null,null,null,null,null,null,null,null,null,null,null,null,null,null,null,null,null,null,null,null,null,null,null,null,null,null,null,null,null,null,null,null,null,null,null,null,null,null,null,null,null,null,null,null,null,null,null,null,null,null,null,null,null,null,null,null,null,null,null,null,null,null,null,"Kilogram"]
[null,null,null,null,null,null,null,null,null,null,null,null,null,null,null,null,null,null,null,null,null,null,null,null,null,null,null,null,null,null,null,null,null,null,null,null,null,null,null,null,null,null,null,null,null,null,null,null,null,null,null,null,null,null,null,null,null,null,null,null,null,null,null,null,null,"Feet",null,null,null,null,null,null,null,null,"Kit"]
[null,null,null,null,null,null,null,null,null,null,null,null,null,null,null,null,null,null,null,null,null,null,null,null,null,null,null,null,null,null,null,null,null,null,null,null,null,null,null,null,null,null,null,null,null,null,null,null,null,null,null,null,null,null,null,null,null,null,null,null,null,null,null,null,null,"Inch",null,null,null,null,null,null,null,null,"Pounds"]
[null,null,null,null,null,null,null,null,null,null,null,null,null,null,null,null,null,null,null,null,null,null,null,null,null,null,null,null,null,null,null,null,null,null,null,null,null,null,null,null,null,null,null,null,null,null,null,null,null,null,null,null,null,null,null,null,null,null,null,null,null,null,null,null,null,"Millimeter",null,null,null,null,null,null,null,null,"Liter"]
[null,null,null,null,null,null,null,null,null,null,null,null,null,null,null,null,null,null,null,null,null,null,null,null,null,null,null,null,null,null,null,null,null,null,null,null,null,null,null,null,null,null,null,null,null,null,null,null,null,null,null,null,null,null,null,null,null,null,null,null,null,null,null,null,null,"Yard",null,null,null,null,null,null,null,null,"Milliliter"]
[null,null,null,null,null,null,null,null,null,null,null,null,null,null,null,null,null,null,null,null,null,null,null,null,null,null,null,null,null,null,null,null,null,null,null,null,null,null,null,null,null,null,null,null,null,null,null,null,null,null,null,null,null,null,null,null,null,null,null,null,null,null,null,null,null,null,null,null,null,null,null,null,null,null,"Millimeter"]
[null,null,null,null,null,null,null,null,null,null,null,null,null,null,null,null,null,null,null,null,null,null,null,null,null,null,null,null,null,null,null,null,null,null,null,null,null,null,null,null,null,null,null,null,null,null,null,null,null,null,null,null,null,null,null,null,null,null,null,null,null,null,null,null,null,null,null,null,null,null,null,null,null,null,"Ounces"]
[null,null,null,null,null,null,null,null,null,null,null,null,null,null,null,null,null,null,null,null,null,null,null,null,null,null,null,null,null,null,null,null,null,null,null,null,null,null,null,null,null,null,null,null,null,null,null,null,null,null,null,null,null,null,null,null,null,null,null,null,null,null,null,null,null,"Gram",null,null,null,null,null,null,null,null,"Piece"]
[null,null,null,null,null,null,null,null,null,null,null,null,null,null,null,null,null,null,null,null,null,null,null,null,null,null,null,null,null,null,null,null,null,null,null,null,null,null,null,null,null,null,null,null,null,null,null,null,null,null,null,null,null,null,null,null,null,null,null,null,null,null,null,null,null,"Kilogram",null,null,null,null,null,null,null,null,"Pack"]
[null,null,null,null,null,null,null,null,null,null,null,null,null,null,null,null,null,null,null,null,null,null,null,null,null,null,null,null,null,null,null,null,null,null,null,null,null,null,null,null,null,null,null,null,null,null,null,null,null,null,null,null,null,null,null,null,null,null,null,null,null,null,null,null,null,"Pound",null,null,null,null,null,null,null,null,"Pint"]
[null,null,null,null,null,null,null,null,null,null,null,null,null,null,null,null,null,null,null,null,null,null,null,null,null,null,null,null,null,null,null,null,null,null,null,null,null,null,null,null,null,null,null,null,null,null,null,null,null,null,null,null,null,null,null,null,null,null,null,null,null,null,null,null,null,"Ounces",null,null,null,null,null,null,null,null,"Quart"]
[null,null,null,null,null,null,null,null,null,null,null,null,null,null,null,null,null,null,null,null,null,null,null,null,null,null,null,null,null,null,null,null,null,null,null,null,null,null,null,null,null,null,null,null,null,null,null,null,null,null,null,null,null,null,null,null,null,null,null,null,null,null,null,null,null,null,null,null,null,null,null,null,null,null,"Square Foot"]
[null,null,null,null,null,null,null,null,null,null,null,null,null,null,null,null,null,null,null,null,null,null,null,null,null,null,null,null,null,null,null,null,null,null,null,null,null,null,null,null,null,null,null,null,null,null,null,null,null,null,null,null,null,null,null,null,null,null,null,null,null,null,null,null,null,"Corrugated",null,null,null,null,null,null,null,null,"Sheet"]
[null,null,null,null,null,null,null,null,null,null,null,null,null,null,null,null,null,null,null,null,null,null,null,null,null,null,null,null,null,null,null,null,null,null,null,null,null,null,null,null,null,null,null,null,null,null,null,null,null,null,null,null,null,null,null,null,null,null,null,null,null,null,null,null,null,"Polybag",null,null,null,null,null,null,null,null,"Yard"]
[null,null,null,null,null,null,null,null,null,null,null,null,null,null,null,null,null,null,null,null,null,null,null,null,null,null,null,null,null,null,null,null,null,null,null,null,null,null,null,null,null,null,null,null,null,null,null,null,null,null,null,null,null,null,null,null,null,null,null,null,null,null,null,null,null,"Both",null,null,null,null,null,null,null,null,"Usage"]
[null,null,null,null,null,null,null,null,null,null,null,null,null,null,null,null,null,null,null,null,null,null,null,null,null,null,null,null,null,null,null,null,null,null,null,null,null,null,null,null,null,null,null,null,null,null,null,null,null,null,null,null,null,null,null,null,null,null,null,null,null,null,null,null,null,null,null,null,null,null,null,null,null,null,"Set"]
[]
[]
[null,null,null,null,null,null,null,null,null,null,null,null,null,null,null,null,null,null,null,null,null,null,null,null,null,null,null,null,null,null,null,null,null,null,null,null,null,null,null,null,null,null,null,null,null,null,null,null,null,null,null,null,null,null,null,null,null,null,null,null,null,null,null,null,"Select payment type",null,null,"Select Payment Type","N/A"]
[null,null,null,null,null,null,null,null,null,null,null,null,null,null,null,null,null,null,null,null,null,null,null,null,null,null,null,null,null,null,null,null,null,null,null,null,null,null,null,null,null,null,null,null,null,null,null,null,null,null,null,null,null,null,null,null,null,null,null,null,null,null,null,null,"Select Payment Type",null,null,"Select Payment Type","N/A"]
[null,null,null,null,null,null,null,null,null,null,null,null,null,null,null,null,null,null,null,null,null,null,null,null,null,null,null,null,null,null,null,null,null,null,null,null,null,null,null,null,null,null,null,null,null,null,null,null,null,null,null,null,null,null,null,null,null,null,null,null,null,null,null,null,"WRITE OFF",null,null,"WRITE OFF","3 - Returnable - Not Billable"]
[null,null,null,null,null,null,null,null,null,null,null,null,null,null,null,null,null,null,null,null,null,null,null,null,null,null,null,null,null,null,null,null,null,null,null,null,null,null,null,null,null,null,null,null,null,null,null,null,null,null,null,null,null,null,null,null,null,null,null,null,null,null,null,null,"DEDUCT",null,null,"WRITE OFF","4 - Non - Returnable"]
[null,null,null,null,null,null,null,null,null,null,null,null,null,null,null,null,null,null,null,null,null,null,null,null,null,null,null,null,null,null,null,null,null,null,null,null,null,null,null,null,null,null,null,null,null,null,null,null,null,null,null,null,null,null,null,null,null,null,null,null,null,null,null,null,"ALLOWANCE",null,null,"DEDUCT","2 - Returnable"]
[null,null,null,null,null,null,null,null,null,null,null,null,null,null,null,null,null,null,null,null,null,null,null,null,null,null,null,null,null,null,null,null,null,null,null,null,null,null,null,null,null,null,null,null,null,null,null,null,null,null,null,null,null,null,null,null,null,null,null,null,null,null,null,null,"CREDIT MEMO",null,null,"DEDUCT","5 - Non Returnable - Billable"]
[null,null,null,null,null,null,null,null,null,null,null,null,null,null,null,null,null,null,null,null,null,null,null,null,null,null,null,null,null,null,null,null,null,null,null,null,null,null,null,null,null,null,null,null,null,null,null,null,null,null,null,null,null,null,null,null,null,null,null,null,null,null,null,null,"CHECK",null,null,"ALLOWANCE","3 - Returnable - Not Billable"]
[null,null,null,null,null,null,null,null,null,null,null,null,null,null,null,null,null,null,null,null,null,null,null,null,null,null,null,null,null,null,null,null,null,null,null,null,null,null,null,null,null,null,null,null,null,null,null,null,null,null,null,null,null,null,null,null,null,null,null,null,null,null,null,null,null,null,null,"ALLOWANCE","4 - Non - Returnable"]
[null,null,null,null,null,null,null,null,null,null,null,null,null,null,null,null,null,null,null,null,null,null,null,null,null,null,null,null,null,null,null,null,null,null,null,null,null,null,null,null,null,null,null,null,null,null,null,null,null,null,null,null,null,null,null,null,null,null,null,null,null,null,null,null,null,null,null,"CREDIT MEMO","2 - Returnable"]
[null,null,null,null,null,null,null,null,null,null,null,null,null,null,null,null,null,null,null,null,null,null,null,null,null,null,null,null,null,null,null,null,null,null,null,null,null,null,null,null,null,null,null,null,null,null,null,null,null,null,null,null,null,null,null,null,null,null,null,null,null,null,null,null,null,null,null,"CREDIT MEMO","5 - Non Returnable - Billable"]
[null,null,null,null,null,null,null,null,null,null,null,null,null,null,null,null,null,null,null,null,null,null,null,null,null,null,null,null,null,null,null,null,null,null,null,null,null,null,null,null,null,null,null,null,null,null,null,null,null,null,null,null,null,null,null,null,null,null,null,null,null,null,null,null,null,null,null,"CHECK","2 - Returnable"]
[null,null,null,null,null,null,null,null,null,null,null,null,null,null,null,null,null,null,null,null,null,null,null,null,null,null,null,null,null,null,null,null,null,null,null,null,null,null,null,null,null,null,null,null,null,null,null,null,null,null,null,null,null,null,null,null,null,null,null,null,null,null,null,null,null,null,null,"CHECK","5 - Non Returnable - Billable"]
[]
[]
[null,null,null,null,null,null,null,null,null,null,null,null,null,null,null,null,null,null,null,null,null,null,null,null,null,null,null,null,null,null,null,null,null,null,null,null,null,null,null,null,null,null,null,null,null,null,null,null,null,null,null,null,null,null,null,null,null,null,null,null,null,null,null,null,{"$f":"IF(ROWS(BM$172:BM172)>2,\"\",INDEX($BQ$158:$BQ$181,SMALL(IF($BP$158:$BP$181=$AC$25,ROW($BP$158:$BP$181)-ROW($BP$158)+1),ROWS(BM$172:BM172))))","v":0}]
[null,null,null,null,null,null,null,null,null,null,null,null,null,null,null,null,null,null,null,null,null,null,null,null,null,null,null,null,null,null,null,null,null,null,null,null,null,null,null,null,null,null,null,null,null,null,null,null,null,null,null,null,null,null,null,null,null,null,null,null,null,null,null,null,{"$f":"IF(ROWS(BM$172:BM173)>4,\"\",INDEX($BQ$158:$BQ$181,SMALL(IF($BP$158:$BP$181=$AC$25,ROW($BP$158:$BP$181)-ROW($BP$158)+1),ROWS(BM$172:BM173))))","v":0}]

{"sheet":"New Item Form ","index":4,"n_rows":150,"n_cols":84,"rows_kept":150,"cut":false,"hidden":true,"merged":[[67,40,67,42],[136,38,136,40],[138,32,138,34],[167,55,167,62],[127,4,127,19],[136,32,136,34],[142,32,142,34],[142,38,142,40],[144,32,144,34],[144,38,144,40],[136,24,136,28],[138,24,138,28],[140,24,140,28],[142,24,142,28],[144,24,144,28],[129,3,129,4],[131,2,131,15],[166,54,166,62],[98,1,98,2],[163,54,163,62],[164,54,164,62],[73,33,73,36],[165,54,165,62],[80,3,80,10],[59,54,59,59],[63,43,63,44],[59,60,59,63],[55,58,55,60],[140,32,140,34],[140,38,140,40],[46,61,46,63],[139,14,139,17],[135,10,135,15],[103,46,103,62],[98,3,98,10],[98,11,98,13],[96,15,96,17],[67,51,67,60],[61,24,61,27],[69,27,69,28],[107,4,107,8],[84,5,84,14],[88,17,88,20],[88,5,88,11],[67,29,67,33],[69,24,69,26],[84,0,84,4],[61,38,61,44],[182,55,182,62],[179,54,179,62],[180,54,180,62],[181,54,181,62],[170,46,171,50],[170,51,171,62],[176,39,176,43],[178,26,178,43],[179,32,179,43],[180,32,180,43],[181,30,181,43],[182,31,182,43],[170,27,171,43],[173,27,173,43],[176,60,176,62],[174,51,174,62],[174,27,174,43],[175,30,175,43],[176,27,176,34],[173,51,173,62],[177,50,177,62],[178,54,178,62],[158,51,158,62],[159,51,159,62],[128,27,128,41],[73,37,73,40],[74,36,74,37],[92,27,92,41],[134,24,134,41],[138,38,138,40],[94,46,94,62],[96,46,96,62],[98,46,98,62],[99,46,99,62],[77,24,77,41],[73,28,73,31],[116,27,116,41],[104,46,104,62],[161,51,161,56],[160,53,160,62],[161,60,161,62],[162,50,162,62],[82,0,82,3],[101,46,101,62],[105,46,105,62],[79,46,79,62],[81,46,81,62],[83,46,83,62],[84,27,84,41],[92,0,92,2],[94,0,94,2],[80,27,80,41],[96,0,96,3],[104,27,104,41],[96,27,96,41],[92,3,92,8],[92,13,92,20],[94,3,94,8],[94,13,94,20],[102,46,102,62],[155,46,156,50],[155,51,156,62],[59,46,59,49],[65,50,65,52],[71,37,71,43],[73,42,73,44],[61,51,61,61],[48,58,48,63],[57,15,57,18],[61,0,61,6],[68,0,68,3],[63,29,63,33],[63,35,63,42],[59,36,59,38],[65,24,65,27],[63,24,63,28],[69,36,69,38],[65,28,65,30],[52,43,52,47],[52,24,52,28],[48,41,48,42],[48,28,48,34],[52,29,52,35],[55,3,55,6],[59,50,59,52],[63,51,63,52],[54,52,54,53],[55,46,55,47],[55,48,55,50],[52,54,52,55],[55,43,55,44],[55,39,55,42],[48,48,48,51],[46,45,46,50],[48,44,48,47],[48,36,48,40],[46,55,46,60],[55,52,55,57],[40,62,40,63],[25,27,25,30],[27,28,27,31],[29,44,29,47],[40,51,40,53],[23,51,23,55],[29,41,29,42],[19,30,19,46],[25,52,25,57],[27,53,27,59],[21,58,21,61],[27,48,27,51],[27,43,27,47],[25,43,25,46],[25,35,25,38],[38,53,38,55],[29,58,29,63],[33,47,33,50],[38,59,38,61],[27,60,27,63],[21,53,21,56],[37,24,37,63],[22,54,22,63],[15,0,15,3],[6,53,6,58],[36,3,36,4],[38,3,38,6],[42,46,42,49],[29,48,29,51],[38,30,38,46],[40,45,40,49],[42,39,42,40],[42,34,42,38],[29,36,29,40],[42,42,42,45],[42,29,42,32],[29,28,29,34],[14,24,14,29],[14,30,14,38],[42,56,42,58],[9,33,9,38],[32,3,32,4],[23,47,23,50],[36,11,36,21],[15,7,15,9],[15,10,15,13],[13,18,13,20],[15,17,15,20],[0,58,0,63],[21,62,21,63],[9,51,9,52],[14,55,14,56],[19,59,19,61],[19,53,19,55],[4,53,4,57],[9,54,9,57],[0,0,0,57],[2,0,2,22],[3,0,3,22],[2,36,2,40],[2,50,2,54],[4,0,4,21],[9,44,9,50],[7,0,7,21],[19,24,19,29],[9,0,9,21],[9,24,9,29],[14,61,14,62],[13,10,13,14],[11,13,11,16],[16,0,16,20],[183,33,183,43],[105,4,105,8],[34,6,34,21],[61,33,61,37],[65,41,65,43],[133,5,133,10],[133,18,133,19],[129,12,129,14],[124,27,124,41],[120,27,120,41],[59,39,59,42],[73,24,73,27],[121,4,121,11],[96,4,96,13],[112,4,112,20],[114,4,114,20],[116,4,116,20],[46,40,46,43],[53,5,53,7],[125,4,125,19],[132,27,132,41],[118,4,118,20],[112,27,112,41],[82,18,82,21],[4,60,4,63],[9,58,9,63],[5,7,5,21],[4,29,4,30],[9,30,9,31],[9,39,9,43],[4,38,4,39],[33,41,33,42],[23,30,23,34],[32,11,32,13],[23,24,23,29],[32,19,32,20],[27,37,27,40],[10,0,10,21],[23,36,23,41],[11,34,11,36],[6,0,6,21],[4,32,4,37],[4,24,4,28],[7,24,7,39],[6,29,6,39],[8,0,8,6],[8,7,8,21],[15,15,15,16],[203,6,203,7],[188,29,188,33],[156,27,156,43],[139,4,139,7],[158,27,158,43],[65,4,65,7],[74,3,74,19],[71,30,71,35],[103,4,103,8],[100,27,100,41],[88,27,88,41],[108,27,108,41],[110,42,149,63],[87,46,87,62],[88,46,88,62],[89,46,89,62],[90,46,90,62],[86,4,86,5],[84,18,84,19],[86,17,86,19],[80,18,80,21],[123,4,123,11],[123,13,123,19],[176,51,176,56],[211,26,211,28],[175,53,175,62],[160,27,160,43],[61,17,61,19],[70,5,70,20],[121,13,121,19],[82,4,82,10],[135,2,135,3],[193,54,193,62],[186,4,186,8],[203,17,203,18],[201,4,201,7],[189,51,189,62],[190,53,190,62],[185,46,186,50],[188,15,188,17],[84,46,84,62],[85,46,85,62],[86,46,86,62],[100,46,100,62],[205,27,205,29],[209,26,209,28],[191,60,191,62],[201,15,201,18],[217,31,217,36],[192,29,192,40],[190,31,190,35],[215,29,215,40],[211,37,211,39],[185,51,186,62],[188,51,188,62],[209,37,209,39],[213,32,213,40],[197,55,197,62],[205,40,205,42],[203,33,203,35],[203,40,203,42],[194,54,194,62],[195,54,195,62],[196,54,196,62],[191,51,191,56],[192,50,192,62],[196,31,196,41],[198,34,198,43],[188,40,188,43],[63,60,63,62],[40,9,40,13],[11,43,11,47],[11,57,11,63],[40,54,40,57],[55,36,55,38],[57,36,57,38],[46,32,46,34],[23,42,23,45],[33,28,33,34],[52,58,52,61],[21,45,21,49],[21,42,21,44],[38,14,38,19],[44,51,44,56],[46,51,46,53],[44,35,44,38],[44,43,44,46],[44,27,44,30],[45,9,45,11],[53,12,53,14],[43,24,43,35],[43,4,43,12],[40,14,40,18],[55,29,55,31],[57,29,57,31],[59,29,59,31],[73,45,73,48],[14,45,14,50],[45,0,45,8],[43,0,43,3],[65,19,65,20],[68,4,68,13],[51,4,51,5],[55,16,55,20],[51,13,51,16],[53,19,53,21],[65,14,65,15],[67,6,67,13],[61,14,61,16],[61,7,61,12],[57,5,57,8],[67,0,67,5],[40,0,40,2],[59,43,59,44],[72,7,72,19],[61,28,61,31],[40,3,40,6]]}
["                                 CVS DOMESTIC WAREHOUSE NEW ITEM INFORMATION FORM ",null,null,null,null,null,null,null,null,null,null,null,null,null,null,null,null,null,null,null,null,null,null,null,null,null,null,null,null,null,null,null,null,null,null,null,null,null,null,null,null,null,null,null,null,null,null,null,null,null,null,null,null,null,null,null,null,null,"Last Revised 5/19/2014  CSV V.12"]
[null,null,null,null,null,null,null,null,null,null,null,null,null,null,null,null,null,null,null,null,null,null,null,null,null,null,null,"Vendor Required Fields",null,null,null,null,null,null,null,null,{"$f":"IF(OR(COUNTIF(VALIDATION!D:D,S14)>1,S14=\"\"),\"\",\"X\")","v":""},null,"Buyer Required Fields",null,null,null,null,null,null,{"$f":"IF(OR(COUNTIF('VALIDATION CM'!D:D,D81)>1,D81=\"\"),\"\",\"X\")","v":""}]
["Instructions: Vendors must complete all bolded fields on page 1 and present to Category Manager",null,null,null,null,null,null,null,null,null,null,null,null,null,null,null,null,null,null,null,null,null,null,null,null,null,null,null,null,null,null,null,null,"CVS Item #",null,null,null,null,null,null,null,null,null,null,null,"Replicate Item #",null,null,null,null,null,null,null,null,null,null,null,null,null,null,null,null,null,null,null,"Regular",null,null,null,null,null,null,null,null,"Credit Card",null,"Store Will Tag",null,null,null,null,"AS"]
["along with the Material Safety Data Sheet (MSDS) to be used for Determination of proper shipping",null,null,null,null,null,null,null,null,null,null,null,null,null,null,null,null,null,null,null,null,null,null,null,"DESCRIPTION   (Step 5)",null,null,null,null,null,null,null,null,null,null,null,null,null,null,null,null,null,null,null,null,null,null,null,null,null,null,null,null,null,null,null,null,null,null,null,null,null,null,null,null,"Bonus",null,null,null,null,null,null,null,null,"CVS Gift Card",null,"DC Will Tag",null,null,null,null,"BX"]
["storage, and disposal handling. CPSIA compliance also required if applicable. WERCSmart Assessment must be provided to proceed in item setup. Vendor should fill out the Item Type field and then use the error list tabs to make sure all applicable fields are filled in. When they are an X will appear in the Vendor Required Fields box.",null,null,null,null,null,null,null,null,null,null,null,null,null,null,null,null,null,null,null,null,null,null,null,"Controlled Content",null,null,null,null,null,null,null,"Controlled Content %",null,null,null,null,null,null,null,null,"Age Dosing",null,null,null,null,null,null,null,"Diet & Fit Choices",null,null,null,null,null,null,null,null,"Facts Box",null,null,null,null,null,null,"LIP",null,null,null,null,null,null,null,null,"Debit Card",null,"Manufacturer Will Tag",null,null,null,null,"CA"]
["*CPSIA requirements for new items ",null,null,null,null,null,null,"http://www.cpsc.gov/ABOUT/Cpsia/cpsia.HTML",null,null,null,null,null,null,null,null,null,null,null,null,null,null,null,null,null,null,null,null,null,null,null,null,null,null,null,null,null,null,null,null,null,null,null,null,null,null,null,null,null,null,null,null,null,null,null,null,null,null,null,null,null,null,null,null,null,null,null,null,null,null,null,null,null,null,"Money Gift Card",null,null,null,null,null,null,"CT"]
["A letter confirming none of their products fall under the Act.",null,null,null,null,null,null,null,null,null,null,null,null,null,null,null,null,null,null,null,null,null,null,null,"Product Ingredients",null,null,null,null,null,null,null,null,null,null,null,null,null,null,null,null,"Store Brand OTC",null,null,null,null,null,"FDA Drug Classification",null,null,null,null,null,null,null,null,null,null,null,null,"E-Waste",null,null,null,null,null,null,null,null,null,null,null,null,null,"Prepaid Cell Phone",null,null,null,null,null,null,"DS"]
["A letter confirming an item(s) do fall under Act and a copy of test report/ and or certificate of ",null,null,null,null,null,null,null,null,null,null,null,null,null,null,null,null,null,null,null,null,null,null,null,null,null,null,null,null,null,null,null,null,null,null,null,null,null,null,null,null,"Item Restricted Sales Quantity",null,null,null,null,null,null,null,"Contains Battery",null,null,null,null,null,null,"Battery Contain Mercury",null,null,null,null,null,null,null,null,"BOGO",null,null,null,null,null,null,null,null,"Prepaid Phone Card",null,"B = Both CVS Stores and Acquisition Stores Carry The Item",null,null,null,null,"US"]
["conformity.",null,null,null,null,null,null,"http://www.cpsc.gov/ABOUT/Cpsia/faq/elecertfaq.pdf ",null,null,null,null,null,null,null,null,null,null,null,null,null,null,null,null,null,null,null,null,null,null,null,null,null,null,null,null,null,null,null,null,null,null,null,null,null,null,null,null,null,null,null,null,null,null,null,null,null,null,null,null,null,null,null,null,null,"Bonus - Free product / Sampler",null,null,null,null,null,null,null,null,"Retail Gift Card",null,"H = Only Hawaii Stores Carry The Item",null,null,null,null,"DZ"]
["If you require product testing, or have questions please email:",null,null,null,null,null,null,null,null,null,null,null,null,null,null,null,null,null,null,null,null,null,null,null,"Item Reconstituted Qty",null,null,null,null,null,null,null,null,"Item Reconstituted UOM",null,null,null,null,null,null,null,null,null,null,"Multi Pack Quantity/Stick Count",null,null,null,null,null,null,null,null,null,"Date Code Type",null,null,null,null,null,null,null,null,null,null,"Bonus - Free Quantity",null,null,null,null,null,null,null,null,null,null,null,null,null,null,null,"EA"]
["Scott MacLennan at SAMaclennan@cvs.com and copy Celeste Lester at CLester@cvs.com",null,null,null,null,null,null,null,null,null,null,null,null,null,null,null,null,null,null,null,null,null,null,null,null,null,null,null,null,null,null,null,null,null,null,null,null,null,null,null,null,null,null,null,null,null,null,null,null,null,null,null,null,null,null,null,null,null,null,null,null,null,null,null,null,"Bonus - Instant Redeemable Coupon",null,null,null,null,null,null,null,null,null,null,null,null,null,null,null,"FT"]
["IDENTIFICATION   (Step 1)",null,null,null,null,null,null,null,null,"Current Date",null,null,null,null,null,null,null,null,null,null,null,null,null,null,"Shelf Life in Weeks (non-readable)",null,null,null,null,null,null,null,null,null,null,null,null,null,"Date Code Format",null,null,null,null,null,null,null,null,null,null,null,null,"Date Code Format Desc",null,null,null,null,null,null,null,null,null,null,null,null,null,null,null,null,null,null,null,null,null,null,"Returnable",null,"> 4\"",null,null,null,null,"GLL"]
[null,null,null,null,null,null,null,null,null,null,null,null,null,null,null,null,null,null,null,null,null,null,null,null,"BEVERAGE ITEMS ONLY",null,null,null,null,null,null,null,null,null,null,null,null,null,null,null,null,null,null,null,null,null,null,null,null,null,null,null,null,null,null,null,null,null,null,null,null,null,null,null,null,null,null,null,null,null,null,null,null,null,"Returnable - Not Billable",null,"4.1\" > 14.9\"",null,null,null,null,"HC"]
["MHE",null,null,null,null,null,null,null,null,null,null,null,null,null,null,"Item Type  :",null,null,null,null,null,null,null,null,null,null,null,null,null,null,null,null,null,null,null,null,null,null,null,null,null,null,null,null,null,null,null,null,null,null,null,null,null,null,null,null,null,null,null,null,null,null,null,null,null,"Yes",null,null,null,null,null,null,null,null,"Non-Returnable",null,"15\" < 35\"",null,null,null,null,"IN"]
[null,null,null,null,null,null,null,null,null,null,null,null,null,null,null,null,null,null,null,null,null,null,null,null,"Beverage Type Code",null,null,null,null,null,null,null,null,null,null,null,null,null,null,null,"Container Type Code",null,null,null,null,null,null,null,null,null,null,null,"Alcohol %",null,null,null,null,null,"% of Fruit Juice",null,null,null,null,null,null,"No",null,null,null,null,null,null,null,null,null,null,"35\" >",null,null,null,null,"KT"]
["WERCSmart Assessment",null,null,null,"N",null,null,"WPS ID",null,null,null,null,null,null,null,"CVS ID",null,null,null,null,null,null,null,null,null,null,null,null,null,null,null,null,null,null,null,null,null,null,null,null,null,null,null,null,null,null,null,null,null,null,null,null,null,null,null,null,null,null,null,null,null,null,null,null,null,null,null,null,null,null,null,null,null,null,"Pack",null,null,null,null,null,null,"LT"]
["** Must be filled out with the WPS ID, CVS ID, or No",null,null,null,null,null,null,null,null,null,null,null,null,null,null,null,null,null,null,null,null,null,null,null,"PALLETIZATION PLAN (Step 6)",null,null,null,null,null,null,null,null,null,null,null,null,null,null,null,null,null,null,null,null,null,null,null,null,null,null,null,null,null,null,null,null,null,null,null,null,null,null,null,null,null,null,null,null,null,null,null,null,null,"Count",null,null,null,null,null,null,"MLT"]
["UPC INFORMATION",null,null,null,null,null,null,null,null,null,null,null,null,null,null,null,null,null,null,null,null,null,null,null,"Trade Unit Descriptor: INNER",null,null,null,null,null,null,null,null,null,null,"The following fields will apply to the INNER only. If the INNER IS sellable than an entire form will need to be filled out.",null,null,null,null,null,null,null,null,null,null,null,null,null,null,null,null,null,null,null,null,null,null,null,null,null,null,null,null,null,"Cycle pre-pack",null,null,null,null,null,null,null,null,"Assortment",null,"N",null,null,null,null,"MM"]
["UPC Code",null,null,null,null,null,null,null,null,null,null,null,null,null,null,null,null,null,null,null,null,null,null,null,null,null,null,null,null,null,null,null,null,null,null,null,null,null,null,null,null,null,null,null,null,null,null,null,null,null,null,null,null,null,null,null,null,null,null,null,null,null,null,null,null,"Intended for POG",null,null,null,null,null,null,null,null,"Box",null,"D",null,null,null,null,"OZ",{"$f":"G19&I19&J19&K19&L19&M19&N19&O19&P19&Q19&R19&U19","v":""}]
[null,null,null,null,null,null,null,null,null,null,null,null,null,null,null,null,null,null,null,null,null,null,null,null,"Supplier Short Description",null,null,null,null,null,null,null,null,null,null,null,null,null,null,null,null,null,null,null,null,null,null,null,"UPC Effective Date",null,null,null,null,null,null,null,null,"UPC Type",null,null,null,null,null,null,null,"Not for Plano",null,null,null,null,null,null,null,null,"Cubic Feet",null,"P",null,null,null,null,"PK"]
["EAN Code",null,null,null,null,null,null,null,null,null,null,null,null,null,null,null,null,null,null,null,null,null,null,null,null,null,null,null,null,null,null,null,null,null,null,null,null,null,null,null,null,null,null,null,null,null,null,null,null,null,null,null,null,null,null,null,null,null,null,null,null,null,null,null,null,"Off-Shelf",null,null,null,null,null,null,null,null,"Display",null,"B",null,null,null,null,"PC",{"$f":"G21&I21&J21&K21&L21&M21&N21&O21&P21&Q21&R21&S21&U21","v":""}]
[null,null,null,null,null,null,null,null,null,null,null,null,null,null,null,null,null,null,null,null,null,null,null,null,"UPC/EAN",null,null,null,null,null,null,null,null,null,null,null,null,null,null,null,null,null,"Supplier Brand",null,null,null,null,null,null,null,"Sub Brand",null,null,null,null,null,null,null,"Quantity of Children",null,null,null,null,null,null,"Promotional",null,null,null,null,null,null,null,null,"Dozen",null,"C",null,null,null,null,"LB",null,{"$f":"AA22&AB22&AC22&AD22&AE22&AF22&AG22&AH22&AI22&AJ22&AK22&AL22&AM22&AO22","v":""}]
["Suppressed UPC",null,null,null,null,null,null,null,null,null,null,null,null,null,null,null,null,null,null,null,null,null,null,null,null,null,null,null,null,null,null,null,null,null,null,null,null,null,null,null,null,null,null,null,null,null,null,null,null,null,null,null,null,null,"Refer to tabs Qty of Children & Pckg Requirements",null,null,null,null,null,null,null,null,null,null,"Seasonal",null,null,null,null,null,null,null,null,"Each",null,null,null,null,null,null,"QT",{"$f":"K23&M23&N23&O23&P23&Q23&R23&U23","v":""}]
[null,null,null,null,null,null,null,null,null,null,null,null,null,null,null,null,null,null,null,null,null,null,null,null,"Consumer Size Qty",null,null,null,null,null,null,null,null,null,null,null,"Consumer Size UOM",null,null,null,null,null,null,null,null,null,null,"Effective Date",null,null,null,null,null,null,null,null,null,null,null,null,null,null,null,null,null,null,null,null,null,null,null,null,null,null,"Feet",null,"100 Sq. Feet",null,null,null,null,"ST"]
["NDC",null,null,null,null,null,null,null,null,null,null,null,null,null,null,null,null,null,null,null,null,null,null,null,null,null,null,null,null,null,null,null,null,null,null,null,null,null,null,null,null,null,null,null,null,null,null,null,null,null,null,null,null,null,null,null,null,null,null,null,null,null,null,null,null,null,null,null,null,null,null,null,null,null,"Gallon (US)",null,"100 - Hundred Count",null,null,null,null,"SH",{"$f":"G25&H25&I25&J25&K25&M25&N25&O25&P25&R25&S25","v":""}]
[null,null,null,null,null,null,null,null,null,null,null,null,null,null,null,null,null,null,null,null,null,null,null,null,"Height",null,null,null,null,null,null,null,"Width",null,null,null,null,null,null,null,"Depth",null,null,null,null,null,null,null,"Linear UOM",null,null,null,null,null,null,null,null,null,null,null,null,null,null,null,null,"Controlled Umbrella Brand",null,null,null,null,null,null,null,null,"Gram",null,"EACH",null,null,null,null,"YD"]
["Cigarette PACK",null,null,null,null,null,null,null,null,null,null,null,null,null,null,null,null,null,null,null,null,null,null,null,null,null,null,null,null,null,null,null,null,null,null,null,null,null,null,null,null,null,null,null,null,null,null,null,null,null,null,null,null,null,null,null,null,null,null,null,null,null,null,null,null,"Controlled Tribute Brand",null,null,null,null,null,null,null,null,"Hundred Count",null,"GL - Gallon",null,null,null,null,null,{"$f":"G27&I27&J27&K27&L27&M27&N27&O27&P27&Q27&R27&U27","v":""}]
[null,null,null,null,null,null,null,null,null,null,null,null,null,null,null,null,null,null,null,null,null,null,null,null,"Gross Weight",null,null,null,null,null,null,null,null,"Weight UOM",null,null,null,null,null,null,null,null,null,"Manufacturer Disco. Date",null,null,null,null,null,null,null,null,null,"Supplier Projected In-Store Date",null,null,null,null,null,null,null,null,null,null,null,"Limited Distribution Brand",null,null,null,null,null,null,null,null,"Inch",null,"LB - Pounds",null,null,null,null,"FT"]
["Cigarette CARTON",null,null,null,null,null,null,null,null,null,null,null,null,null,null,null,null,null,null,null,null,null,null,null,null,null,null,null,null,null,null,null,null,null,null,null,null,null,null,null,null,null,null,null,null,null,null,null,null,null,null,null,null,null,null,null,null,null,null,null,null,null,null,null,null,"National Brand",null,null,null,null,null,null,null,null,"Kilogram",null,"OZ - Ounces",null,null,null,null,"IN",{"$f":"G29&I29&J29&K29&L29&M29&N29&O29&P29&Q29&R29&U29","v":""}]
[null,null,null,null,null,null,null,null,null,null,null,null,null,null,null,null,null,null,null,null,null,null,null,null,"Date Code Type",null,null,null,null,null,null,null,null,null,null,null,"Shelf Life Weeks",null,null,null,null,null,null,null,"Date Code Format",null,null,null,null,null,null,null,"Date Code Format Desc.",null,null,null,null,null,null,null,null,null,null,null,null,"Proprietary Licensed Brand",null,null,null,null,null,null,null,null,"Kit",null,"QT - Quart",null,null,null,null,"MM"]
["Cigarette SLEEVE",null,null,null,null,null,null,null,null,null,null,null,null,null,null,null,null,null,null,null,null,null,null,null,null,null,null,null,null,null,null,null,null,null,null,null,null,null,null,null,null,null,null,null,null,null,null,null,null,null,null,null,null,null,null,null,null,null,null,null,null,null,null,null,null,"Proprietary Purchased Brand",null,null,null,null,null,null,null,null,"Pound",null,"YARD",null,null,null,null,"YD",{"$f":"G31&I31&J31&K31&L31&M31&N31&O31&P31&Q31&R31&U31","v":""}]
[null,null,null,null,null,null,null,null,null,null,null,null,null,null,null,null,null,null,null,null,null,null,null,null,"PALLETIZATION PLAN ADDITIONAL ATTRIBUTES  -  INNER ONLY",null,null,null,null,null,null,null,null,null,null,null,null,null,null,null,null,null,null,null,null,null,null,null,null,null,null,null,null,null,null,null,null,null,null,null,null,null,null,null,null,"Store Brand",null,null,null,null,null,null,null,null,"Liter",null,"DOSA - Usage"]
["UPC Type",null,null,null,null,"UPC Effective Date",null,null,null,null,null,null,null,null,"CVS Generated UPC",null,null,null,null,null,null,null,null,null,null,null,null,null,null,null,null,null,null,null,null,null,null,null,null,null,null,null,null,null,null,null,null,null,null,null,null,null,null,null,null,null,null,null,null,null,null,null,null,null,null,"Unbranded",null,null,null,null,null,null,null,null,"Milliliter",null,null,null,null,null,null,"OZ"]
[null,null,null,null,null,null,null,null,null,null,null,null,null,null,null,null,null,null,null,null,null,null,null,null,"Security Tag Type",null,null,null,null,null,null,null,null,null,null,null,"Case Order Factor",null,null,null,null,null,null,null,null,"UOM",null,"CF",null,null,null,null,null,null,null,null,null,null,null,null,null,null,null,null,null,null,null,null,null,null,null,null,null,null,"Millimeter",null,null,null,null,null,null,"GR"]
["Supplier Item Description",null,null,null,null,null,null,null,null,null,null,null,null,null,null,null,null,null,null,null,null,null,null,null,null,null,null,null,null,null,null,null,null,null,null,null,null,null,null,null,null,null,null,null,null,null,null,null,null,null,null,null,null,null,null,null,null,null,null,null,null,null,null,null,null,"Direct Supply Chain (DSD)",null,null,null,null,null,null,null,null,"Ounce",null,"Y",null,null,null,null,"KG"]
[null,null,null,null,null,null,null,null,null,null,null,null,null,null,null,null,null,null,null,null,null,null,null,null,"PALLETIZATION PLAN",null,null,null,null,null,null,null,null,null,null,null,null,null,null,null,null,null,null,null,null,null,null,null,null,null,null,null,null,null,null,null,null,null,null,null,null,null,null,null,null,"Indirect Channel (Warehoused Item)",null,null,null,null,null,null,null,null,"Piece",null,"N",null,null,null,null,"LB"]
["CVS Supplier #",null,null,null,null,null,null,"Supplier Name",null,null,null,null,null,null,null,null,null,null,null,null,null,null,null,null,"Trade Unit Descriptor: CASE",null,null,null,null,null,null,null,null,null,null,"The following fields will apply to the CASE only. If the CASE IS sellable than an entire form will need to be filled out.",null,null,null,null,null,null,null,null,null,null,null,null,null,null,null,null,null,null,null,null,null,null,null,null,null,null,null,null,null,"Direct/Indirect Channel",null,null,null,null,null,null,null,null,"Pint"]
[null,null,null,null,null,null,null,null,null,null,null,null,null,null,null,null,null,null,null,null,null,null,null,null,"The CASE UPC is required on the outside of each shipping carton. Refer to CVS Routing Guide/Supplier Compliance Instructions (Carton Labeling Requirements) cvssuppliers.com/requirements",null,null,null,null,null,null,null,null,null,null,null,null,null,null,null,null,null,null,null,null,null,null,null,null,null,null,null,null,null,null,null,null,null,null,null,null,null,null,null,null,null,null,null,null,null,null,null,null,null,"Quart",null,null,null,null,null,null,"EA"]
["Supplier Item #",null,null,null,null,null,null,null,"Packaging Age Grade",null,null,null,null,null,null,null,null,null,null,null,null,null,null,null,"Supplier Short Description",null,null,null,null,null,null,null,null,null,null,null,null,null,null,null,null,null,null,null,null,null,null,null,"UPC Effective Date",null,null,null,null,null,null,null,null,"UPC Type",null,null,null,null,null,null,null,null,null,null,null,null,null,null,null,null,"Sheet",null,"Yes",null,null,null,null,"GLL"]
[null,null,null,null,null,null,null,null,null,null,null,null,null,null,null,null,null,null,null,null,null,null,null,null,null,null,null,null,null,null,null,null,null,null,null,null,null,null,null,null,null,null,null,null,null,null,null,null,null,null,null,null,null,null,null,null,null,null,null,null,null,null,null,null,null,"Do Not Flavor",null,null,null,null,null,null,null,null,"Dose",null,"No",null,null,null,null,"HC"]
["Supplier Brand",null,null,null,null,null,null,null,null,"Supplier Sub Brand",null,null,null,null,null,null,null,null,null,null,null,null,null,null,"UPC/EAN",null,null,null,null,null,null,null,null,null,null,null,null,null,null,null,null,null,"Supplier Brand",null,null,null,null,null,null,null,null,"Sub Brand",null,null,null,null,null,null,"Layers per Pallet",null,null,null,null,null,null,"Flavor Pending New Items",null,null,null,null,null,null,null,null,"Yard",null,null,null,null,null,null,"HS",null,{"$f":"AB41&AC41&AD41&AE41&AF41&AG41&AH41&AI41&AJ41&AK41&AL41&AM41&AN41&AO41","v":""}]
[null,null,null,null,null,null,null,null,null,null,null,null,null,null,null,null,null,null,null,null,null,null,null,null,null,null,null,null,null,null,null,null,null,null,null,null,null,null,null,null,null,null,null,null,null,null,null,null,null,null,null,null,null,null,null,null,null,null,null,null,null,null,null,null,null,"Flavor To Primary of FC",null,null,null,null,null,null,null,null,"Usage (ex. Laundry)",null,null,null,null,null,null,"LB"]
["BONUS ITEMS ONLY",null,null,null,null,null,null,null,null,null,null,null,null,null,null,null,null,null,null,null,null,null,null,null,"Quantity of Children",null,null,null,null,null,null,null,null,null,"Consumer Size Qty",null,null,null,null,null,null,null,"Consumer Size UOM",null,null,null,null,null,null,null,null,null,"Effective Date",null,null,null,null,null,null,"Cases per Layer",null,null,null,null,null,"Flavor To Stand Alone Items",null,null,null,null,null,null,null,null,"Hundred Square Feet",null,"Yes",null,null,null,null,"QT"]
["Bonus Type",null,null,null,null,null,null,null,null,null,null,null,null,null,null,null,null,null,null,null,null,null,null,null,"Refer to tabs Qty of Children & Pckg Requirements",null,null,null,null,null,null,null,null,null,null,null,null,null,null,null,null,null,null,null,null,null,null,null,null,null,null,null,null,null,null,null,null,null,null,null,null,null,null,null,null,null,null,null,null,null,null,null,null,null,null,null,"No",null,null,null,null,"YD"]
[null,null,null,null,null,null,null,null,null,null,null,null,null,null,null,null,null,null,null,null,null,null,null,null,"Case Height",null,null,null,null,null,null,null,"Case Width",null,null,null,null,null,null,null,"Case Depth",null,null,null,null,null,null,null,"Case UOM",null,null,null,null,null,null,null,null,null,null,null,null,null,null,null,null,null,null,null,null,null,null,null,null,null,null,null,null,null,null,null,null,"Z52"]
["Break Apart For Individual Sale",null,null,null,null,null,null,null,null,null,null,null,null,null,null,null,null,null,null,null,null,null,null,null,null,null,null,null,null,null,null,null,null,null,null,null,null,null,null,null,null,null,null,null,null,null,null,null,null,null,null,null,null,null,null,null,null,null,null,null,null,null,null,null,null,"PSE",null,null,null,null,null,null,null,null,"Refrigerated",null,null,null,null,null,null,"OZ"]
[null,null,null,null,null,null,null,null,null,null,null,null,null,null,null,null,null,null,null,null,null,null,null,null,"Supplier Case Gross Weight",null,null,null,null,null,null,null,null,null,null,null,"Weight UOM",null,null,null,null,null,null,null,null,"Manufacturer Disco. Date",null,null,null,null,null,null,null,null,null,"Supplier Projected In-Store Date",null,null,null,null,null,null,null,null,null,"DXM",null,null,null,null,null,null,null,null,"Food Item Indicator"]
["Supplier Regular Item UPC",null,null,null,null,null,null,null,null,null,null,null,null,null,null,null,null,null,null,null,null,null,null,null,null,null,null,null,null,null,null,null,null,null,null,null,null,null,null,null,null,null,null,null,null,null,null,null,null,null,null,null,null,null,null,null,null,null,null,null,null,null,null,null,null,"NA",null,null,null,null,null,null,null,null,"Temperature Sensitive"]
[null,null,null,null,null,null,null,null,null,null,null,null,null,null,null,null,null,null,null,null,null,null,null,null,"Date Code Type",null,null,null,null,null,null,null,null,null,null,null,"Shelf Life Weeks",null,null,null,null,null,null,null,"Date Code Format",null,null,null,null,null,null,null,null,"Date Code Format Desc.",null,null,null,null,null,null,null,null,null,null,null,null,null,null,null,null,null,null,null,null,"Chemical"]
["MEASURE   (Step 2)"]
[null,null,null,null,null,null,null,null,null,null,null,null,null,null,null,null,null,null,null,null,null,null,null,null,"PALLETIZATION PLAN ADDITIONAL ATTRIBUTES  -  CASE ONLY",null,null,null,null,null,null,null,null,null,null,null,null,null,null,null,null,null,null,null,null,null,null,null,null,null,null,null,null,null,null,null,null,null,null,null,null,null,null,null,null,"FREE_FROM_GLUTEN"]
["Consumer Size Quantity",null,null,null,null,null,null,"Consumer Size UOM",null,null,null,null,null,null,null,null,null,null,null,null,null,null,null,null,null,null,null,null,null,null,null,null,null,null,null,null,null,null,null,null,null,null,null,null,null,null,null,null,null,null,null,null,null,null,null,null,null,null,null,null,null,null,null,null,null,"FREE_FROM_LACTOSE",null,null,null,null,null,null,null,null,"Pack or Inner Pack",null,null,null,null,null,null,"Standard"]
[null,null,null,null,null,null,null,null,null,null,null,null,null,null,null,null,null,null,null,null,null,null,null,null,"Security Tag Type",null,null,null,null,null,null,null,null,null,null,null,null,"Store Damage Return Code",null,null,null,null,null,null,null,null,null,null,null,"Case Order Factor",null,null,null,null,null,null,null,"UOM","CF",null,null,null,null,null,null,"REDUCED_LACTOSE",null,null,null,null,null,null,null,null,"Case ",null,null,null,null,null,null,"Bonus"]
["Consumer Size Effective Date",null,null,null,null,null,null,null,null,"Item Height",null,null,null,null,null,null,"Item Width",null,null,null,null,null,null,null,null,null,null,null,null,null,null,null,null,null,null,null,null,null,null,null,null,null,null,null,null,null,null,null,null,null,null,null,null,null,null,null,null,null,null,null,null,null,null,null,null,"FREE_FROM_MILK_PROTEIN",null,null,null,null,null,null,null,null,"Display Shipper ",null,null,null,null,null,null,"Beverage"]
[null,null,null,null,null,null,null,null,null,null,null,null,null,null,null,null,null,null,null,null,null,null,null,null,"PRICING INFO   (Step 7)  ",null,null,null,null,null,null,null,null,null,null,null,null,null,null,null,null,null,null,null,null,null,null,null,null,null,null,null,null,null,null,null,null,null,null,null,null,null,null,null,null,"FREE_FROM_SOYA",null,null,null,null,null,null,null,null,"Pallet",null,null,null,null,null,null,"Gift Card"]
["Item Depth",null,null,null,null,null,null,null,null,null,"Item Dimension UOM",null,null,null,null,null,null,null,null,null,null,null,null,null,"All Mainland Cost ",null,null,null,null,null,null,null,"Effective Date",null,null,null,null,null,null,"MSRP Qty",null,null,null,null,null,null,"MSRP  $",null,null,null,null,null,"MSRP Effective Date",null,null,null,null,null,null,null,null,null,null,null,null,"FREE_FROM_PEANUTS",null,null,null,null,null,null,null,null,null,null,null,null,null,null,null,"PSE"]
[null,null,null,null,null,null,null,null,null,null,null,null,null,null,null,null,null,null,null,null,null,null,null,null,null,null,null,null,null,null,null,null,null,null,null,null,null,null,null,null,null,null,null,null,null,null,null,null,null,null,null,null,null,null,null,null,null,null,null,null,null,null,null,null,null,"FREE_FROM_EGG"]
["Supplier Item Gross Weight",null,null,null,null,null,null,null,null,null,null,"Weight UOM",null,null,null,null,null,null,null,null,null,null,null,null,"Hawaii Cost",null,null,null,null,null,null,null,"Effective Date",null,null,null,null,null,null,null,null,null,null,null,null,null,null,null,null,null,null,null,null,null,null,null,null,null,null,null,null,null,null,null,null,"FREE_FROM_SUGAR",null,null,null,null,null,null,null,null,"C = Candidate for the web",null,null,null,null,null,null,"1. Cycle Pre-Pack"]
[null,null,null,null,null,null,null,null,null,null,null,null,null,null,null,null,null,null,null,null,null,null,null,null,null,null,null,null,null,null,null,null,null,null,null,null,null,null,null,null,null,null,null,null,null,null,null,null,null,null,null,null,null,null,null,null,null,null,null,null,null,null,null,null,null,"HEART HEALTHY",null,null,null,null,null,null,null,null,"N = Rejected for web ",null,null,null,null,null,null,"2. Intended for POG"]
["ITEM DATES   (Step 3)",null,null,null,null,null,null,null,null,null,null,null,null,null,null,null,null,null,null,null,null,null,null,null,"Puerto Rico Cost",null,null,null,null,null,null,null,"Effective Date",null,null,null,null,null,null,"PrePriced Qty",null,null,null,null,null,null,"PrePriced Retail $",null,null,null,null,null,null,null,"PrePriced Effective Date",null,null,null,null,null,null,null,null,null,null,"ORGANIC",null,null,null,null,null,null,null,null,"Y = Product is on the web",null,null,null,null,null,null,"3. Not for Plano"]
[null,null,null,null,null,null,null,null,null,null,null,null,null,null,null,null,null,null,null,null,null,null,null,null,null,null,null,null,null,null,null,null,null,null,null,null,null,null,null,null,null,null,null,null,null,null,null,null,null,null,null,null,null,null,null,null,null,null,null,null,null,null,null,null,null,"Each",null,null,null,null,null,null,null,null,null,null,null,null,null,null,null,"4. Off-Shelf"]
["Supplier's First Ship to DC Date",null,null,null,null,null,null,null,null,null,null,null,null,null,"Disco Date",null,null,null,null,null,null,null,null,null,"Supplier HTS Code",null,null,null,null,null,null,null,null,"Country of Origin",null,null,null,null,null,null,null,null,null,null,null,"Material Comp. Breakdown",null,null,null,null,null,null,null,null,null,null,null,null,null,null,null,null,null,null,null,"Gallon",null,null,null,null,null,null,null,null,null,null,null,null,null,null,null,"5. Promotional"]
[null,null,null,null,null,null,null,null,null,null,null,null,null,null,null,null,null,null,null,null,null,null,null,null,"GIFT CARD ITEMS ONLY",null,null,null,null,null,null,null,null,null,null,null,null,null,null,null,null,null,null,null,null,null,null,null,null,null,null,null,null,null,null,null,null,null,null,null,null,null,null,null,null,"Hundred Sq. Feet",null,null,null,null,null,null,null,null,"Base Unit or Each",null,null,null,null,null,null,"6. Seasonal"]
["IDENTIFICATION ADDITIONAL ATTRIBUTES   (Step 4)",null,null,null,null,null,null,null,null,null,null,null,null,null,null,null,null,null,null,null,null,null,null,null,"Prepaid Card Type",null,null,null,null,null,null,null,null,null,null,"Prepaid Gift Card Variable Amount",null,null,null,null,null,null,null,null,null,null,"CVS Commission %",null,null,null,null,null,null,null,"Prepaid Card Region Type",null,null,null,null,null,null,null,null,null,null,"Hundred Count",null,null,null,null,null,null,null,null,"Case"]
[null,null,null,null,null,null,null,null,null,null,null,null,null,null,null,null,null,null,null,null,null,null,null,null,null,null,null,null,null,null,null,null,null,null,null,null,null,null,null,null,null,null,null,null,null,null,null,null,null,null,null,null,null,null,null,null,null,null,null,null,null,null,null,null,null,"Pack",null,null,null,null,null,null,null,null,"Pack or Inner Pack"]
["Supplier Like Item #",null,null,null,null,null,null,null,null,"CarePlus Only Item",null,null,null,null,null,null,"Web Only Item ",null,null,null,null,null,null,null,"Supplier Fee $",null,null,null,null,null,null,null,"Prepaid Gift Card Face Value $",null,null,null,null,null,null,null,null,null,null,null,"Prepaid Gift Card CVS Fee $",null,null,null,null,null,null,null,null,null,null,null,null,null,null,null,null,null,null,null,null,"Pound",null,null,null,null,null,null,null,null,"Display Shipper",null,null,null,null,null,null,"L = PPD Wireless Phone with Loaded Minutes"]
[null,null,null,null,null,null,null,null,null,null,null,null,null,null,null,null,null,null,null,null,null,null,null,null,null,null,null,null,null,null,null,null,null,null,null,null,null,null,null,null,null,null,null,null,null,null,null,null,null,null,null,null,null,null,null,null,null,null,null,null,null,null,null,null,null,"Quart",null,null,null,null,null,null,null,null,null,null,null,null,null,null,null,"P = PPD Wireless Phone no Loaded Minutes"]
["Supplier Suggested Item Type",null,null,null,null,null,null,null,null,null,null,null,null,null,null,null,null,null,null,null,null,null,null,null,"Effective Start Date",null,null,null,null,null,null,null,null,null,null,"Effective End Date",null,null,null,null,null,null,null,null,null,"Prepaid Wireless E911 Type",null,null,null,null,null,null,null,null,null,null,null,null,null,null,null,null,null,null,null,"Usage (ex. Laundry)",null,null,null,null,null,null,null,null,null,null,null,null,null,null,null,"W = PPD Wireless Minutes Card"]
["Security Tag Type",null,null,null,null,null,null,null,null,null,null,null,null,null,null,null,null,null,null,null,null,null,null,null,"DISTRIBUTION CENTER   (Step 8)",null,null,null,null,null,null,null,null,null,null,null,null,null,null,null,null,null,null,null,null,null,null,null,null,null,null,null,null,null,null,null,null,null,null,null,null,null,null,null,null,"Yard",null,null,null,null,null,null,null,null,"CVS Pharmacy",null,null,null,null,null,null,"N = Not PPD Wireless"]
[null,null,null,null,null,null,null,null,null,null,null,null,null,null,null,null,null,null,null,null,null,null,null,null,"Hazmat Flag",null,null,null,null,null,null,"Case Order Factor",null,null,null,null,null,null,null,null,"Case Order Factor UOM",null,null,null,null,"CF",null,"Is this product required to be registered with the EPA",null,null,null,null,null,null,null,null,null,null,null,null,null,null,null,null,null,null,null,null,null,null,null,null,null,null,"CarePlus"]
["Cigarette Promo Description",null,null,null,null,null,null,null,null,null,null,null,null,null,null,null,null,null,null,null,null,null,null,null,null,null,null,null,null,null,null,null,null,null,null,null,null,null,null,null,null,null,null,null,null,null,null,null,null,null,null,null,null,null,null,null,null,null,null,null,null,null,null,null,null,null,null,null,null,null,null,null,null,null,"CVS.com"]
[null,null,null,null,null,null,null,null,null,null,null,null,null,null,null,null,null,null,null,null,null,null,null,null,"Protective Services Indicator",null,null,null,null,null,null,null,null,null,null,null,null,null,null,null,null,null,null,null,null,null,null,null,null,null,null,null,null,null,null,null,null,null,null,null,null,null,null,null,null,"Drug Facts",null,null,null,null,null,null,null,null,"All ",null,null,null,null,null,null,"NDA"]
["Manufacturer Cigarette Promo Code",null,null,null,null,null,null,null,null,null,null,null,null,null,null,null,null,null,null,null,null,null,null,null,null,null,null,null,null,null,null,null,null,null,null,null,null,null,null,null,null,null,null,null,null,null,null,null,null,null,null,null,null,null,null,null,null,null,null,null,null,null,null,null,null,"None",null,null,null,null,null,null,null,null,null,null,null,null,null,null,null,"ANDA"]
[null,null,null,null,null,null,null,null,null,null,null,null,null,null,null,null,null,null,null,null,null,null,null,null,"NMFC Item #",null,null,null,null,null,null,null,null,"NMFC Sub #",null,null,null,null,null,null,null,null,"NMFC Class ",null,null,null,null,null,null,null,null,null,null,null,null,null,null,null,null,null,null,null,null,null,null,"Nutrition Facts",null,null,null,null,null,null,null,null,"ACOUSTO_MAGNETIC_EAS_TAG",null,null,null,null,null,null,"Monograph"]
["Image Link URL",null,null,null,null,null,null,null,null,null,null,null,null,null,null,null,null,null,null,null,null,null,null,null,null,null,null,null,null,null,null,null,null,null,null,null,null,null,null,null,null,"WN","IN","PA","NJ","MA","TN","AL","SC","EN","DT","FL","OR","CR","LA","BV","UC","YK",null,"HI","RC",null,null,null,null,"Supplemental Facts",null,null,null,null,null,null,null,null,"ELECTRO_MAGNETIC_EAS_TAG",null,null,null,null,null,null,"No Final Monograph"]
[null,null,null,null,null,null,null,null,null,null,null,null,null,null,null,null,null,null,null,null,null,null,null,null,"Is Merchandise Coming Into All Distribution Centers:",null,null,null,null,null,null,null,null,null,null,null,null,null,null,null,null,"Y","Y","Y","Y","Y","Y","Y","Y","Y","Y","Y","Y","Y","Y","Y","Y","Y",null,"Y","Y",null,null,null,null,null,null,null,null,null,null,null,null,null,"INK_OR_DYE_EAS_TAG",null,null,null,null,null,null,"Homeopathic"]
[null,null,null,null,null,null,null,null,null,null,null,null,null,null,null,null,null,null,null,null,null,null,null,null,null,null,null,null,null,null,null,null,null,null,null,null,null,null,null,null,null,null,null,null,null,null,null,null,null,null,null,null,null,null,null,null,null,null,null,null,null,null,null,null,null,null,null,null,null,null,null,null,null,null,"MICROWAVE_EAS_TAG"]
["Category Management Required Fields",null,null,null,null,null,null,null,null,null,null,null,null,null,null,null,null,null,null,null,null,null,null,null,"Additional UPC's",null,null,null,null,null,null,null,null,null,null,null,null,null,null,null,null,null,"Supplier Information",null,null,null,null,null,null,null,null,null,null,null,null,null,null,null,null,null,null,null,null,null,null,null,null,null,null,null,null,null,null,null,"RADIO_FREQUENCY_EAS_TAG"]
["VALIDATION",null,null,null,null,null,null,null,null,null,null,null,null,null,null,null,null,null,null,null,null,null,null,null,"UPC Code",null,null,null,null,null,null,null,null,null,null,null,null,null,null,null,null,null,null,null,null,null,null,null,null,null,null,null,null,null,null,null,null,null,null,null,null,null,null,null,null,"A = Wine - Fruit Varietals"]
[null,null,null,null,null,null,null,null,null,null,null,null,null,null,null,null,null,null,null,null,null,null,null,null,null,null,null,null,null,null,null,null,null,null,null,null,null,null,null,null,null,null,"Company Name:",null,null,null,null,null,null,null,null,null,null,null,null,null,null,null,null,null,null,null,null,null,null,"B = Ale/Beer/Malt",null,null,null,null,null,null,null,null,"Rotating out of stock (due to POG change)",null,null,null,null,null,null,"Size To Existing"]
["Item Type",null,null,null,null,null,null,null,null,null,null,null,"CVS Like Item Number ",null,null,null,null,null,null,null,null,null,null,null,"Description ",null,null,null,null,null,null,null,null,null,null,null,null,null,null,null,null,null,null,null,null,null,null,null,null,null,null,null,null,null,null,null,null,null,null,null,null,null,null,null,null,"C = Wine Cooler",null,null,null,null,null,null,null,null,"Stocking levels (out of stock)",null,null,null,null,null,null,"New Size Group"]
[null,null,null,null,null,null,null,null,null,null,null,null,null,null,null,null,null,null,null,null,null,null,null,null,null,null,null,null,null,null,null,null,null,null,null,null,null,null,null,null,null,null,"Contact Name:",null,null,null,null,null,null,null,null,null,null,null,null,null,null,null,null,null,null,null,null,null,null,"D = Wine Non Fortified",null,null,null,null,null,null,null,null,"Moving to private label"]
["Item Brand Type",null,null,null,null,null,null,null,null,null,null,null,"CM Brand Classification",null,null,null,null,null,null,null,null,null,null,null,"UPC Code",null,null,null,null,null,null,null,null,null,null,null,null,null,null,null,null,null,null,null,null,null,null,null,null,null,null,null,null,null,null,null,null,null,null,null,null,null,null,null,null,"E = Vegetable Juice",null,null,null,null,null,null,null,null,"Inventory movement (ship out of DC)",null,null,null,null,null,null,"Link To Existing"]
[null,null,null,null,null,null,null,null,null,null,null,null,null,null,null,null,null,null,null,null,null,null,null,null,null,null,null,null,null,null,null,null,null,null,null,null,null,null,null,null,null,null,"Address:",null,null,null,null,null,null,null,null,null,null,null,null,null,null,null,null,null,null,null,null,null,null,"F = 100% Fruit Juice",null,null,null,null,null,null,null,null,null,null,null,null,null,null,null,"New Brand Relationship Group"]
["Sourcing Indicator",null,null,null,null,null,null,null,null,null,null,null,null,null,null,null,"Pre-Priced",null,null,null,null,null,null,null,"Description ",null,null,null,null,null,null,null,null,null,null,null,null,null,null,null,null,null,null,null,null,null,null,null,null,null,null,null,null,null,null,null,null,null,null,null,null,null,null,null,null,"G = 10% - 99% Fruit Juice"]
[null,null,null,null,null,null,null,null,null,null,null,null,null,null,null,null,null,null,null,null,null,null,null,null,null,null,null,null,null,null,null,null,null,null,null,null,null,null,null,null,null,null,null,null,null,null,null,null,null,null,null,null,null,null,null,null,null,null,null,null,null,null,null,null,null,"H = Healthy Milkshakes",null,null,null,null,null,null,null,null,"0~4"]
["CM Suggested Retail Qty",null,null,null,null,null,null,null,null,"CM Suggested Retail Price  $",null,null,null,null,null,null,null,null,null,null,null,null,null,null,"UPC Code",null,null,null,null,null,null,null,null,null,null,null,null,null,null,null,null,null,null,null,null,null,null,null,null,null,null,null,null,null,null,null,null,null,null,null,null,null,null,null,null,"K = Fortified Wine",null,null,null,null,null,null,null,null,"4~6"]
[null,null,null,null,null,null,null,null,null,null,null,null,null,null,null,null,null,null,null,null,null,null,null,null,null,null,null,null,null,null,null,null,null,null,null,null,null,null,null,null,null,null,null,null,null,null,null,null,null,null,null,null,null,null,null,null,null,null,null,null,null,null,null,null,null,"L = Spirits - Unmixed",null,null,null,null,null,null,null,null,"6~12"]
["Store Damage Return Code",null,null,null,null,null,null,null,null,null,null,null,null,null,null,null,"OpCo","CVS Pharmacy",null,null,null,null,null,null,"Description ",null,null,null,null,null,null,null,null,null,null,null,null,null,null,null,null,null,"Telephone #:",null,null,null,null,null,null,null,null,null,null,null,null,null,null,null,null,null,null,null,null,null,null,"M = Milk Unflavored",null,null,null,null,null,null,null,null,"12~99"]
[null,null,null,null,null,null,null,null,null,null,null,null,null,null,null,null,null,null,null,null,null,null,null,null,null,null,null,null,null,null,null,null,null,null,null,null,null,null,null,null,null,null,null,null,null,null,null,null,null,null,null,null,null,null,null,null,null,null,null,null,null,null,null,null,null,"N = Milk Flavored",null,null,null,null,null,null,null,null,null,null,"C = Cardboard"]
["Pricing Links",null,null,null,null,null,null,null,null,null,null,null,null,null,null,null,null,null,null,null,null,null,null,null,"UPC Code",null,null,null,null,null,null,null,null,null,null,null,null,null,null,null,null,null,"Email Address:",null,null,null,null,null,null,null,null,null,null,null,null,null,null,null,null,null,null,null,null,null,null,"R = Spirits Ready To Drink",null,null,null,null,null,null,null,null,null,null,"G = Glass"]
[null,null,null,null,null,null,null,null,null,null,null,null,null,null,null,null,null,null,null,null,null,null,null,null,null,null,null,null,null,null,null,null,null,null,null,null,null,null,null,null,null,null,null,null,null,null,null,null,null,null,null,null,null,null,null,null,null,null,null,null,null,null,null,null,null,"S = Soft Drink - Carbon",null,null,null,null,null,null,null,null,"Yantian $1.86",null,"H = High Density Plastic"]
["Flavor Code",null,null,null,null,null,null,null,null,null,"Comments",null,null,null,null,null,null,null,null,null,null,null,"Description ",null,"Description ",null,null,null,null,null,null,null,null,null,null,null,null,null,null,null,null,null,"Domestic Represenative Contact",null,null,null,null,null,null,null,null,null,null,null,null,null,null,null,null,null,null,null,null,null,null,"T =  Soft Drink Non-Carbon",null,null,null,null,null,null,null,null,"Shekou $1.89",null,"M = Metal"]
[null,null,null,null,null,null,null,null,null,null,null,null,null,null,null,null,null,null,null,null,null,null,null,null,null,null,null,null,null,null,null,null,null,null,null,null,null,null,null,null,null,null,null,null,null,null,null,null,null,null,null,null,null,null,null,null,null,null,null,null,null,null,null,null,null,"U = Water Flavored, Not Sweetened",null,null,null,null,null,null,null,null,"Hong Kong $1.86",null,"P = Plastics"]
["Size Parity",null,null,null,null,null,null,null,null,null,"Comments",null,null,null,null,null,null,null,null,null,null,null,null,null,"UPC Code",null,null,null,null,null,null,null,null,null,null,null,null,null,null,null,null,null,"Company Name:",null,null,null,null,null,null,null,null,null,null,null,null,null,null,null,null,null,null,null,null,null,null,"V = Water Carbonated",null,null,null,null,null,null,null,null,"Ningbo $1.86"]
[null,null,null,null,null,null,null,null,null,null,null,null,null,null,null,null,null,null,null,null,null,null,null,null,null,null,null,null,null,null,null,null,null,null,null,null,null,null,null,null,null,null,null,null,null,null,null,null,null,null,null,null,null,null,null,null,null,null,null,null,null,null,null,null,null,"W = Water Plain",null,null,null,null,null,null,null,null,"Shanghai $1.90"]
["Brand Relationship",null,null,null,null,null,null,null,null,null,null,null,null,null,null,"Product Group",null,null,null,null,null,null,null,null,"Description ",null,null,null,null,null,null,null,null,null,null,null,null,null,null,null,null,null,"Contact Name:",null,null,null,null,null,null,null,null,null,null,null,null,null,null,null,null,null,null,null,null,null,null,"Y = Water Flavored, Sweetened",null,null,null,null,null,null,null,null,"Xiamen $1.91"]
[null,null,null,null,null,null,null,null,null,null,null,null,null,null,null,null,null,null,null,null,null,null,null,null,null,null,null,null,null,null,null,null,null,null,null,null,null,null,null,null,null,null,null,null,null,null,null,null,null,null,null,null,null,null,null,null,null,null,null,null,null,null,null,null,null,"Z = Garnishes/Mixers",null,null,null,null,null,null,null,null,"Qingdao $1.87"]
[null,"Comments",null,null,null,null,null,null,null,null,null,null,null,null,null,null,null,null,null,null,null,null,null,null,"UPC Code",null,null,null,null,null,null,null,null,null,null,null,null,null,null,null,null,null,"Address:",null,null,null,null,null,null,null,null,null,null,null,null,null,null,null,null,null,null,null,null,null,null,null,null,null,null,null,null,null,null,null,"Fuzhou $1.95"]
[null,null,null,null,null,null,null,null,null,null,null,null,null,null,null,null,null,null,null,null,null,null,null,null,null,null,null,null,null,null,null,null,null,null,null,null,null,null,null,null,null,null,null,null,null,null,null,null,null,null,null,null,null,null,null,null,null,null,null,null,null,null,null,null,null,null,null,null,null,null,null,null,null,null,"Dalian $1.92"]
[null,null,null,null,null,null,null,null,null,null,null,null,null,null,null,null,null,null,null,null,null,null,null,null,"Description ",null,null,null,null,null,null,null,null,null,null,null,null,null,null,null,null,null,null,null,null,null,null,null,null,null,null,null,null,null,null,null,null,null,null,null,null,null,null,null,null,null,null,null,null,null,null,null,null,null,"Xingang $1.91"]
[null,null,null,null,null,null,null,null,null,null,null,null,null,null,null,null,null,null,null,null,null,null,null,null,null,null,null,null,null,null,null,null,null,null,null,null,null,null,null,null,null,null,null,null,null,null,null,null,null,null,null,null,null,null,null,null,null,null,null,null,null,null,null,null,null,null,null,null,null,null,null,null,null,null,"Nanjing $2.02"]
["PRIMARY ITEM LINKS",null,null,null,null,null,null,null,null,null,null,null,null,null,null,null,null,null,null,null,null,null,null,null,"UPC Code",null,null,null,null,null,null,null,null,null,null,null,null,null,null,null,null,null,null,null,null,null,null,null,null,null,null,null,null,null,null,null,null,null,null,null,null,null,null,null,null,null,null,null,null,null,null,null,null,null,"India $2.17"]
["Case To Piece Link #",null,null,null,null,null,null,null,null,null,null,null,null,null,null,null,null,null,null,null,null,null,null,null,null,null,null,null,null,null,null,null,null,null,null,null,null,null,null,null,null,null,"Telephone #:",null,null,null,null,null,null,null,null,null,null,null,null,null,null,null,null,null,null,null,null,null,null,null,null,null,null,null,null,null,null,null,"Indonesia $1.99"]
[null,null,null,null,null,null,null,null,null,null,null,null,null,null,null,null,null,null,null,null,null,null,null,null,"Description ",null,null,null,null,null,null,null,null,null,null,null,null,null,null,null,null,null,null,null,null,null,null,null,null,null,null,null,null,null,null,null,null,null,null,null,null,null,null,null,null,"Assortment",null,null,null,null,null,null,null,null,"Korea $1.86"]
["Cigarette LIP Link #",null,null,null,null,null,null,null,null,null,null,null,null,null,null,null,null,null,null,null,null,null,null,null,null,null,null,null,null,null,null,null,null,null,null,null,null,null,null,null,null,null,"Email Address:",null,null,null,null,null,null,null,null,null,null,null,null,null,null,null,null,null,null,null,null,null,null,"Box",null,null,null,null,null,null,null,null,"Malaysia $1.98"]
[null,null,null,null,null,null,null,null,null,null,null,null,null,null,null,null,null,null,null,null,null,null,null,null,"UPC Code",null,null,null,null,null,null,null,null,null,null,null,null,null,null,null,null,null,null,null,null,null,null,null,null,null,null,null,null,null,null,null,null,null,null,null,null,null,null,null,null,"Case",null,null,null,null,null,null,null,null,"Pakistan $2.13"]
["Compare and Save Link #",null,null,null,null,null,null,null,null,null,null,null,null,null,null,null,null,null,null,null,null,null,null,null,null,null,null,null,null,null,null,null,null,null,null,null,null,null,null,null,null,null,null,null,null,null,null,null,null,null,null,null,null,null,null,null,null,null,null,null,null,null,null,null,null,"Count",null,null,null,null,null,null,null,null,"Taiwan $1.94"]
[null,null,null,null,null,null,null,null,null,null,null,null,null,null,null,null,null,null,null,null,null,null,null,null,"Description ",null,null,null,null,null,null,null,null,null,null,null,null,null,null,null,null,null,null,null,null,null,null,null,null,null,null,null,null,null,null,null,null,null,null,null,null,null,null,null,null,"Display",null,null,null,null,null,null,null,null,"Thailand $1.98"]
[null,null,null,null,null,null,null,null,null,null,null,null,null,null,null,null,null,null,null,null,null,null,null,null,null,null,null,null,null,null,null,null,null,null,null,null,null,null,null,null,null,null,null,null,null,null,null,null,null,null,null,null,null,null,null,null,null,null,null,null,null,null,null,null,null,"Dose",null,null,null,null,null,null,null,null,"Vietnam $1.96"]
["PLANOGRAM AND SEASONAL ITEMS ONLY",null,null,null,null,null,null,null,null,null,null,null,null,null,null,null,null,null,null,null,null,null,null,null,"UPC Code",null,null,null,null,null,null,null,null,null,null,null,null,null,null,null,null,null,"PLACE PHOTO IN THIS BOX",null,null,null,null,null,null,null,null,null,null,null,null,null,null,null,null,null,null,null,null,null,null,"Dozen"]
[null,null,null,null,null,null,null,null,null,null,null,null,null,null,null,null,null,null,null,null,null,null,null,null,null,null,null,null,null,null,null,null,null,null,null,null,null,null,null,null,null,null,null,null,null,null,null,null,null,null,null,null,null,null,null,null,null,null,null,null,null,null,null,null,null,"Each",null,null,null,null,null,null,null,null,"Does Not expire"]
["Planogram Name",null,null,null,null,null,null,null,null,null,null,null,null,null,null,null,null,null,null,null,null,null,null,null,"Description ",null,null,null,null,null,null,null,null,null,null,null,null,null,null,null,null,null,null,null,null,null,null,null,null,null,null,null,null,null,null,null,null,null,null,null,null,null,null,null,null,"Feet",null,null,null,null,null,null,null,null,"Expiration Date Not Readable"]
[null,null,null,null,null,null,null,null,null,null,null,null,null,null,null,null,null,null,null,null,null,null,null,null,null,null,null,null,null,null,null,null,null,null,null,null,null,null,null,null,null,null,null,null,null,null,null,null,null,null,null,null,null,null,null,null,null,null,null,null,null,null,null,null,null,"Gallon",null,null,null,null,null,null,null,null,"Expiration Date Readable"]
["Planogram Cluster ",null,null,null,null,null,null,null,null,null,null,null,null,null,null,null,null,null,null,null,null,null,null,null,"UPC Code",null,null,null,null,null,null,null,null,null,null,null,null,null,null,null,null,null,null,null,null,null,null,null,null,null,null,null,null,null,null,null,null,null,null,null,null,null,null,null,null,"Gram",null,null,null,null,null,null,null,null,"Production Date Not Readable"]
[null,null,null,null,null,null,null,null,null,null,null,null,null,null,null,null,null,null,null,null,null,null,null,null,null,null,null,null,null,null,null,null,null,null,null,null,null,null,null,null,null,null,null,null,null,null,null,null,null,null,null,null,null,null,null,null,null,null,null,null,null,null,null,null,null,"Inches",null,null,null,null,null,null,null,null,"Production Date Readable"]
["Item Launch Type",null,null,null,null,null,null,null,null,null,null,null,null,null,null,null,null,null,null,null,null,null,null,null,"Description ",null,null,null,null,null,null,null,null,null,null,null,null,null,null,null,null,null,null,null,null,null,null,null,null,null,null,null,null,null,null,null,null,null,null,null,null,null,null,null,null,"Kit"]
[null,null,null,null,null,null,null,null,null,null,null,null,null,null,null,null,null,null,null,null,null,null,null,null,null,null,null,null,null,null,null,null,null,null,null,null,null,null,null,null,null,null,null,null,null,null,null,null,null,null,null,null,null,null,null,null,null,null,null,null,null,null,null,null,null,"Liter"]
["Season Type",null,null,null,null,null,null,null,null,null,null,null,null,null,null,null,null,null,null,null,null,null,null,null,"UPC Code",null,null,null,null,null,null,null,null,null,null,null,null,null,null,null,null,null,null,null,null,null,null,null,null,null,null,null,null,null,null,null,null,null,null,null,null,null,null,null,null,"Milliliter",null,null,null,null,null,null,null,null,"100 Sq. Feet"]
[null,null,null,null,null,null,null,null,null,null,null,null,null,null,null,null,null,null,null,null,null,null,null,null,null,null,null,null,null,null,null,null,null,null,null,null,null,null,null,null,null,null,null,null,null,null,null,null,null,null,null,null,null,null,null,null,null,null,null,null,null,null,null,null,null,"Millimeter",null,null,null,null,null,null,null,null,"100 Count"]
["DESCRIPTION FIELDS",null,null,null,null,null,null,null,null,null,null,null,null,null,null,null,null,null,null,null,null,null,null,null,"Description ",null,null,null,null,null,null,null,null,null,null,null,null,null,null,null,null,null,null,null,null,null,null,null,null,null,null,null,null,null,null,null,null,null,null,null,null,null,null,null,null,"Ounces ",null,null,null,null,null,null,null,null,"Assortment"]
["Advertising",null,null,null,null,null,null,null,null,null,null,null,null,null,null,null,null,null,null,null,null,null,null,null,null,null,null,null,null,null,null,null,null,null,null,null,null,null,null,null,null,null,null,null,null,null,null,null,null,null,null,null,null,null,null,null,null,null,null,null,null,null,null,null,null,"Pack",null,null,null,null,null,null,null,null,"Box"]
[null,null,null,null,null,null,null,null,null,null,null,null,null,null,null,null,null,null,null,null,null,null,null,null,"UPC Code",null,null,null,null,null,null,null,null,null,null,null,null,null,null,null,null,null,null,null,null,null,null,null,null,null,null,null,null,null,null,null,null,null,null,null,null,null,null,null,null,"Piece",null,null,null,null,null,null,null,null,"Case"]
[null,null,null,null,null,null,null,null,null,null,null,null,null,null,null,null,null,null,null,null,null,null,null,null,null,null,null,null,null,null,null,null,null,null,null,null,null,null,null,null,null,null,null,null,null,null,null,null,null,null,null,null,null,null,null,null,null,null,null,null,null,null,null,null,null,"Pint",null,null,null,null,null,null,null,null,"Cubic Feet"]
[null,null,null,null,null,null,null,null,null,null,null,null,null,null,null,null,null,null,null,null,null,null,null,null,"Description ",null,null,null,null,null,null,null,null,null,null,null,null,null,null,null,null,null,null,null,null,null,null,null,null,null,null,null,null,null,null,null,null,null,null,null,null,null,null,null,null,"Pound",null,null,null,null,null,null,null,null,"Count"]
["Shelf Label",null,null,null,null,null,null,null,null,null,null,null,null,null,null,null,null,null,null,null,null,null,null,null,null,null,null,null,null,null,null,null,null,null,null,null,null,null,null,null,null,null,null,null,null,null,null,null,null,null,null,null,null,null,null,null,null,null,null,null,null,null,null,null,null,"Quart",null,null,null,null,null,null,null,null,"Display"]
[null,null,null,null,null,null,null,null,null,null,null,null,null,null,null,null,null,null,null,null,null,null,null,null,"UPC Code",null,null,null,null,null,null,null,null,null,null,null,null,null,null,null,null,null,null,null,null,null,null,null,null,null,null,null,null,null,null,null,null,null,null,null,null,null,null,null,null,"Set ",null,null,null,null,null,null,null,null,"Dose"]
["POS Register Receipt",null,null,null,null,null,null,null,null,null,null,null,null,null,null,null,null,null,null,null,null,null,null,null,null,null,null,null,null,null,null,null,null,null,null,null,null,null,null,null,null,null,null,null,null,null,null,null,null,null,null,null,null,null,null,null,null,null,null,null,null,null,null,null,null,"Yard",null,null,null,null,null,null,null,null,"Dozen "]
["ADDITIONAL REF FIELDS",null,null,null,null,null,null,null,null,null,null,null,null,null,null,null,null,null,null,null,null,null,null,null,"Description ",null,null,null,null,null,null,null,null,null,null,null,null,null,null,null,null,null,null,null,null,null,null,null,null,null,null,null,null,null,null,null,null,null,null,null,null,null,null,null,null,null,null,null,null,null,null,null,null,null,"Each"]
["Prompt For Price",null,null,null,null,null,"Prompt For Quantity",null,null,null,null,null,null,null,null,null,null,null,null,null,null,null,null,null,null,null,null,null,null,null,null,null,null,null,null,null,null,null,null,null,null,null,null,null,null,null,null,null,null,null,null,null,null,null,null,null,null,null,null,null,null,null,null,null,null,null,null,null,null,null,null,null,null,null,"Linear Foot"]
[null,null,null,null,null,null,null,null,null,null,null,null,null,null,null,null,null,null,null,null,null,null,null,null,"UPC Code",null,null,null,null,null,null,null,null,null,null,null,null,null,null,null,null,null,null,null,null,null,null,null,null,null,null,null,null,null,null,null,null,null,null,null,null,null,null,null,null,"Local",null,null,null,null,null,null,null,null,"Feet"]
["Location",null,null,null,null,null,null,null,null,null,null,null,null,null,null,null,null,null,null,null,null,null,null,null,null,null,null,null,null,null,null,null,null,null,null,null,null,null,null,null,null,null,null,null,null,null,null,null,null,null,null,null,null,null,null,null,null,null,null,null,null,null,null,null,null,"National",null,null,null,null,null,null,null,null,"Gallon"]
[null,null,null,null,null,null,null,null,null,null,null,null,null,null,null,null,null,null,null,null,null,null,null,null,"Description ",null,null,null,null,null,null,null,null,null,null,null,null,null,null,null,null,null,null,null,null,null,null,null,null,null,null,null,null,null,null,null,null,null,null,null,null,null,null,null,null,null,null,null,null,null,null,null,null,null,"Gram"]
["Electronic Article Surveillance",null,null,null,null,null,null,null,null,null,null,null,"DSD Pricing Indicator",null,null,null,null,null,null,null,null,null,null,null,null,null,null,null,null,null,null,null,null,null,null,null,null,null,null,null,null,null,null,null,null,null,null,null,null,null,null,null,null,null,null,null,null,null,null,null,null,null,null,null,null,null,null,null,null,null,null,null,null,null,"Inches"]
[null,null,null,null,null,null,null,null,null,null,null,null,null,null,null,null,null,null,null,null,null,null,null,null,"ALCOHOL ZONE RETAILS",null,null,null,null,null,null,null,null,null,null,null,null,null,null,null,null,null,null,null,null,null,null,null,null,null,null,null,null,null,null,null,null,null,null,null,null,null,null,null,null,null,null,null,null,null,null,null,null,null,"Kilogram"]
["Color",null,null,null,null,null,"E-Waste Fee",null,null,null,null,null,null,null,null,null,null,null,null,null,null,null,null,null,null,null,null,null,null,null,null,null,null,null,null,null,null,null,null,null,null,null,null,null,null,null,null,null,null,null,null,null,null,null,null,null,null,null,null,null,null,null,null,null,null,"Feet",null,null,null,null,null,null,null,null,"Kit"]
[null,null,null,null,null,null,null,null,null,null,null,null,null,null,null,null,null,null,null,null,null,null,null,null,"ZONE 9 = IN",null,null,null,null,null,"Cost",null,null,null,null,null,"Retail",null,null,null,null,null,null,null,null,null,null,null,null,null,null,null,null,null,null,null,null,null,null,null,null,null,null,null,null,"Inch",null,null,null,null,null,null,null,null,"Pounds"]
["INVENTORY",null,null,null,null,null,null,null,null,null,null,null,null,null,null,null,null,null,null,null,null,null,null,null,null,null,null,null,null,null,null,null,null,null,null,null,null,null,null,null,null,null,null,null,null,null,null,null,null,null,null,null,null,null,null,null,null,null,null,null,null,null,null,null,null,"Millimeter",null,null,null,null,null,null,null,null,"Liter"]
[null,null,null,null,null,null,null,null,null,null,null,null,null,null,null,null,null,null,null,null,null,null,null,null,"ZONE 12 = LA",null,null,null,null,null,"Cost",null,null,null,null,null,"Retail",null,null,null,null,null,null,null,null,null,null,null,null,null,null,null,null,null,null,null,null,null,null,null,null,null,null,null,null,"Yard",null,null,null,null,null,null,null,null,"Milliliter"]
["Store Shelf Pack Quantity",null,null,null,null,null,null,null,null,"Max Order Amount",null,null,null,null,null,null,null,null,null,null,null,null,null,null,null,null,null,null,null,null,null,null,null,null,null,null,null,null,null,null,null,null,null,null,null,null,null,null,null,null,null,null,null,null,null,null,null,null,null,null,null,null,null,null,null,null,null,null,null,null,null,null,null,null,"Millimeter"]
[null,null,null,null,null,null,null,null,null,null,null,null,null,null,null,null,null,null,null,null,null,null,null,null,"ZONE 7 = UC",null,null,null,null,null,"Cost",null,null,null,null,null,"Retail",null,null,null,null,null,null,null,null,null,null,null,null,null,null,null,null,null,null,null,null,null,null,null,null,null,null,null,null,null,null,null,null,null,null,null,null,null,"Ounces"]
[null,null,null,null,null,null,null,null,null,null,null,null,null,null,null,null,null,null,null,null,null,null,null,null,null,null,null,null,null,null,null,null,null,null,null,null,null,null,null,null,null,null,null,null,null,null,null,null,null,null,null,null,null,null,null,null,null,null,null,null,null,null,null,null,null,"Gram",null,null,null,null,null,null,null,null,"Piece"]
[null,null,null,null,null,null,null,null,null,null,null,null,null,null,null,null,null,null,null,null,null,null,null,null,"ZONE 10 = BV",null,null,null,null,null,"Cost",null,null,null,null,null,"Retail",null,null,null,null,null,null,null,null,null,null,null,null,null,null,null,null,null,null,null,null,null,null,null,null,null,null,null,null,"Kilogram",null,null,null,null,null,null,null,null,"Pack"]
[null,null,null,null,null,null,null,null,null,null,null,null,null,null,null,null,null,null,null,null,null,null,null,null,null,null,null,null,null,null,null,null,null,null,null,null,null,null,null,null,null,null,null,null,null,null,null,null,null,null,null,null,null,null,null,null,null,null,null,null,null,null,null,null,null,"Pound",null,null,null,null,null,null,null,null,"Pint"]
[null,null,null,null,null,null,null,null,null,null,null,null,null,null,null,null,null,null,null,null,null,null,null,null,"ZONE 11 = FL & OR",null,null,null,null,null,"Cost",null,null,null,null,null,"Retail",null,null,null,null,null,null,null,null,null,null,null,null,null,null,null,null,null,null,null,null,null,null,null,null,null,null,null,null,"Ounces",null,null,null,null,null,null,null,null,"Quart"]
[null,null,null,null,null,null,null,null,null,null,null,null,null,null,null,null,null,null,null,null,null,null,null,null,null,null,null,null,null,null,null,null,null,null,null,null,null,null,null,null,null,null,null,null,null,null,null,null,null,null,null,null,null,null,null,null,null,null,null,null,null,null,null,null,null,null,null,null,null,null,null,null,null,null,"Square Foot"]
[null,null,null,null,null,null,null,null,null,null,null,null,null,null,null,null,null,null,null,null,null,null,null,null,null,null,null,null,null,null,null,null,null,null,null,null,null,null,null,null,null,null,null,null,null,null,null,null,null,null,null,null,null,null,null,null,null,null,null,null,null,null,null,null,null,"Corrugated",null,null,null,null,null,null,null,null,"Sheet"]
[null,null,null,null,null,null,null,null,null,null,null,null,null,null,null,null,null,null,null,null,null,null,null,null,null,null,null,null,null,null,null,null,null,null,null,null,null,null,null,null,null,null,null,null,null,null,null,null,null,null,null,null,null,null,null,null,null,null,null,null,null,null,null,null,null,"Polybag",null,null,null,null,null,null,null,null,"Yard"]
[null,null,null,null,null,null,null,null,null,null,null,null,null,null,null,null,null,null,null,null,null,null,null,null,null,null,null,null,null,null,null,null,null,null,null,null,null,null,null,null,null,null,null,null,null,null,null,null,null,null,null,null,null,null,null,null,null,null,null,null,null,null,null,null,null,"Both",null,null,null,null,null,null,null,null,"Usage"]
[null,null,null,null,null,null,null,null,null,null,null,null,null,null,null,null,null,null,null,null,null,null,null,null,null,null,null,null,null,null,null,null,null,null,null,null,null,null,null,null,null,null,null,null,null,null,null,null,null,null,null,null,null,null,null,null,null,null,null,null,null,null,null,null,null,null,null,null,null,null,null,null,null,null,"Set"]

{"sheet":"DIF COST BY DC","index":5,"n_rows":23,"n_cols":3,"rows_kept":23,"cut":false,"hidden":false,"merged":[]}
["PRICING INFO- Enter costs by DC "]
["Vendor Item #"]
["DC Name","DC","COST "]
["Bessemer","AL"]
["Arizona","BV"]
["Conroe","CR "]
["Novi","DT"]
["Ennis","EN"]
["Vero Beach","FL"]
["Hawaii","HI"]
["Indianapolis","IN"]
["KANSAS CITY","KC"]
["LaHabra","LA"]
["Fredericksburg","MA"]
["Lumberton","NJ"]
["Orlando","OR"]
["Somerset","PA"]
["PUERTO RICO","RC"]
["N. Augusta","SC"]
["Knoxville","TN"]
["Patterson","UC"]
["Woonsocket","WN"]
["Chemung","YK"]

{"sheet":"PSE Validation Form","index":6,"n_rows":18,"n_cols":8,"rows_kept":18,"cut":false,"hidden":false,"merged":[[0,0,0,17],[1,0,1,17],[3,4,3,5],[3,10,3,16],[5,3,5,4],[7,4,7,16],[21,3,21,16],[13,4,13,5],[15,4,15,5],[17,3,17,16],[18,3,18,16],[19,3,19,16],[20,3,20,16]]}
["PSE Validation Form"]
["Instructions: Please fill out the following information for any item containing PSE (Pseudophedrine). Please note, by filling out this form you agree that the information you have provided regarding the PSE Base Gram Weight and PSE Salt Gram weight has been tested and is accurate to the best of your knowledge. You also agree that the NDC number you have provided has been issued by the FDA."]
[]
["Supplier Number",null,null,null,null,null,null,"Supplier Name"]
[]
["Item Number"]
[]
["Item Description"]
[]
["UPC"]
[]
["NDC"]
[]
["Base Gram Weight"]
[]
["Salt Gram Weight"]
[]
["Comments:"]

{"sheet":"Volume & Qty of Children","index":7,"n_rows":61,"n_cols":7,"rows_kept":61,"cut":false,"hidden":false,"merged":[[20,0,20,5],[26,0,26,5],[32,0,32,5],[43,0,43,10]]}
["It is extremely important that your pallet plan information is accurate - CVS has hard stops in the system to prevent entry of any dimension that do not meet the volume requirements - example an each cannot be bigger than an inner and an inner cannot be bigger than a case - below are some examples and information to help you get there.  "]
["Height, Width, Depth is in inches "]
["Case weight must be in pounds"]
["Only one decimal place round up to the next number"]
[]
["Volume is derived by: "]
[]
["Item Height x Item Width x Item Depth x Inner Qty = Volume "]
["Inner Height x Inner Width x Inner Depth x Case Qty = Volume "]
["Case Height x Case Width x Case Depth = Volume "]
[]
["Case level should be the biggest volume # "]
["Inner level should be lower than case volume #"]
["Item level should be lower than case and Inner #  "]
["NOTE – same logic applies for weight control.  Each=<Inner=<Case"]
[]
["As long as the volume of the Item fits into the inner and the inner fits into the case, we won’t have a problem."]
[]
["Example grid below: "]
[]
["Item with inner of 3 and case pk of 24: ",null,null,null,null,null,"Math shown "]
["Level ","Height","Width","Depth","Qty of children","Volume "]
["Each ",1.2,3.3,4.4000000000000004,1,52.271999999999998,"1.2 x 3.3 x 4.4 x 3 = 52.272"]
["Inner ",4.4000000000000004,6.6,3.3,3,766.65599999999995,"4.4 x 6.6 x 3.3 x 8 = 766.656"]
["Case ",24.3,18.3,19.399999999999999,8,8626.9860000000008,"24.3 x 18.3 x 19.4 = 8626.986"]
[]
["Item with no inner and a case pk of 48 "]
["Level","Height","Width","Depth","Qty of children","Volume"]
["Each",1.2,3.3,4.4000000000000004,1,836.35199999999998," 1.2 x 3.3 x 4.4 x 48 = 836.352"]
["Case",24.3,18.3,19.399999999999999,48,8626.9860000000008," 24.3 x 18.3 x 19.4 = 8626.986"]
[]
[]
["Item with Inner of 3 and case pk of 24 which will NOT work "]
["Level","Height","Width","Depth","Qty of Children","Volume "]
["Each",1.2,3.3,4.4000000000000004,1,52.271999999999998," 1.2 x 3.3 x 4.4 x 3 = 52.272 "]
["Inner",1.2,3.3,4.4000000000000004,3,139.392," 1.2 x 3.3 x 4.4 x 8 = 139.392 "]
["Case",1.6,3.3,5.8,8,30.623999999999999," 1.6 x 3.3 x 5.8 = 30.624"]
[]
[]
["Quantity of Children is often questioned as well - below is the definition:"]
["Below is the Quantity of Children examples and rules around innerpack"]
[]
["Inner Pack Criteria"]
[" - With regards to new items and/or packaging changes on existing items, when the item is distributed in pieces/eaches; CVS accepts no Inner Packs without approval from:\n     dcinbound@cvshealth.com\n - When inner packs are approved the previously agreed upon style of inner must be used.  The inner pack style includes those where the selling unit is readily accessible\n    for piece picking and unit pricing\n - In all inner pack criteria, when the selling unit is a piece/each picked, the selling unit must be immediately accessible once the master case is cut open for order selection\n    Six sided inner packs or styles with product surrounded in plastic, cardboard, or bound together in any way are NOT acceptable"]
[]
[]
[]
[]
[]
[]
[]
[]
["-----------------------------------------------------------------------------------------------------------------------------------"]
["Case with Inner: "]
["Item is an each "]
["Qty of Children at Inner is how many “each” it contains"]
["Qty of Child at case is how many “inners” there are in a case.  "]
[]
["Case without Inner"]
["Item is an each "]
["Qty of Children at case is how many \"eaches\" there are in the case "]

{"sheet":"Pckg Requirements","index":8,"n_rows":0,"n_cols":0,"rows_kept":0,"cut":false,"hidden":false,"merged":[]}

{"sheet":"Maintenance Form","index":9,"n_rows":24,"n_cols":15,"rows_kept":24,"cut":false,"hidden":false,"merged":[[14,14,14,15],[15,14,15,15],[16,14,16,15],[5,14,5,15],[8,14,8,15],[9,14,9,15],[10,14,10,15],[11,14,11,15],[0,0,0,15],[1,1,1,15],[2,14,2,15],[3,14,3,15],[4,14,4,15],[17,14,17,15],[20,14,20,15],[21,14,21,15],[22,14,22,15],[23,14,23,15]]}
["Pallet Plan and Size Change Maintenance Form"]
["Instructions:","This form should be used for all items requiring a Size Change, UPC, Case Pack Change and/or Pallet Plan change                                                                                                                                                           \nPrior to completing this form refer to tabs Qty of Children Example and Packaging Requirements\nONLY include the item attributes that are changing\nWhen clicking within each cell, refer to notes for additional instructions"]
["Item Number:",null,"Current Package Size","New Package Size","New Shelf Pack","Quantity Of Children","Height ","Width","Depth","Weight","Current UPC","New UPC","Layers Per Pallet","Cases Per Layer","Comments\n (i.e. effective date)"]
[null,"Case Level"]
["Item Description:","Inner Level"]
[null,"Each Level"]
[]
[]
["Item Number:",null,"Current Package Size","New Package Size","New Shelf Pack","Quantity Of Children","Height ","Width","Depth","Weight","Current UPC","New UPC","Layers Per Pallet","Cases Per Layer","Comments\n (i.e. effective date)"]
[null,"Case Level"]
["Item Description:","Inner Level"]
[null,"Each Level"]
[]
[]
["Item Number:",null,"Current Package Size","New Package Size","New Shelf Pack","Quantity Of Children","Height ","Width","Depth","Weight","Current UPC","New UPC","Layers Per Pallet","Cases Per Layer","Comments\n (i.e. effective date)"]
[null,"Case Level"]
["Item Description:","Inner Level"]
[null,"Each Level"]
[]
[]
["Item Number:",null,"Current Package Size","New Package Size","New Shelf Pack","Quantity Of Children","Height ","Width","Depth","Weight","Current UPC","New UPC","Layers Per Pallet","Cases Per Layer","Comments\n (i.e. effective date)"]
[null,"Case Level"]
["Item Description:","Inner Level"]
[null,"Each Level"]

{"sheet":"VALIDATION","index":10,"n_rows":300,"n_cols":4,"rows_kept":300,"cut":false,"hidden":true,"merged":[]}
["Please enter","Entered","Required","Item Type"]
[null,null,null,"Standard"]
[" MHE",{"$f":"IF('New Item Form '!C14<>\"\",1,0)","v":0},1,{"$f":"IF((B3-C3)<0,\"Standard\",\"\")","v":"Standard"}]
[" UPC",{"$f":"IF(OR('New Item Form '!G19<>\"\",'New Item Form '!G21<>\"\",'New Item Form '!L23<>\"\",'New Item Form '!G27<>\"\",'New Item Form '!G29<>\"\",'New Item Form '!G31<>\"\"),1,0)","v":0},1,{"$f":"IF((B4-C4)<0,\"Standard\",\"\")","v":"Standard"}]
[" Supplier Item Description",{"$f":"IF('New Item Form '!G35<>\"\",1,0)","v":0},1,"Standard"]
[" CVS Supplier #",{"$f":"IF('New Item Form '!D37<>\"\",1,0)","v":0},1,"Standard"]
[" Supplier Name",{"$f":"IF('New Item Form '!L37<>\"\",1,0)","v":0},1,"Standard"]
[" Supplier Brand",{"$f":"IF('New Item Form '!D41<>\"\",1,0)","v":0},1,"Standard"]
[" Consumer Size Quantity",{"$f":"IF('New Item Form '!E52<>\"\",1,0)","v":0},1,"Standard"]
[" Consumer Size UOM",{"$f":"IF('New Item Form '!N52<>\"\",1,0)","v":0},1,"Standard"]
[" Item Height",{"$f":"IF('New Item Form '!M54<>\"\",1,0)","v":0},1,"Standard"]
[" Item Width",{"$f":"IF('New Item Form '!T54<>\"\",1,0)","v":0},1,"Standard"]
[" Item Depth",{"$f":"IF('New Item Form '!D56<>\"\",1,0)","v":0},1,"Standard"]
[" Item Dimension UOM",{"$f":"IF('New Item Form '!Q56<>\"\",1,0)","v":0},1,"Standard"]
[" Supplier Item Gross Weight",{"$f":"IF('New Item Form '!F58<>\"\",1,0)","v":0},1,"Standard"]
[" Supplier Item Gross Weight UOM",{"$f":"IF('New Item Form '!P58<>\"\",1,0)","v":0},1,"Standard"]
[" Facts Box",{"$f":"IF('New Item Form '!BI5<>\"\",1,0)","v":0},1,"Standard"]
[" Date Code Type",{"$f":"IF('New Item Form '!BG10<>\"\",1,0)","v":0},1,"Standard"]
[" Shelf Life (in weeks)",{"$f":"IF('New Item Form '!AG12<>\"\",1,0)","v":0},1,"Standard"]
[" Date Code Format",{"$f":"IF('New Item Form '!AP12<>\"\",1,0)","v":0},1,"Standard"]
[" Date Code Format Description",{"$f":"IF('New Item Form '!BA12<>\"\",1,0)","v":0},1,"Standard"]
[" All Mainland Cost",{"$f":"IF('New Item Form '!AD56<>\"\",1,0)","v":0},1,"Standard"]
[" Reconstituted Quantity",{"$f":"IF('New Item Form '!AE10<>\"\",1,0)","v":0},1,"Standard"]
[" Reconstituted UOM",{"$f":"IF('New Item Form '!AN10<>\"\",1,0)","v":0},1,"Standard"]
[" Case Supplier Brand",{"$f":"IF('New Item Form '!AT41<>\"\",1,0)","v":0},1,"Standard"]
[" Case Quantity of Children",{"$f":"IF('New Item Form '!AD43<>\"\",1,0)","v":0},null,""]
[" Case Height",{"$f":"IF('New Item Form '!AB45<>\"\",1,0)","v":0},1,"Standard"]
[" Case Width",{"$f":"IF('New Item Form '!AJ45<>\"\",1,0)","v":0},1,"Standard"]
[" Case Depth",{"$f":"IF('New Item Form '!AR45<>\"\",1,0)","v":0},1,"Standard"]
[" Case Dimension UOM",{"$f":"IF('New Item Form '!AZ45<>\"\",1,0)","v":0},1,"Standard"]
[" Case Weight",{"$f":"IF('New Item Form '!AF47<>\"\",1,0)","v":0},1,"Standard"]
[" Case Weight UOM",{"$f":"IF('New Item Form '!AO47<>\"\",1,0)","v":0},1,"Standard"]
[" Case Date Code Type",{"$f":"IF('New Item Form '!AC49<>\"\",1,0)","v":0},1,"Standard"]
["Case Shelf Life (in weeks)",{"$f":"IF('New Item Form '!AP49<>\"\",1,0)","v":0},1,"Standard"]
["Case Date Code Format",{"$f":"IF('New Item Form '!AW49<>\"\",1,0)","v":0},1,"Standard"]
["Case Date Code Format Description",{"$f":"IF('New Item Form '!BG49<>\"\",1,0)","v":0},1,"Standard"]
[" Bonus Type",{"$f":"IF('New Item Form '!E44<>\"\",1,0)","v":0},null,""]
[" Break Apart for Individual Sale",{"$f":"IF('New Item Form '!J46<>\"\",1,0)","v":0},null,""]
[" Supplier Regular Item UPC",{"$f":"IF('New Item Form '!G48<>\"\",1,0)","v":0},null,""]
[" Beverage Type Code",{"$f":"IF('New Item Form '!AE15<>\"\",1,0)","v":0},null,""]
[" Container Type Code",{"$f":"IF('New Item Form '!AT15<>\"\",1,0)","v":0},null,""]
[" Alcohol %",{"$f":"IF('New Item Form '!BD15<>\"\",1,0)","v":0},null,""]
[" Prepaid Card Type",{"$f":"IF('New Item Form '!AD64<>\"\",1,0)","v":0},null,""]
[" Supplier Fee",{"$f":"IF('New Item Form '!AC66<>\"\",1,0)","v":0},null,""]
[" Prepaid Gift Card Face Value",{"$f":"IF('New Item Form '!AP66<>\"\",1,0)","v":0},null,""]
[" Prepaid Gift Card Region Type",{"$f":"IF('New Item Form '!BI64<>\"\",1,0)","v":0},null,""]
[" Effective Start Date",{"$f":"IF('New Item Form '!AC68<>\"\",1,0)","v":0},null,""]
[" Effective End Date",{"$f":"IF('New Item Form '!AN68<>\"\",1,0)","v":0},null,""]
["Inner Supplier Brand",{"$f":"IF(AND('New Item Form '!BK22<>\"\",'New Item Form '!AT22<>\"\"),1,0)","v":0},{"$f":"IF('New Item Form '!$BK$22<>\"\",1,0)","v":0},""]
["Inner Quantity of Children",{"$f":"IF(AND('New Item Form '!BK22<>\"\",'New Item Form '!BK22<>\"\"),1,0)","v":0},{"$f":"IF('New Item Form '!$BK$22<>\"\",1,0)","v":0},""]
["Inner Height",{"$f":"IF(AND('New Item Form '!BK22<>\"\",'New Item Form '!AB26<>\"\"),1,0)","v":0},{"$f":"IF('New Item Form '!$BK$22<>\"\",1,0)","v":0},""]
["Inner Width",{"$f":"IF(AND('New Item Form '!BK22<>\"\",'New Item Form '!AJ26<>\"\"),1,0)","v":0},{"$f":"IF('New Item Form '!$BK$22<>\"\",1,0)","v":0},""]
["Inner Depth",{"$f":"IF(AND('New Item Form '!BK22<>\"\",'New Item Form '!AR26<>\"\"),1,0)","v":0},{"$f":"IF('New Item Form '!$BK$22<>\"\",1,0)","v":0},""]
["Inner Linear UOM",{"$f":"IF(AND('New Item Form '!BK22<>\"\",'New Item Form '!BA26<>\"\"),1,0)","v":0},{"$f":"IF('New Item Form '!$BK$22<>\"\",1,0)","v":0},""]
["Inner Weight",{"$f":"IF(AND('New Item Form '!BK22<>\"\",'New Item Form '!AJ26<>\"\"),1,0)","v":0},{"$f":"IF('New Item Form '!$BK$22<>\"\",1,0)","v":0},""]
["Inner Weight UOM",{"$f":"IF(AND('New Item Form '!BK22<>\"\",'New Item Form '!AL28<>\"\"),1,0)","v":0},{"$f":"IF('New Item Form '!$BK$22<>\"\",1,0)","v":0},""]
["Inner Date Code Type",{"$f":"IF(AND('New Item Form '!BK22<>\"\",'New Item Form '!AC30<>\"\"),1,0)","v":0},{"$f":"IF('New Item Form '!$BK$22<>\"\",1,0)","v":0},""]
["Inner Shelf Life (in weeks)",{"$f":"IF(AND('New Item Form '!BK22<>\"\",'New Item Form '!AP30<>\"\"),1,0)","v":0},{"$f":"IF('New Item Form '!$BK$22<>\"\",1,0)","v":0},""]
["Inner Date Code Format",{"$f":"IF(AND('New Item Form '!BK22<>\"\",'New Item Form '!AW30<>\"\"),1,0)","v":0},{"$f":"IF('New Item Form '!$BK$22<>\"\",1,0)","v":0},""]
["Inner Date Code Format Description",{"$f":"IF(AND('New Item Form '!BK22<>\"\",'New Item Form '!BG30<>\"\"),1,0)","v":0},{"$f":"IF('New Item Form '!$BK$22<>\"\",1,0)","v":0},""]
[null,null,null,"Bonus"]
[" MHE",{"$f":"B3","v":0},1,{"$f":"IF((B62-C62)<0,\"Bonus\",\"\")","v":"Bonus"}]
[" UPC",0,1,{"$f":"IF((B63-C63)<0,\"Bonus\",\"\")","v":"Bonus"}]
[" Supplier Item Description",0,1,"Bonus"]
[" CVS Supplier #",0,1,"Bonus"]
[" Supplier Name",0,1,"Bonus"]
[" Supplier Brand",0,1,"Bonus"]
[" Consumer Size Quantity",0,1,"Bonus"]
[" Consumer Size UOM",0,1,"Bonus"]
[" Item Height",0,1,"Bonus"]
[" Item Width",0,1,"Bonus"]
[" Item Depth",0,1,"Bonus"]
[" Item Dimension UOM",0,1,"Bonus"]
[" Supplier Item Gross Weight",0,1,"Bonus"]
[" Supplier Item Gross Weight UOM",0,1,"Bonus"]
[" Facts Box",0,1,"Bonus"]
[" Date Code Type",0,1,"Bonus"]
[" Shelf Life (in weeks)",0,1,"Bonus"]
[" Date Code Format",0,1,"Bonus"]
[" Date Code Format Description",0,1,"Bonus"]
[" All Mainland Cost",0,1,"Bonus"]
[" Reconstituted Quantity",{"$f":"B23","v":0},1,"Bonus"]
[" Reconstituted UOM",0,1,"Bonus"]
[" Case Supplier Brand",0,1,"Bonus"]
[" Case Quantity of Children",0,null,""]
[" Case Height",0,1,"Bonus"]
[" Case Width",0,1,"Bonus"]
[" Case Depth",0,1,"Bonus"]
[" Case Dimension UOM",0,1,"Bonus"]
[" Case Weight",0,1,"Bonus"]
[" Case Weight UOM",0,1,"Bonus"]
[" Case Date Code Type",0,1,"Bonus"]
["Case Shelf Life (in weeks)",0,null,""]
["Case Date Code Format",0,1,"Bonus"]
["Case Date Code Format Description",0,1,"Bonus"]
[" Bonus Type",0,1,"Bonus"]
[" Break Apart for Individual Sale",0,1,"Bonus"]
[" Supplier Regular Item UPC",0,1,"Bonus"]
[" Beverage Type Code",0,null,""]
[" Container Type Code",0,null,""]
[" Alcohol %",0,null,""]
[" Prepaid Card Type",0,null,""]
[" Supplier Fee",0,null,""]
[" Prepaid Gift Card Face Value",0,null,""]
[" Prepaid Gift Card Region Type",0,null,""]
[" Effective Start Date",0,null,""]
[" Effective End Date",0,null,""]
["Inner Supplier Brand",0,{"$f":"IF('New Item Form '!$BK$22<>\"\",1,0)","v":0},""]
["Inner Quantity of Children",0,{"$f":"IF('New Item Form '!$BK$22<>\"\",1,0)","v":0},""]
["Inner Height",0,{"$f":"IF('New Item Form '!$BK$22<>\"\",1,0)","v":0},""]
["Inner Width",0,{"$f":"IF('New Item Form '!$BK$22<>\"\",1,0)","v":0},""]
["Inner Depth",0,{"$f":"IF('New Item Form '!$BK$22<>\"\",1,0)","v":0},""]
["Inner Linear UOM",0,{"$f":"IF('New Item Form '!$BK$22<>\"\",1,0)","v":0},""]
["Inner Weight",0,{"$f":"IF('New Item Form '!$BK$22<>\"\",1,0)","v":0},""]
["Inner Weight UOM",0,{"$f":"IF('New Item Form '!$BK$22<>\"\",1,0)","v":0},""]
["Inner Date Code Type",0,{"$f":"IF('New Item Form '!$BK$22<>\"\",1,0)","v":0},""]
["Inner Shelf Life (in weeks)",0,{"$f":"IF('New Item Form '!$BK$22<>\"\",1,0)","v":0},""]
["Inner Date Code Format",0,{"$f":"IF('New Item Form '!$BK$22<>\"\",1,0)","v":0},""]
["Inner Date Code Format Description",0,{"$f":"IF('New Item Form '!$BK$22<>\"\",1,0)","v":0},""]
[null,null,null,"Beverage"]
[" MHE",{"$f":"B3","v":0},1,{"$f":"IF((B121-C121)<0,\"Beverage\",\"\")","v":"Beverage"}]
[" UPC",0,1,{"$f":"IF((B122-C122)<0,\"Beverage\",\"\")","v":"Beverage"}]
[" Supplier Item Description",0,1,"Beverage"]
[" CVS Supplier #",0,1,"Beverage"]
[" Supplier Name",0,1,"Beverage"]
[" Supplier Brand",0,1,"Beverage"]
[" Consumer Size Quantity",0,1,"Beverage"]
[" Consumer Size UOM",0,1,"Beverage"]
[" Item Height",0,1,"Beverage"]
[" Item Width",0,1,"Beverage"]
[" Item Depth",0,1,"Beverage"]
[" Item Dimension UOM",0,1,"Beverage"]
[" Supplier Item Gross Weight",0,1,"Beverage"]
[" Supplier Item Gross Weight UOM",0,1,"Beverage"]
[" Facts Box",0,1,"Beverage"]
[" Date Code Type",0,1,"Beverage"]
[" Shelf Life (in weeks)",0,1,"Beverage"]
[" Date Code Format",0,1,"Beverage"]
[" Date Code Format Description",0,1,"Beverage"]
[" All Mainland Cost",0,1,"Beverage"]
[" Reconstituted Quantity",{"$f":"B23","v":0},1,"Beverage"]
[" Reconstituted UOM",0,1,"Beverage"]
[" Case Supplier Brand",0,1,"Beverage"]
[" Case Quantity of Children",0,null,""]
[" Case Height",0,1,"Beverage"]
[" Case Width",0,1,"Beverage"]
[" Case Depth",0,1,"Beverage"]
[" Case Dimension UOM",0,1,"Beverage"]
[" Case Weight",0,1,"Beverage"]
[" Case Weight UOM",0,1,"Beverage"]
[" Case Date Code Type",0,1,"Beverage"]
["Case Shelf Life (in weeks)",0,null,""]
["Case Date Code Format",0,1,"Beverage"]
["Case Date Code Format Description",0,1,"Beverage"]
[" Bonus Type",0,null,""]
[" Break Apart for Individual Sale",0,null,""]
[" Supplier Regular Item UPC",0,null,""]
[" Beverage Type Code",0,1,"Beverage"]
[" Container Type Code",0,1,"Beverage"]
[" Alcohol %",0,1,"Beverage"]
[" Prepaid Card Type",0,null,""]
[" Supplier Fee",0,null,""]
[" Prepaid Gift Card Face Value",0,null,""]
[" Prepaid Gift Card Region Type",0,null,""]
[" Effective Start Date",0,null,""]
[" Effective End Date",0,null,""]
["Inner Supplier Brand",0,{"$f":"IF('New Item Form '!$BK$22<>\"\",1,0)","v":0},""]
["Inner Quantity of Children",0,{"$f":"IF('New Item Form '!$BK$22<>\"\",1,0)","v":0},""]
["Inner Height",0,{"$f":"IF('New Item Form '!$BK$22<>\"\",1,0)","v":0},""]
["Inner Width",0,{"$f":"IF('New Item Form '!$BK$22<>\"\",1,0)","v":0},""]
["Inner Depth",0,{"$f":"IF('New Item Form '!$BK$22<>\"\",1,0)","v":0},""]
["Inner Linear UOM",0,{"$f":"IF('New Item Form '!$BK$22<>\"\",1,0)","v":0},""]
["Inner Weight",0,{"$f":"IF('New Item Form '!$BK$22<>\"\",1,0)","v":0},""]
["Inner Weight UOM",0,{"$f":"IF('New Item Form '!$BK$22<>\"\",1,0)","v":0},""]
["Inner Date Code Type",0,{"$f":"IF('New Item Form '!$BK$22<>\"\",1,0)","v":0},""]
["Inner Shelf Life (in weeks)",0,{"$f":"IF('New Item Form '!$BK$22<>\"\",1,0)","v":0},""]
["Inner Date Code Format",0,{"$f":"IF('New Item Form '!$BK$22<>\"\",1,0)","v":0},""]
["Inner Date Code Format Description",0,{"$f":"IF('New Item Form '!$BK$22<>\"\",1,0)","v":0},""]
[null,null,null,"Gift Card"]
[" MHE",{"$f":"B3","v":0},1,{"$f":"IF((B180-C180)<0,\"Gift Card\",\"\")","v":"Gift Card"}]
[" UPC",0,1,{"$f":"IF((B181-C181)<0,\"Gift Card\",\"\")","v":"Gift Card"}]
[" Supplier Item Description",0,1,"Gift Card"]
[" CVS Supplier #",0,1,"Gift Card"]
[" Supplier Name",0,1,"Gift Card"]
[" Supplier Brand",0,1,"Gift Card"]
[" Consumer Size Quantity",0,1,"Gift Card"]
[" Consumer Size UOM",0,1,"Gift Card"]
[" Item Height",0,1,"Gift Card"]
[" Item Width",0,1,"Gift Card"]
[" Item Depth",0,1,"Gift Card"]
[" Item Dimension UOM",0,1,"Gift Card"]
[" Supplier Item Gross Weight",0,1,"Gift Card"]
[" Supplier Item Gross Weight UOM",0,1,"Gift Card"]
[" Facts Box",0,1,"Gift Card"]
[" Date Code Type",0,1,"Gift Card"]
[" Shelf Life (in weeks)",0,1,"Gift Card"]
[" Date Code Format",0,1,"Gift Card"]
[" Date Code Format Description",0,1,"Gift Card"]
[" All Mainland Cost",0,1,"Gift Card"]
[" Reconstituted Quantity",{"$f":"B23","v":0},1,"Gift Card"]
[" Reconstituted UOM",0,1,"Gift Card"]
[" Case Supplier Brand",0,1,"Gift Card"]
[" Case Quantity of Children",0,null,""]
[" Case Height",0,1,"Gift Card"]
[" Case Width",0,1,"Gift Card"]
[" Case Depth",0,1,"Gift Card"]
[" Case Dimension UOM",0,1,"Gift Card"]
[" Case Weight",0,1,"Gift Card"]
[" Case Weight UOM",0,1,"Gift Card"]
[" Case Date Code Type",0,1,"Gift Card"]
["Case Shelf Life (in weeks)",0,null,""]
["Case Date Code Format",0,1,"Gift Card"]
["Case Date Code Format Description",0,1,"Gift Card"]
[" Bonus Type",0,null,""]
[" Break Apart for Individual Sale",0,null,""]
[" Supplier Regular Item UPC",0,null,""]
[" Beverage Type Code",0,null,""]
[" Container Type Code",0,null,""]
[" Alcohol %",0,null,""]
[" Prepaid Card Type",0,1,"Gift Card"]
[" Supplier Fee",0,1,"Gift Card"]
[" Prepaid Gift Card Face Value",0,1,"Gift Card"]
[" Prepaid Gift Card Region Type",0,1,"Gift Card"]
[" Effective Start Date",0,1,"Gift Card"]
[" Effective End Date",0,1,"Gift Card"]
["Prepaid Wireless E911 Type",{"$f":"IF('New Item Form '!AZ68=\"\",0,1)","v":0},1,"Gift Card"]
["Inner Supplier Brand",{"$f":"B49","v":0},{"$f":"IF('New Item Form '!$BK$22<>\"\",1,0)","v":0},""]
["Inner Quantity of Children",0,{"$f":"IF('New Item Form '!$BK$22<>\"\",1,0)","v":0},""]
["Inner Height",0,{"$f":"IF('New Item Form '!$BK$22<>\"\",1,0)","v":0},""]
["Inner Width",0,{"$f":"IF('New Item Form '!$BK$22<>\"\",1,0)","v":0},""]
["Inner Depth",0,{"$f":"IF('New Item Form '!$BK$22<>\"\",1,0)","v":0},""]
["Inner Linear UOM",0,{"$f":"IF('New Item Form '!$BK$22<>\"\",1,0)","v":0},""]
["Inner Weight",0,{"$f":"IF('New Item Form '!$BK$22<>\"\",1,0)","v":0},""]
["Inner Weight UOM",0,{"$f":"IF('New Item Form '!$BK$22<>\"\",1,0)","v":0},""]
["Inner Date Code Type",0,{"$f":"IF('New Item Form '!$BK$22<>\"\",1,0)","v":0},""]
["Inner Shelf Life (in weeks)",0,{"$f":"IF('New Item Form '!$BK$22<>\"\",1,0)","v":0},""]
["Inner Date Code Format",0,{"$f":"IF('New Item Form '!$BK$22<>\"\",1,0)","v":0},""]
["Inner Date Code Format Description",0,{"$f":"IF('New Item Form '!$BK$22<>\"\",1,0)","v":0},""]
[null,null,null,"PSE"]
[{"$f":"A3","v":" MHE"},0,1,{"$f":"IF((B240-C240)<0,\"PSE\",\"\")","v":"PSE"}]
[" UPC",0,1,{"$f":"IF((B241-C241)<0,\"PSE\",\"\")","v":"PSE"}]
[" Supplier Item Description",0,1,"PSE"]
[" CVS Supplier #",0,1,"PSE"]
[" Supplier Name",0,1,"PSE"]
[" Supplier Brand",0,1,"PSE"]
[" Consumer Size Quantity",0,1,"PSE"]
[" Consumer Size UOM",0,1,"PSE"]
[" Item Height",0,1,"PSE"]
[" Item Width",0,1,"PSE"]
[" Item Depth",0,1,"PSE"]
[" Item Dimension UOM",0,1,"PSE"]
[" Supplier Item Gross Weight",0,1,"PSE"]
[" Supplier Item Gross Weight UOM",0,1,"PSE"]
[" Facts Box",0,1,"PSE"]
[" Date Code Type",0,1,"PSE"]
[" Shelf Life (in weeks)",0,1,"PSE"]
[" Date Code Format",0,1,"PSE"]
[" Date Code Format Description",0,1,"PSE"]
[" All Mainland Cost",0,1,"PSE"]
[{"$f":"A23","v":" Reconstituted Quantity"},0,1,"PSE"]
[" Reconstituted UOM",0,1,"PSE"]
[" Case Supplier Brand",0,1,"PSE"]
[" Case Quantity of Children",0,0,""]
[" Case Height",0,1,"PSE"]
[" Case Width",0,1,"PSE"]
[" Case Depth",0,1,"PSE"]
[" Case Dimension UOM",0,1,"PSE"]
[" Case Weight",0,1,"PSE"]
[" Case Weight UOM",0,1,"PSE"]
[" Case Date Code Type",0,1,"PSE"]
["Case Shelf Life (in weeks)",0,1,"PSE"]
["Case Date Code Format",0,1,"PSE"]
["Case Date Code Format Description",0,1,"PSE"]
[" Bonus Type",0,0,""]
[" Break Apart for Individual Sale",0,0,""]
[" Supplier Regular Item UPC",0,0,""]
[" Beverage Type Code",0,0,""]
[" Container Type Code",0,0,""]
[" Alcohol %",0,0,""]
[{"$f":"A43","v":" Prepaid Card Type"},0,0,""]
[" Supplier Fee",0,0,""]
[" Prepaid Gift Card Face Value",0,0,""]
[" Prepaid Gift Card Region Type",0,0,""]
[" Effective Start Date",0,0,""]
[" Effective End Date",0,0,""]
["Inner Supplier Brand",0,0,""]
["Inner Quantity of Children",0,0,""]
["Inner Height",0,0,""]
["Inner Width",0,0,""]
["Inner Depth",0,0,""]
["Inner Linear UOM",0,0,""]
["Inner Weight",0,0,""]
["Inner Weight UOM",0,0,""]
["Inner Date Code Type",0,0,""]
["Inner Shelf Life (in weeks)",0,0,""]
["Inner Date Code Format",0,0,""]
["Inner Date Code Format Description",0,0,""]
["NDC",{"$f":"IF('New Item Form '!G25<>\"\",1,0)","v":0},1,"PSE"]
["Controlled Content ",{"$f":"IF('New Item Form '!AD5<>\"\",1,0)","v":0},1,"PSE"]
["PSE Salt Gram Weight ",{"$f":"IF('New Item Form '!AM5<>\"\",1,0)","v":0},1,"PSE"]

{"sheet":"VALIDATION CM","index":11,"n_rows":88,"n_cols":4,"rows_kept":88,"cut":false,"hidden":true,"merged":[]}
["Please enter","Entered","Required","Item Type"]
[null,null,null,"Cycle pre-pack"]
[" Item Type",{"$f":"IF('New Item Form '!D81<>\"\",1,0)","v":0},1,{"$f":"IF((B3-C3)<0,\"Cycle pre-pack\",\"\")","v":"Cycle pre-pack"}]
[" Item Brand Type",{"$f":"IF('New Item Form '!E83<>\"\",1,0)","v":0},1,{"$f":"IF((B4-C4)<0,\"Cycle pre-pack\",\"\")","v":"Cycle pre-pack"}]
[" Sourcing Indicator",{"$f":"IF('New Item Form '!F85<>\"\",1,0)","v":0},1,"Cycle pre-pack"]
[" CM Brand Classification",{"$f":"IF('New Item Form '!S83<>\"\",1,0)","v":0},1,"Cycle pre-pack"]
[" CM Suggested Retail Quantity",{"$f":"IF('New Item Form '!E87<>\"\",1,0)","v":0},1,"Cycle pre-pack"]
[" CM Suggested Retail Price",{"$f":"IF('New Item Form '!R87<>\"\",1,0)","v":0},1,"Cycle pre-pack"]
[" Flavor Code Option",{"$f":"IF('New Item Form '!D93<>\"\",1,0)","v":0},1,"Cycle pre-pack"]
[" Season Type",{"$f":"IF('New Item Form '!E119<>\"\",1,0)","v":0},1,"Cycle pre-pack"]
[" CVS Like Item Number",{"$f":"IF('New Item Form '!S81<>\"\",1,0)","v":0},null,""]
[" Planogram Name",{"$f":"IF('New Item Form '!E113<>\"\",1,0)","v":0},null,""]
[" Planogram Cluster",{"$f":"IF('New Item Form '!E115<>\"\",1,0)","v":0},null,""]
[" Item Launch Type",{"$f":"IF('New Item Form '!E117<>\"\",1,0)","v":0},null,""]
["Store Damage Return Code",{"$f":"IF('New Item Form '!$F$89<>\"\",1,0)","v":0},1,"Cycle pre-pack"]
[null,null,null,"Intended for POG"]
[" Item Type",{"$f":"B3","v":0},1,{"$f":"IF((B17-C17)<0,\"Intended for POG\",\"\")","v":"Intended for POG"}]
[" Item Brand Type",{"$f":"B4","v":0},1,{"$f":"IF((B18-C18)<0,\"Intended for POG\",\"\")","v":"Intended for POG"}]
[" Sourcing Indicator",0,1,"Intended for POG"]
[" CM Brand Classification",0,1,"Intended for POG"]
[" CM Suggested Retail Quantity",0,1,"Intended for POG"]
[" CM Suggested Retail Price",0,1,"Intended for POG"]
[" Flavor Code Option",0,1,"Intended for POG"]
[" Season Type",0,null,""]
[" CVS Like Item Number",0,1,"Intended for POG"]
[" Planogram Name",0,1,"Intended for POG"]
[" Planogram Cluster",0,1,"Intended for POG"]
[" Item Launch Type",0,1,"Intended for POG"]
["Store Damage Return Code",{"$f":"IF('New Item Form '!$F$89<>\"\",1,0)","v":0},1,{"$f":"IF((B29-C29)<0,\"Cycle pre-pack\",\"\")","v":"Cycle pre-pack"}]
[null,null,null,"Not for Plano"]
[" Item Type",{"$f":"B3","v":0},1,{"$f":"IF((B31-C31)<0,\"Not for Plano\",\"\")","v":"Not for Plano"}]
[" Item Brand Type",{"$f":"B4","v":0},1,{"$f":"IF((B32-C32)<0,\"Not for Plano\",\"\")","v":"Not for Plano"}]
[" Sourcing Indicator",0,1,"Not for Plano"]
[" CM Brand Classification",0,1,"Not for Plano"]
[" CM Suggested Retail Quantity",0,1,"Not for Plano"]
[" CM Suggested Retail Price",0,1,"Not for Plano"]
[" Flavor Code Option",0,1,"Not for Plano"]
[" Season Type",0,null,""]
[" CVS Like Item Number",0,null,""]
[" Planogram Name",0,null,""]
[" Planogram Cluster",0,null,""]
[" Item Launch Type",0,null,""]
["Store Damage Return Code",{"$f":"IF('New Item Form '!$F$89<>\"\",1,0)","v":0},1,{"$f":"IF((B43-C43)<0,\"Cycle pre-pack\",\"\")","v":"Cycle pre-pack"}]
[null,null,null,"Off-Shelf"]
[" Item Type",{"$f":"B3","v":0},1,{"$f":"IF((B45-C45)<0,\"Off-Shelf\",\"\")","v":"Off-Shelf"}]
[" Item Brand Type",{"$f":"B4","v":0},1,{"$f":"IF((B46-C46)<0,\"Off-Shelf\",\"\")","v":"Off-Shelf"}]
[" Sourcing Indicator",0,1,"Off-Shelf"]
[" CM Brand Classification",0,1,"Off-Shelf"]
[" CM Suggested Retail Quantity",0,1,"Off-Shelf"]
[" CM Suggested Retail Price",0,1,"Off-Shelf"]
[" Flavor Code Option",0,1,"Off-Shelf"]
[" Season Type",0,1,"Off-Shelf"]
[" CVS Like Item Number",0,null,""]
[" Planogram Name",0,null,""]
[" Planogram Cluster",0,null,""]
[" Item Launch Type",0,null,""]
["Store Damage Return Code",{"$f":"IF('New Item Form '!$F$89<>\"\",1,0)","v":0},1,{"$f":"IF((B57-C57)<0,\"Cycle pre-pack\",\"\")","v":"Cycle pre-pack"}]
[null,null,null,"Promotional"]
[" Item Type",{"$f":"B3","v":0},1,{"$f":"IF((B59-C59)<0,\"Promotional\",\"\")","v":"Promotional"}]
[" Item Brand Type",{"$f":"B4","v":0},1,{"$f":"IF((B60-C60)<0,\"Promotional\",\"\")","v":"Promotional"}]
[" Sourcing Indicator",0,1,"Promotional"]
[" CM Brand Classification",0,1,"Promotional"]
[" CM Suggested Retail Quantity",0,1,"Promotional"]
[" CM Suggested Retail Price",0,1,"Promotional"]
[" Flavor Code Option",0,1,"Promotional"]
[" Season Type",0,null,""]
[" CVS Like Item Number",0,null,""]
[" Planogram Name",0,null,""]
[" Planogram Cluster",0,null,""]
[" Item Launch Type",0,null,""]
["Store Damage Return Code",{"$f":"IF('New Item Form '!$F$89<>\"\",1,0)","v":0},1,{"$f":"IF((B71-C71)<0,\"Cycle pre-pack\",\"\")","v":"Cycle pre-pack"}]
[null,null,null,"Seasonal"]
[" Item Type",{"$f":"B3","v":0},1,{"$f":"IF((B73-C73)<0,\"Seasonal\",\"\")","v":"Seasonal"}]
[" Item Brand Type",{"$f":"B4","v":0},1,{"$f":"IF((B74-C74)<0,\"Seasonal\",\"\")","v":"Seasonal"}]
[" Sourcing Indicator",0,1,"Seasonal"]
[" CM Brand Classification",0,1,"Seasonal"]
[" CM Suggested Retail Quantity",0,1,"Seasonal"]
[" CM Suggested Retail Price",0,1,"Seasonal"]
[" Flavor Code Option",0,1,"Seasonal"]
[" Season Type",0,1,"Seasonal"]
[" CVS Like Item Number",0,null,""]
[" Planogram Name",0,null,""]
[" Planogram Cluster",0,null,""]
[" Item Launch Type",0,null,""]
["Store Damage Return Code",{"$f":"IF('New Item Form '!$F$89<>\"\",1,0)","v":0},1,{"$f":"IF((B85-C85)<0,\"Cycle pre-pack\",\"\")","v":"Cycle pre-pack"}]
[]
[]
["WRITE OFF"]

{"sheet":"Options","index":12,"n_rows":40,"n_cols":8,"rows_kept":40,"cut":false,"hidden":true,"merged":[[0,1,6,1]]}
["Item Types Required For Vendors",null,"Item Types Required for CMs",null,"Brand Classification for Store Brand"]
["1. Standard",null,"1. Cycle Pre-Pack",null," ",{"$f":"IF('New Item Form'!$S$19 = \"NO\",Options!E2,NULL)","v":{"$error":"#NAME?"}},null,{"$f":"IFERROR(INDEX($F$2:$F$40,SMALL(IF(ISERROR($F$2:$F$40),\"\",ROW($F$2:$F$40)-MIN(ROW($F$2:$F$40))+1),ROW(D1))),\"\")","v":""}]
["2. Bonus",null,"2. Intended for POG",null,"Aftera",{"$f":"IF('New Item Form'!$S$19 = \"YES\",Options!E3,NULL)","v":{"$error":"#NAME?"}},null,{"$f":"IFERROR(INDEX($F$2:$F$40,SMALL(IF(ISERROR($F$2:$F$40),\"\",ROW($F$2:$F$40)-MIN(ROW($F$2:$F$40))+1),ROW(D2))),\"\")","v":""}]
["3. Beverage",null,"3. Not for Plano",null,"Beauty 360",{"$f":"IF('New Item Form'!$S$19 = \"YES\",Options!E4,NULL)","v":{"$error":"#NAME?"}},null,{"$f":"IFERROR(INDEX($F$2:$F$40,SMALL(IF(ISERROR($F$2:$F$40),\"\",ROW($F$2:$F$40)-MIN(ROW($F$2:$F$40))+1),ROW(D3))),\"\")","v":""}]
["4. Gift Card",null,"4. Off-Shelf",null,"Blade",{"$f":"IF('New Item Form'!$S$19 = \"YES\",Options!E5,NULL)","v":{"$error":"#NAME?"}},null,{"$f":"IFERROR(INDEX($F$2:$F$40,SMALL(IF(ISERROR($F$2:$F$40),\"\",ROW($F$2:$F$40)-MIN(ROW($F$2:$F$40))+1),ROW(D4))),\"\")","v":""}]
["5. PSE",null,"5. Promotional",null,"Caliber",{"$f":"IF('New Item Form'!$S$19 = \"YES\",Options!E6,NULL)","v":{"$error":"#NAME?"}},null,{"$f":"IFERROR(INDEX($F$2:$F$40,SMALL(IF(ISERROR($F$2:$F$40),\"\",ROW($F$2:$F$40)-MIN(ROW($F$2:$F$40))+1),ROW(D5))),\"\")","v":""}]
[null,null,"6. Seasonal",null,"Cottondale",{"$f":"IF('New Item Form'!$S$19 = \"YES\",Options!E7,NULL)","v":{"$error":"#NAME?"}},null,{"$f":"IFERROR(INDEX($F$2:$F$40,SMALL(IF(ISERROR($F$2:$F$40),\"\",ROW($F$2:$F$40)-MIN(ROW($F$2:$F$40))+1),ROW(D6))),\"\")","v":""}]
[null,null,null,null,"CVS Batteries",{"$f":"IF('New Item Form'!$S$19 = \"YES\",Options!E8,NULL)","v":{"$error":"#NAME?"}},null,{"$f":"IFERROR(INDEX($F$2:$F$40,SMALL(IF(ISERROR($F$2:$F$40),\"\",ROW($F$2:$F$40)-MIN(ROW($F$2:$F$40))+1),ROW(D7))),\"\")","v":""}]
[null,null,null,null,"CVS Health",{"$f":"IF('New Item Form'!$S$19 = \"YES\",Options!E9,NULL)","v":{"$error":"#NAME?"}},null,{"$f":"IFERROR(INDEX($F$2:$F$40,SMALL(IF(ISERROR($F$2:$F$40),\"\",ROW($F$2:$F$40)-MIN(ROW($F$2:$F$40))+1),ROW(D8))),\"\")","v":""}]
[null,null,null,null,"Earth Essentials",{"$f":"IF('New Item Form'!$S$19 = \"YES\",Options!E10,NULL)","v":{"$error":"#NAME?"}},null,{"$f":"IFERROR(INDEX($F$2:$F$40,SMALL(IF(ISERROR($F$2:$F$40),\"\",ROW($F$2:$F$40)-MIN(ROW($F$2:$F$40))+1),ROW(D9))),\"\")","v":""}]
[null,null,null,null,"Eco Tools",{"$f":"IF('New Item Form'!$S$19 = \"YES\",Options!E11,NULL)","v":{"$error":"#NAME?"}},null,{"$f":"IFERROR(INDEX($F$2:$F$40,SMALL(IF(ISERROR($F$2:$F$40),\"\",ROW($F$2:$F$40)-MIN(ROW($F$2:$F$40))+1),ROW(D10))),\"\")","v":""}]
[null,null,null,null,"Essence Of Beauty",{"$f":"IF('New Item Form'!$S$19 = \"YES\",Options!E12,NULL)","v":{"$error":"#NAME?"}},null,{"$f":"IFERROR(INDEX($F$2:$F$40,SMALL(IF(ISERROR($F$2:$F$40),\"\",ROW($F$2:$F$40)-MIN(ROW($F$2:$F$40))+1),ROW(D11))),\"\")","v":""}]
[null,null,null,null,"GE Abound",{"$f":"IF('New Item Form'!$S$19 = \"YES\",Options!E13,NULL)","v":{"$error":"#NAME?"}},null,{"$f":"IFERROR(INDEX($F$2:$F$40,SMALL(IF(ISERROR($F$2:$F$40),\"\",ROW($F$2:$F$40)-MIN(ROW($F$2:$F$40))+1),ROW(D12))),\"\")","v":""}]
[null,null,null,null,"Gold Emblem",{"$f":"IF('New Item Form'!$S$19 = \"YES\",Options!E14,NULL)","v":{"$error":"#NAME?"}},null,{"$f":"IFERROR(INDEX($F$2:$F$40,SMALL(IF(ISERROR($F$2:$F$40),\"\",ROW($F$2:$F$40)-MIN(ROW($F$2:$F$40))+1),ROW(D13))),\"\")","v":""}]
[null,null,null,null,"Grisi",{"$f":"IF('New Item Form'!$S$19 = \"YES\",Options!E15,NULL)","v":{"$error":"#NAME?"}},null,{"$f":"IFERROR(INDEX($F$2:$F$40,SMALL(IF(ISERROR($F$2:$F$40),\"\",ROW($F$2:$F$40)-MIN(ROW($F$2:$F$40))+1),ROW(D14))),\"\")","v":""}]
[null,null,null,null,"GSQ",{"$f":"IF('New Item Form'!$S$19 = \"YES\",Options!E16,NULL)","v":{"$error":"#NAME?"}},null,{"$f":"IFERROR(INDEX($F$2:$F$40,SMALL(IF(ISERROR($F$2:$F$40),\"\",ROW($F$2:$F$40)-MIN(ROW($F$2:$F$40))+1),ROW(D15))),\"\")","v":""}]
[null,null,null,null,"Hawaiian Traditions",{"$f":"IF('New Item Form'!$S$19 = \"YES\",Options!E17,NULL)","v":{"$error":"#NAME?"}},null,{"$f":"IFERROR(INDEX($F$2:$F$40,SMALL(IF(ISERROR($F$2:$F$40),\"\",ROW($F$2:$F$40)-MIN(ROW($F$2:$F$40))+1),ROW(D16))),\"\")","v":""}]
[null,null,null,null,"Island Accents",{"$f":"IF('New Item Form'!$S$19 = \"YES\",Options!E18,NULL)","v":{"$error":"#NAME?"}},null,{"$f":"IFERROR(INDEX($F$2:$F$40,SMALL(IF(ISERROR($F$2:$F$40),\"\",ROW($F$2:$F$40)-MIN(ROW($F$2:$F$40))+1),ROW(D17))),\"\")","v":""}]
[null,null,null,null,"Jouviance",{"$f":"IF('New Item Form'!$S$19 = \"YES\",Options!E19,NULL)","v":{"$error":"#NAME?"}},null,{"$f":"IFERROR(INDEX($F$2:$F$40,SMALL(IF(ISERROR($F$2:$F$40),\"\",ROW($F$2:$F$40)-MIN(ROW($F$2:$F$40))+1),ROW(D18))),\"\")","v":""}]
[null,null,null,null,"Just The Basics",{"$f":"IF('New Item Form'!$S$19 = \"YES\",Options!E20,NULL)","v":{"$error":"#NAME?"}},null,{"$f":"IFERROR(INDEX($F$2:$F$40,SMALL(IF(ISERROR($F$2:$F$40),\"\",ROW($F$2:$F$40)-MIN(ROW($F$2:$F$40))+1),ROW(D19))),\"\")","v":""}]
[null,null,null,null,"Live Better",{"$f":"IF('New Item Form'!$S$19 = \"YES\",Options!E21,NULL)","v":{"$error":"#NAME?"}},null,{"$f":"IFERROR(INDEX($F$2:$F$40,SMALL(IF(ISERROR($F$2:$F$40),\"\",ROW($F$2:$F$40)-MIN(ROW($F$2:$F$40))+1),ROW(D20))),\"\")","v":""}]
[null,null,null,null,"Makeup Academy",{"$f":"IF('New Item Form'!$S$19 = \"YES\",Options!E22,NULL)","v":{"$error":"#NAME?"}},null,{"$f":"IFERROR(INDEX($F$2:$F$40,SMALL(IF(ISERROR($F$2:$F$40),\"\",ROW($F$2:$F$40)-MIN(ROW($F$2:$F$40))+1),ROW(D21))),\"\")","v":""}]
[null,null,null,null,"Merry Brite",{"$f":"IF('New Item Form'!$S$19 = \"YES\",Options!E23,NULL)","v":{"$error":"#NAME?"}},null,{"$f":"IFERROR(INDEX($F$2:$F$40,SMALL(IF(ISERROR($F$2:$F$40),\"\",ROW($F$2:$F$40)-MIN(ROW($F$2:$F$40))+1),ROW(D22))),\"\")","v":""}]
[null,null,null,null,"Non Brand",{"$f":"IF('New Item Form'!$S$19 = \"YES\",Options!E24,NULL)","v":{"$error":"#NAME?"}},null,{"$f":"IFERROR(INDEX($F$2:$F$40,SMALL(IF(ISERROR($F$2:$F$40),\"\",ROW($F$2:$F$40)-MIN(ROW($F$2:$F$40))+1),ROW(D23))),\"\")","v":""}]
[null,null,null,null,"Nuance Salma Hayek",{"$f":"IF('New Item Form'!$S$19 = \"YES\",Options!E25,NULL)","v":{"$error":"#NAME?"}},null,{"$f":"IFERROR(INDEX($F$2:$F$40,SMALL(IF(ISERROR($F$2:$F$40),\"\",ROW($F$2:$F$40)-MIN(ROW($F$2:$F$40))+1),ROW(D24))),\"\")","v":""}]
[null,null,null,null,"Organic Doctor",{"$f":"IF('New Item Form'!$S$19 = \"YES\",Options!E26,NULL)","v":{"$error":"#NAME?"}},null,{"$f":"IFERROR(INDEX($F$2:$F$40,SMALL(IF(ISERROR($F$2:$F$40),\"\",ROW($F$2:$F$40)-MIN(ROW($F$2:$F$40))+1),ROW(D25))),\"\")","v":""}]
[null,null,null,null,"Pa'Ina",{"$f":"IF('New Item Form'!$S$19 = \"YES\",Options!E27,NULL)","v":{"$error":"#NAME?"}},null,{"$f":"IFERROR(INDEX($F$2:$F$40,SMALL(IF(ISERROR($F$2:$F$40),\"\",ROW($F$2:$F$40)-MIN(ROW($F$2:$F$40))+1),ROW(D26))),\"\")","v":""}]
[null,null,null,null,"Pet Central",{"$f":"IF('New Item Form'!$S$19 = \"YES\",Options!E28,NULL)","v":{"$error":"#NAME?"}},null,{"$f":"IFERROR(INDEX($F$2:$F$40,SMALL(IF(ISERROR($F$2:$F$40),\"\",ROW($F$2:$F$40)-MIN(ROW($F$2:$F$40))+1),ROW(D27))),\"\")","v":""}]
[null,null,null,null,"Poparazzi",{"$f":"IF('New Item Form'!$S$19 = \"YES\",Options!E29,NULL)","v":{"$error":"#NAME?"}},null,{"$f":"IFERROR(INDEX($F$2:$F$40,SMALL(IF(ISERROR($F$2:$F$40),\"\",ROW($F$2:$F$40)-MIN(ROW($F$2:$F$40))+1),ROW(D28))),\"\")","v":""}]
[null,null,null,null,"Promise Organic",{"$f":"IF('New Item Form'!$S$19 = \"YES\",Options!E30,NULL)","v":{"$error":"#NAME?"}},null,{"$f":"IFERROR(INDEX($F$2:$F$40,SMALL(IF(ISERROR($F$2:$F$40),\"\",ROW($F$2:$F$40)-MIN(ROW($F$2:$F$40))+1),ROW(D29))),\"\")","v":""}]
[null,null,null,null,"Radiance Base",{"$f":"IF('New Item Form'!$S$19 = \"YES\",Options!E31,NULL)","v":{"$error":"#NAME?"}},null,{"$f":"IFERROR(INDEX($F$2:$F$40,SMALL(IF(ISERROR($F$2:$F$40),\"\",ROW($F$2:$F$40)-MIN(ROW($F$2:$F$40))+1),ROW(D30))),\"\")","v":""}]
[null,null,null,null,"Radiance Platinum",{"$f":"IF('New Item Form'!$S$19 = \"YES\",Options!E32,NULL)","v":{"$error":"#NAME?"}},null,{"$f":"IFERROR(INDEX($F$2:$F$40,SMALL(IF(ISERROR($F$2:$F$40),\"\",ROW($F$2:$F$40)-MIN(ROW($F$2:$F$40))+1),ROW(D31))),\"\")","v":""}]
[null,null,null,null,"Red And Pink",{"$f":"IF('New Item Form'!$S$19 = \"YES\",Options!E33,NULL)","v":{"$error":"#NAME?"}},null,{"$f":"IFERROR(INDEX($F$2:$F$40,SMALL(IF(ISERROR($F$2:$F$40),\"\",ROW($F$2:$F$40)-MIN(ROW($F$2:$F$40))+1),ROW(D32))),\"\")","v":""}]
[null,null,null,null,"Santa's Treats",{"$f":"IF('New Item Form'!$S$19 = \"YES\",Options!E34,NULL)","v":{"$error":"#NAME?"}},null,{"$f":"IFERROR(INDEX($F$2:$F$40,SMALL(IF(ISERROR($F$2:$F$40),\"\",ROW($F$2:$F$40)-MIN(ROW($F$2:$F$40))+1),ROW(D33))),\"\")","v":""}]
[null,null,null,null,"Skin + Pharmacy",{"$f":"IF('New Item Form'!$S$19 = \"YES\",Options!E35,NULL)","v":{"$error":"#NAME?"}},null,{"$f":"IFERROR(INDEX($F$2:$F$40,SMALL(IF(ISERROR($F$2:$F$40),\"\",ROW($F$2:$F$40)-MIN(ROW($F$2:$F$40))+1),ROW(D34))),\"\")","v":""}]
[null,null,null,null,"Spooky Village",{"$f":"IF('New Item Form'!$S$19 = \"YES\",Options!E36,NULL)","v":{"$error":"#NAME?"}},null,{"$f":"IFERROR(INDEX($F$2:$F$40,SMALL(IF(ISERROR($F$2:$F$40),\"\",ROW($F$2:$F$40)-MIN(ROW($F$2:$F$40))+1),ROW(D35))),\"\")","v":""}]
[null,null,null,null,"Style Essentials",{"$f":"IF('New Item Form'!$S$19 = \"YES\",Options!E37,NULL)","v":{"$error":"#NAME?"}},null,{"$f":"IFERROR(INDEX($F$2:$F$40,SMALL(IF(ISERROR($F$2:$F$40),\"\",ROW($F$2:$F$40)-MIN(ROW($F$2:$F$40))+1),ROW(D36))),\"\")","v":""}]
[null,null,null,null,"Total Home",{"$f":"IF('New Item Form'!$S$19 = \"YES\",Options!E38,NULL)","v":{"$error":"#NAME?"}},null,{"$f":"IFERROR(INDEX($F$2:$F$40,SMALL(IF(ISERROR($F$2:$F$40),\"\",ROW($F$2:$F$40)-MIN(ROW($F$2:$F$40))+1),ROW(D37))),\"\")","v":""}]
[null,null,null,null,"Viita",{"$f":"IF('New Item Form'!$S$19 = \"YES\",Options!E39,NULL)","v":{"$error":"#NAME?"}},null,{"$f":"IFERROR(INDEX($F$2:$F$40,SMALL(IF(ISERROR($F$2:$F$40),\"\",ROW($F$2:$F$40)-MIN(ROW($F$2:$F$40))+1),ROW(D38))),\"\")","v":""}]
[null,null,null,null,"ZX",{"$f":"IF('New Item Form'!$S$19 = \"YES\",Options!E40,NULL)","v":{"$error":"#NAME?"}}]